Department,Entity,Transaction Date,Expense Type,Expense Area,PES Category,Supplier,Transaction No.,Amount
DEPARTMENT OF ENERGY AND CLIMATE CHANGE,THE COAL AUTHORITY,31/07/2014,HOTEL ACCOMMODATION,BOARD,TRAVEL&EVENTS-HOTELS,REDFERN TRAVEL LTD,0000213076,76.30
DEPARTMENT OF ENERGY AND CLIMATE CHANGE,THE COAL AUTHORITY,06/08/2014,TRAINING AND EDUCATION,BOARD,PROF SER LRNG&DEV-STAFF TRNING,CIVIL SERVICE COLLEGE,0000213019,1485.00
DEPARTMENT OF ENERGY AND CLIMATE CHANGE,THE COAL AUTHORITY,31/07/2014,FARES - RAIL,BUSINESS DEVELOPMENT,TRAVEL&EVENTS-RAIL,REDFERN TRAVEL LTD,0000213077,239.58
DEPARTMENT OF ENERGY AND CLIMATE CHANGE,THE COAL AUTHORITY,31/07/2014,FARES - AIR,CHIEF EXECUTIVE,TRAVEL&EVENTS-AIR,REDFERN TRAVEL LTD,0000213077,182.78
DEPARTMENT OF ENERGY AND CLIMATE CHANGE,THE COAL AUTHORITY,31/07/2014,FARES - RAIL,CHIEF EXECUTIVE,TRAVEL&EVENTS-RAIL,REDFERN TRAVEL LTD,0000213077,469.80
DEPARTMENT OF ENERGY AND CLIMATE CHANGE,THE COAL AUTHORITY,27/08/2014,FARES - RAIL,CHIEF EXECUTIVE,TRAVEL&EVENTS-RAIL,STAFF EXPENSES CONTROL,0000213493,40.00
DEPARTMENT OF ENERGY AND CLIMATE CHANGE,THE COAL AUTHORITY,31/07/2014,HOTEL ACCOMMODATION,CHIEF EXECUTIVE,TRAVEL&EVENTS-HOTELS,REDFERN TRAVEL LTD,0000213076,372.80
DEPARTMENT OF ENERGY AND CLIMATE CHANGE,THE COAL AUTHORITY,08/08/2014,INCIDENTALS,CHIEF EXECUTIVE,VEHICLES-FLEET MANAGEMENT,COMPANY BARCLAYCARD,0000213392,13.00
DEPARTMENT OF ENERGY AND CLIMATE CHANGE,THE COAL AUTHORITY,27/08/2014,INCIDENTALS,CHIEF EXECUTIVE,VEHICLES-FLEET MANAGEMENT,STAFF EXPENSES CONTROL,0000213493,15.00
DEPARTMENT OF ENERGY AND CLIMATE CHANGE,THE COAL AUTHORITY,27/08/2014,MILEAGE PAYMENTS,CHIEF EXECUTIVE,FUELS/LUBRCNT/GAS-FUELS,STAFF EXPENSES CONTROL,0000213493,147.90
DEPARTMENT OF ENERGY AND CLIMATE CHANGE,THE COAL AUTHORITY,27/08/2014,MILEAGE PAYMENTS,CHIEF EXECUTIVE,FUELS/LUBRCNT/GAS-FUELS,STAFF EXPENSES CONTROL,0000213499,22.32
DEPARTMENT OF ENERGY AND CLIMATE CHANGE,THE COAL AUTHORITY,08/08/2014,PROFESSIONAL SUBSCRIPTIONS,CHIEF EXECUTIVE,PERSONNEL RLTD-STAFF SUBSCRPTN,COMPANY BARCLAYCARD,0000213354,370.00
DEPARTMENT OF ENERGY AND CLIMATE CHANGE,THE COAL AUTHORITY,08/08/2014,PROFESSIONAL SUBSCRIPTIONS,CHIEF EXECUTIVE,PERSONNEL RLTD-STAFF SUBSCRPTN,COMPANY BARCLAYCARD,0000213391,370.00
DEPARTMENT OF ENERGY AND CLIMATE CHANGE,THE COAL AUTHORITY,27/08/2014,SUBSISTENCE ALLOWANCES,CHIEF EXECUTIVE,FACILITIES - FOOD,STAFF EXPENSES CONTROL,0000213493,55.66
DEPARTMENT OF ENERGY AND CLIMATE CHANGE,THE COAL AUTHORITY,23/08/2014,ANNUAL REPORT AND ACCOUNTS,CORPORATE AFFAIRS,OFFICE SOLUTIONS-PRINT,WILLIAMS LEA,0000213462,9592.00
DEPARTMENT OF ENERGY AND CLIMATE CHANGE,THE COAL AUTHORITY,20/07/2014,CAR HIRE,CORPORATE AFFAIRS,TRAVEL&EVENTS-VEHICLE HIRE,ENTERPRISE RENT A CAR,0000212918,65.72
DEPARTMENT OF ENERGY AND CLIMATE CHANGE,THE COAL AUTHORITY,31/07/2014,FARES - RAIL,CORPORATE AFFAIRS,TRAVEL&EVENTS-RAIL,REDFERN TRAVEL LTD,0000213077,387.99
DEPARTMENT OF ENERGY AND CLIMATE CHANGE,THE COAL AUTHORITY,08/08/2014,FUEL (VEHICLE),CORPORATE AFFAIRS,FUELS/LUBRCNT/GAS-FUELS,COMPANY BARCLAYCARD,0000213389,60.06
DEPARTMENT OF ENERGY AND CLIMATE CHANGE,THE COAL AUTHORITY,31/07/2014,HOTEL ACCOMMODATION,CORPORATE AFFAIRS,TRAVEL&EVENTS-HOTELS,REDFERN TRAVEL LTD,0000213076,291.50
DEPARTMENT OF ENERGY AND CLIMATE CHANGE,THE COAL AUTHORITY,08/08/2014,INCIDENTALS,CORPORATE AFFAIRS,VEHICLES-FLEET MANAGEMENT,COMPANY BARCLAYCARD,0000213389,10.83
DEPARTMENT OF ENERGY AND CLIMATE CHANGE,THE COAL AUTHORITY,31/07/2014,PUBLIC RELATIONS,CORPORATE AFFAIRS,MARKETING & MEDIA-PROMOTION,GORKANA GROUP LTD,0000213022,551.50
DEPARTMENT OF ENERGY AND CLIMATE CHANGE,THE COAL AUTHORITY,31/07/2014,PUBLIC RELATIONS,CORPORATE AFFAIRS,MARKETING & MEDIA-PROMOTION,GORKANA GROUP LTD,0000213023,203.43
DEPARTMENT OF ENERGY AND CLIMATE CHANGE,THE COAL AUTHORITY,31/07/2014,PUBLIC RELATIONS,CORPORATE AFFAIRS,MARKETING & MEDIA-PROMOTION,SHARPE PRITCHARD,0000213441,431.00
DEPARTMENT OF ENERGY AND CLIMATE CHANGE,THE COAL AUTHORITY,08/08/2014,SUBSISTENCE ALLOWANCES,CORPORATE AFFAIRS,FACILITIES - FOOD,COMPANY BARCLAYCARD,0000213389,22.08
DEPARTMENT OF ENERGY AND CLIMATE CHANGE,THE COAL AUTHORITY,01/08/2014,CURR YR ADD-INTNGBLE INFO TECH,CORPORATE PROJECT OFFICE,ICT-MAINTENANCE & SUPPORT,WELLINGTONE LIMITED,0000212956,5385.00
DEPARTMENT OF ENERGY AND CLIMATE CHANGE,THE COAL AUTHORITY,25/07/2014,PAYMENTS TO AGENCIES FOR TEMPS,CORPORATE PROJECT OFFICE,PROF SER TMP STFF-SPCLST CNTRT,KEY PERSONNEL SOLUTIONS L,0000212865,1237.91
DEPARTMENT OF ENERGY AND CLIMATE CHANGE,THE COAL AUTHORITY,06/06/2014,PAYMENTS TO AGENCIES FOR TEMPS,CORPORATE PROJECT OFFICE,PROF SER TMP STFF-SPCLST CNTRT,KEY PERSONNEL SOLUTIONS L,0000212937,1374.95
DEPARTMENT OF ENERGY AND CLIMATE CHANGE,THE COAL AUTHORITY,30/07/2014,PAYMENTS TO AGENCIES FOR TEMPS,CORPORATE PROJECT OFFICE,PROF SER TMP STFF-SPCLST CNTRT,COMPUTER PEOPLE,0000212999,611.82
DEPARTMENT OF ENERGY AND CLIMATE CHANGE,THE COAL AUTHORITY,01/08/2014,PAYMENTS TO AGENCIES FOR TEMPS,CORPORATE PROJECT OFFICE,PROF SER TMP STFF-SPCLST CNTRT,KEY PERSONNEL SOLUTIONS L,0000213000,1375.45
DEPARTMENT OF ENERGY AND CLIMATE CHANGE,THE COAL AUTHORITY,30/07/2014,PAYMENTS TO AGENCIES FOR TEMPS,CORPORATE PROJECT OFFICE,PROF SER TMP STFF-SPCLST CNTRT,COMPUTER PEOPLE,0000213012,158.62
DEPARTMENT OF ENERGY AND CLIMATE CHANGE,THE COAL AUTHORITY,11/08/2014,PAYMENTS TO AGENCIES FOR TEMPS,CORPORATE PROJECT OFFICE,PROF SER TMP STFF-SPCLST CNTRT,SPRING TECHNOLOGY,0000213088,2075.00
DEPARTMENT OF ENERGY AND CLIMATE CHANGE,THE COAL AUTHORITY,07/08/2014,PAYMENTS TO AGENCIES FOR TEMPS,CORPORATE PROJECT OFFICE,PROF SER TMP STFF-SPCLST CNTRT,SPRING TECHNOLOGY,0000213089,2075.00
DEPARTMENT OF ENERGY AND CLIMATE CHANGE,THE COAL AUTHORITY,08/08/2014,PAYMENTS TO AGENCIES FOR TEMPS,CORPORATE PROJECT OFFICE,PROF SER TMP STFF-SPCLST CNTRT,KEY PERSONNEL SOLUTIONS L,0000213117,962.82
DEPARTMENT OF ENERGY AND CLIMATE CHANGE,THE COAL AUTHORITY,08/08/2014,PUBLICATIONS,CORPORATE PROJECT OFFICE,OPRTNL GOODS&SERV-DEVLPNG MTRL,COMPANY BARCLAYCARD,0000213357,50.00
DEPARTMENT OF ENERGY AND CLIMATE CHANGE,THE COAL AUTHORITY,08/08/2014,PUBLICATIONS,CORPORATE PROJECT OFFICE,OPRTNL GOODS&SERV-DEVLPNG MTRL,COMPANY BARCLAYCARD,0000213390,268.75
DEPARTMENT OF ENERGY AND CLIMATE CHANGE,THE COAL AUTHORITY,04/08/2014,TRAINING AND EDUCATION,CORPORATE PROJECT OFFICE,PROF SER LRNG&DEV-STAFF TRNING,WELLINGTONE LIMITED,0000213026,468.25
DEPARTMENT OF ENERGY AND CLIMATE CHANGE,THE COAL AUTHORITY,22/08/2014,TRAINING AND EDUCATION,CORPORATE PROJECT OFFICE,PROF SER LRNG&DEV-STAFF TRNING,C TOWNER CONFERENC FACILI,0000213425,3233.34
DEPARTMENT OF ENERGY AND CLIMATE CHANGE,THE COAL AUTHORITY,26/08/2014,DAMP PROOF SURVEY FEES,DAMPPROOF/TIMBER TREATMENT,CONSTRUCTION-CNSTRN SER PROVDR,NESS GUARANTEE INSPECTION,0000213454,90.00
DEPARTMENT OF ENERGY AND CLIMATE CHANGE,THE COAL AUTHORITY,02/08/2014,CHILDCARE VOUCHERS,ENVIRONMENT,PERSONNEL RLTD-STAFF CHILDCARE,FIDELITI LIMITED,0000213005,50.00
DEPARTMENT OF ENERGY AND CLIMATE CHANGE,THE COAL AUTHORITY,29/06/2014,CONSULTANTS OPERATIONS,ENVIRONMENT,CONSTRUCTION-CNSTRN SER PROVDR,J N BENTLEY LIMITED,0000212775,570.54
DEPARTMENT OF ENERGY AND CLIMATE CHANGE,THE COAL AUTHORITY,04/08/2014,CONSULTANTS OPERATIONS,ENVIRONMENT,CONSTRUCTION-MAIN CONTRACTORS,INTEGRATED WATER SERVICES,0000213289,1028.98
DEPARTMENT OF ENERGY AND CLIMATE CHANGE,THE COAL AUTHORITY,31/07/2014,CONSULTANTS OPERATIONS,ENVIRONMENT,CONSTRUCTION-CNSTRN SER PROVDR,HYDRO LOGIC SERVICES LLP,0000213309,442.90
DEPARTMENT OF ENERGY AND CLIMATE CHANGE,THE COAL AUTHORITY,31/07/2014,CONSULTANTS OPERATIONS,ENVIRONMENT,CONSTRUCTION-CNSTRN SER PROVDR,HYDRO LOGIC SERVICES LLP,0000213309,442.90
DEPARTMENT OF ENERGY AND CLIMATE CHANGE,THE COAL AUTHORITY,31/07/2014,CONSULTANTS OPERATIONS,ENVIRONMENT,CONSTRUCTION-CNSTRN SER PROVDR,HYDRO LOGIC SERVICES LLP,0000213309,442.90
DEPARTMENT OF ENERGY AND CLIMATE CHANGE,THE COAL AUTHORITY,31/07/2014,CONSULTANTS OPERATIONS,ENVIRONMENT,CONSTRUCTION-CNSTRN SER PROVDR,HYDRO LOGIC SERVICES LLP,0000213309,442.90
DEPARTMENT OF ENERGY AND CLIMATE CHANGE,THE COAL AUTHORITY,31/07/2014,CONSULTANTS OPERATIONS,ENVIRONMENT,CONSTRUCTION-CNSTRN SER PROVDR,HYDRO LOGIC SERVICES LLP,0000213309,442.90
DEPARTMENT OF ENERGY AND CLIMATE CHANGE,THE COAL AUTHORITY,31/07/2014,CONSULTANTS OPERATIONS,ENVIRONMENT,CONSTRUCTION-CNSTRN SER PROVDR,HYDRO LOGIC SERVICES LLP,0000213309,442.90
DEPARTMENT OF ENERGY AND CLIMATE CHANGE,THE COAL AUTHORITY,31/07/2014,CONSULTANTS OPERATIONS,ENVIRONMENT,CONSTRUCTION-CNSTRN SER PROVDR,HYDRO LOGIC SERVICES LLP,0000213309,442.90
DEPARTMENT OF ENERGY AND CLIMATE CHANGE,THE COAL AUTHORITY,31/07/2014,CONSULTANTS OPERATIONS,ENVIRONMENT,CONSTRUCTION-CNSTRN SER PROVDR,HYDRO LOGIC SERVICES LLP,0000213309,442.90
DEPARTMENT OF ENERGY AND CLIMATE CHANGE,THE COAL AUTHORITY,31/07/2014,CONSULTANTS OPERATIONS,ENVIRONMENT,CONSTRUCTION-CNSTRN SER PROVDR,HYDRO LOGIC SERVICES LLP,0000213309,442.90
DEPARTMENT OF ENERGY AND CLIMATE CHANGE,THE COAL AUTHORITY,18/06/2014,CURR YR ADDNS MINEWATER SCHEME,ENVIRONMENT,CONSTRUCTION-MAIN CONTRACTORS,INTEGRATED WATER SERVICES,0000211993,13827.11
DEPARTMENT OF ENERGY AND CLIMATE CHANGE,THE COAL AUTHORITY,26/06/2014,CURR YR ADDNS MINEWATER SCHEME,ENVIRONMENT,PROF SER TECH-ENGINEERING SER,ATKINS LIMITED,0000212513,1528.00
DEPARTMENT OF ENERGY AND CLIMATE CHANGE,THE COAL AUTHORITY,14/07/2014,CURR YR ADDNS MINEWATER SCHEME,ENVIRONMENT,PROF SER TECH-ENGINEERING SER,ATKINS LIMITED,0000212628,4797.85
DEPARTMENT OF ENERGY AND CLIMATE CHANGE,THE COAL AUTHORITY,14/07/2014,CURR YR ADDNS MINEWATER SCHEME,ENVIRONMENT,PROF SER TECH-ENGINEERING SER,ATKINS LIMITED,0000212630,16057.45
DEPARTMENT OF ENERGY AND CLIMATE CHANGE,THE COAL AUTHORITY,21/07/2014,CURR YR ADDNS MINEWATER SCHEME,ENVIRONMENT,CONSTRUCTION-MAIN CONTRACTORS,INTEGRATED WATER SERVICES,0000212645,35285.24
DEPARTMENT OF ENERGY AND CLIMATE CHANGE,THE COAL AUTHORITY,29/06/2014,CURR YR ADDNS MINEWATER SCHEME,ENVIRONMENT,CONSTRUCTION-MAIN CONTRACTORS,J N BENTLEY LIMITED,0000212777,93267.39
DEPARTMENT OF ENERGY AND CLIMATE CHANGE,THE COAL AUTHORITY,28/07/2014,CURR YR ADDNS MINEWATER SCHEME,ENVIRONMENT,PROF SER TECH-ENGINEERING SER,MOTT MACDONALD LTD,0000212869,754.00
DEPARTMENT OF ENERGY AND CLIMATE CHANGE,THE COAL AUTHORITY,24/07/2014,CURR YR ADDNS MINEWATER SCHEME,ENVIRONMENT,CONSTRUCTION-MAIN CONTRACTORS,INTEGRATED WATER SERVICES,0000212876,17768.29
DEPARTMENT OF ENERGY AND CLIMATE CHANGE,THE COAL AUTHORITY,31/07/2014,CURR YR ADDNS MINEWATER SCHEME,ENVIRONMENT,PROF SER TECH-ENGINEERING SER,MOTT MACDONALD LTD,0000212946,4978.90
DEPARTMENT OF ENERGY AND CLIMATE CHANGE,THE COAL AUTHORITY,31/07/2014,CURR YR ADDNS MINEWATER SCHEME,ENVIRONMENT,PROF SER TECH-ENGINEERING SER,MOTT MACDONALD LTD,0000212947,4001.80
DEPARTMENT OF ENERGY AND CLIMATE CHANGE,THE COAL AUTHORITY,31/07/2014,CURR YR ADDNS MINEWATER SCHEME,ENVIRONMENT,PROF SER TECH-ENGINEERING SER,MOTT MACDONALD LTD,0000213132,1941.10
DEPARTMENT OF ENERGY AND CLIMATE CHANGE,THE COAL AUTHORITY,31/07/2014,CURR YR ADDNS MINEWATER SCHEME,ENVIRONMENT,PROF SER TECH-ENGINEERING SER,MOTT MACDONALD LTD,0000213133,1885.00
DEPARTMENT OF ENERGY AND CLIMATE CHANGE,THE COAL AUTHORITY,05/08/2014,CURR YR ADDNS MINEWATER SCHEME,ENVIRONMENT,PROF SER TECH-ENGINEERING SER,MOTT MACDONALD LTD,0000213138,203.00
DEPARTMENT OF ENERGY AND CLIMATE CHANGE,THE COAL AUTHORITY,12/08/2014,CURR YR ADDNS MINEWATER SCHEME,ENVIRONMENT,PROF SER TECH-ENGINEERING SER,ATKINS LIMITED,0000213250,2444.40
DEPARTMENT OF ENERGY AND CLIMATE CHANGE,THE COAL AUTHORITY,04/08/2014,CURR YR ADDNS MINEWATER SCHEME,ENVIRONMENT,CONSTRUCTION-MAIN CONTRACTORS,INTEGRATED WATER SERVICES,0000213270,8005.47
DEPARTMENT OF ENERGY AND CLIMATE CHANGE,THE COAL AUTHORITY,05/08/2014,CURR YR ADDNS MINEWATER SCHEME,ENVIRONMENT,CONSTRUCTION-MAIN CONTRACTORS,INTEGRATED WATER SERVICES,0000213278,4853.64
DEPARTMENT OF ENERGY AND CLIMATE CHANGE,THE COAL AUTHORITY,22/07/2014,CURR YR ADDNS MINEWATER SCHEME,ENVIRONMENT,CONSTRUCTION-MAIN CONTRACTORS,INTEGRATED WATER SERVICES,0000213285,13182.58
DEPARTMENT OF ENERGY AND CLIMATE CHANGE,THE COAL AUTHORITY,07/08/2014,CURR YR ADDNS MINEWATER SCHEME,ENVIRONMENT,CONSTRUCTION-MAIN CONTRACTORS,INTEGRATED WATER SERVICES,0000213294,24496.62
DEPARTMENT OF ENERGY AND CLIMATE CHANGE,THE COAL AUTHORITY,01/08/2014,CURR YR ADDNS SUBS PMPNG STNS,ENVIRONMENT,CONSTRUCTION-MAIN CONTRACTORS,SOIL ENGINEERING GEOSERVI,0000212958,319.68
DEPARTMENT OF ENERGY AND CLIMATE CHANGE,THE COAL AUTHORITY,31/07/2014,FARES - AIR,ENVIRONMENT,TRAVEL&EVENTS-AIR,REDFERN TRAVEL LTD,0000213077,653.61
DEPARTMENT OF ENERGY AND CLIMATE CHANGE,THE COAL AUTHORITY,31/07/2014,FARES - RAIL,ENVIRONMENT,TRAVEL&EVENTS-RAIL,REDFERN TRAVEL LTD,0000213077,666.70
DEPARTMENT OF ENERGY AND CLIMATE CHANGE,THE COAL AUTHORITY,31/07/2014,HOTEL ACCOMMODATION,ENVIRONMENT,TRAVEL&EVENTS-HOTELS,REDFERN TRAVEL LTD,0000213076,553.08
DEPARTMENT OF ENERGY AND CLIMATE CHANGE,THE COAL AUTHORITY,08/08/2014,HOTEL ACCOMMODATION,ENVIRONMENT,TRAVEL&EVENTS-HOTELS,COMPANY BARCLAYCARD,0000213358,70.83
DEPARTMENT OF ENERGY AND CLIMATE CHANGE,THE COAL AUTHORITY,08/08/2014,HOTEL ACCOMMODATION,ENVIRONMENT,TRAVEL&EVENTS-HOTELS,COMPANY BARCLAYCARD,0000213379,70.83
DEPARTMENT OF ENERGY AND CLIMATE CHANGE,THE COAL AUTHORITY,27/08/2014,INCIDENTALS,ENVIRONMENT,VEHICLES-FLEET MANAGEMENT,STAFF EXPENSES CONTROL,0000213489,6.63
DEPARTMENT OF ENERGY AND CLIMATE CHANGE,THE COAL AUTHORITY,27/08/2014,INCIDENTALS,ENVIRONMENT,VEHICLES-FLEET MANAGEMENT,STAFF EXPENSES CONTROL,0000213498,24.40
DEPARTMENT OF ENERGY AND CLIMATE CHANGE,THE COAL AUTHORITY,08/08/2014,INCIDENTALS,ENVIRONMENT,VEHICLES-FLEET MANAGEMENT,COMPANY BARCLAYCARD,0000213525,20.00
DEPARTMENT OF ENERGY AND CLIMATE CHANGE,THE COAL AUTHORITY,18/07/2014,IT-APPLICATIONS MANAGEMENT,ENVIRONMENT,ICT-SOFTWARE,CONJECT LIMITED,0000212632,1638.90
DEPARTMENT OF ENERGY AND CLIMATE CHANGE,THE COAL AUTHORITY,18/08/2014,LAND OPTION/ACCESS PAYMENTS,ENVIRONMENT,PROF SER-LEGAL SERVICES,OPTION FEE FOR PURCHASE,0000213226,5000.00
DEPARTMENT OF ENERGY AND CLIMATE CHANGE,THE COAL AUTHORITY,04/08/2014,LEGAL COSTS,ENVIRONMENT,PROF SER-LEGAL SERVICES,DLA PIPER UK LLP,0000213006,376.00
DEPARTMENT OF ENERGY AND CLIMATE CHANGE,THE COAL AUTHORITY,01/08/2014,LEGAL COSTS,ENVIRONMENT,PROF SER-LEGAL SERVICES,ANDERSON STRATHERN,0000213007,794.00
DEPARTMENT OF ENERGY AND CLIMATE CHANGE,THE COAL AUTHORITY,21/07/2014,LEGAL COSTS,ENVIRONMENT,PROF SER-LEGAL SERVICES,WALKER MORRIS,0000213008,1434.00
DEPARTMENT OF ENERGY AND CLIMATE CHANGE,THE COAL AUTHORITY,13/08/2014,LEGAL COSTS,ENVIRONMENT,PROF SER-LEGAL SERVICES,LANDLORDS LEGAL FEES,0000213087,1560.00
DEPARTMENT OF ENERGY AND CLIMATE CHANGE,THE COAL AUTHORITY,22/08/2014,LEGAL COSTS,ENVIRONMENT,PROF SER-LEGAL SERVICES,CONTRIBUTION TO BLINDWELL,0000213449,10000.00
DEPARTMENT OF ENERGY AND CLIMATE CHANGE,THE COAL AUTHORITY,23/07/2014,LIABILITY SITE MONTHLY MAINT,ENVIRONMENT,CONSTRUCTION-MAIN CONTRACTORS,INTEGRATED WATER SERVICES,0000212707,359.10
DEPARTMENT OF ENERGY AND CLIMATE CHANGE,THE COAL AUTHORITY,23/07/2014,LIABILITY SITE MONTHLY MAINT,ENVIRONMENT,CONSTRUCTION-MAIN CONTRACTORS,INTEGRATED WATER SERVICES,0000212708,1646.49
DEPARTMENT OF ENERGY AND CLIMATE CHANGE,THE COAL AUTHORITY,31/07/2014,LIABILITY SITE MONTHLY MAINT,ENVIRONMENT,PROF SER CNSLTNCY-PPM CNSLTNCY,INTEGRATED WATER SERVICES,0000212903,25675.96
DEPARTMENT OF ENERGY AND CLIMATE CHANGE,THE COAL AUTHORITY,31/07/2014,LIABILITY SITE MONTHLY MAINT,ENVIRONMENT,PROF SER CNSLTNCY-PPM CNSLTNCY,INTEGRATED WATER SERVICES,0000212904,5355.00
DEPARTMENT OF ENERGY AND CLIMATE CHANGE,THE COAL AUTHORITY,16/07/2014,M/W CHEMICAL OPERATIONAL,ENVIRONMENT,ENGRNG GOODS-NON-MDICL CHMCLS,BIOCHEMICA UK LIMITED,0000212640,786.00
DEPARTMENT OF ENERGY AND CLIMATE CHANGE,THE COAL AUTHORITY,21/07/2014,M/W CHEMICAL OPERATIONAL,ENVIRONMENT,ENGRNG GOODS-NON-MDICL CHMCLS,INTEGRATED WATER SERVICES,0000212647,1248.32
DEPARTMENT OF ENERGY AND CLIMATE CHANGE,THE COAL AUTHORITY,24/07/2014,M/W CHEMICAL OPERATIONAL,ENVIRONMENT,ENGRNG GOODS-NON-MDICL CHMCLS,UNIVAR B V,0000212699,3412.40
DEPARTMENT OF ENERGY AND CLIMATE CHANGE,THE COAL AUTHORITY,23/07/2014,M/W CHEMICAL OPERATIONAL,ENVIRONMENT,ENGRNG GOODS-NON-MDICL CHMCLS,BIOCHEMICA UK LIMITED,0000212704,786.00
DEPARTMENT OF ENERGY AND CLIMATE CHANGE,THE COAL AUTHORITY,23/07/2014,M/W CHEMICAL OPERATIONAL,ENVIRONMENT,ENGRNG GOODS-NON-MDICL CHMCLS,GOLDCREST CHEMICALS LIMIT,0000212788,3140.86
DEPARTMENT OF ENERGY AND CLIMATE CHANGE,THE COAL AUTHORITY,28/07/2014,M/W CHEMICAL OPERATIONAL,ENVIRONMENT,ENGRNG GOODS-NON-MDICL CHMCLS,BIOCHEMICA UK LIMITED,0000212882,524.00
DEPARTMENT OF ENERGY AND CLIMATE CHANGE,THE COAL AUTHORITY,28/07/2014,M/W CHEMICAL OPERATIONAL,ENVIRONMENT,ENGRNG GOODS-NON-MDICL CHMCLS,BIOCHEMICA UK LIMITED,0000212883,648.00
DEPARTMENT OF ENERGY AND CLIMATE CHANGE,THE COAL AUTHORITY,30/07/2014,M/W CHEMICAL OPERATIONAL,ENVIRONMENT,ENGRNG GOODS-NON-MDICL CHMCLS,BIOCHEMICA UK LIMITED,0000212884,786.00
DEPARTMENT OF ENERGY AND CLIMATE CHANGE,THE COAL AUTHORITY,08/08/2014,M/W CHEMICAL OPERATIONAL,ENVIRONMENT,ENGRNG GOODS-NON-MDICL CHMCLS,BIOCHEMICA UK LIMITED,0000213127,524.00
DEPARTMENT OF ENERGY AND CLIMATE CHANGE,THE COAL AUTHORITY,08/08/2014,M/W CHEMICAL OPERATIONAL,ENVIRONMENT,ENGRNG GOODS-NON-MDICL CHMCLS,BIOCHEMICA UK LIMITED,0000213129,2240.00
DEPARTMENT OF ENERGY AND CLIMATE CHANGE,THE COAL AUTHORITY,06/08/2014,M/W CHEMICAL OPERATIONAL,ENVIRONMENT,ENGRNG GOODS-NON-MDICL CHMCLS,BIOCHEMICA UK LIMITED,0000213130,524.00
DEPARTMENT OF ENERGY AND CLIMATE CHANGE,THE COAL AUTHORITY,31/07/2014,M/W CHEMICAL OPERATIONAL,ENVIRONMENT,ENGRNG GOODS-NON-MDICL CHMCLS,GOLDCREST CHEMICALS LIMIT,0000213131,3258.76
DEPARTMENT OF ENERGY AND CLIMATE CHANGE,THE COAL AUTHORITY,14/08/2014,M/W CHEMICAL OPERATIONAL,ENVIRONMENT,ENGRNG GOODS-NON-MDICL CHMCLS,UNIVAR B V,0000213234,5183.70
DEPARTMENT OF ENERGY AND CLIMATE CHANGE,THE COAL AUTHORITY,13/08/2014,M/W CHEMICAL OPERATIONAL,ENVIRONMENT,ENGRNG GOODS-NON-MDICL CHMCLS,BIOCHEMICA UK LIMITED,0000213235,524.00
DEPARTMENT OF ENERGY AND CLIMATE CHANGE,THE COAL AUTHORITY,18/08/2014,M/W CHEMICAL OPERATIONAL,ENVIRONMENT,ENGRNG GOODS-NON-MDICL CHMCLS,BIOCHEMICA UK LIMITED,0000213328,524.00
DEPARTMENT OF ENERGY AND CLIMATE CHANGE,THE COAL AUTHORITY,21/07/2014,M/W CNTRCTR-OPRTNL MNTLY TSKS,ENVIRONMENT,CONSTRUCTION-MAIN CONTRACTORS,INTEGRATED WATER SERVICES,0000212647,275.79
DEPARTMENT OF ENERGY AND CLIMATE CHANGE,THE COAL AUTHORITY,21/07/2014,M/W CNTRCTR-OPRTNL MNTLY TSKS,ENVIRONMENT,CONSTRUCTION-MAIN CONTRACTORS,INTEGRATED WATER SERVICES,0000212647,3062.89
DEPARTMENT OF ENERGY AND CLIMATE CHANGE,THE COAL AUTHORITY,21/07/2014,M/W CNTRCTR-OPRTNL MNTLY TSKS,ENVIRONMENT,CONSTRUCTION-MAIN CONTRACTORS,INTEGRATED WATER SERVICES,0000212647,1180.56
DEPARTMENT OF ENERGY AND CLIMATE CHANGE,THE COAL AUTHORITY,21/07/2014,M/W CNTRCTR-OPRTNL MNTLY TSKS,ENVIRONMENT,CONSTRUCTION-MAIN CONTRACTORS,INTEGRATED WATER SERVICES,0000212647,364.63
DEPARTMENT OF ENERGY AND CLIMATE CHANGE,THE COAL AUTHORITY,21/07/2014,M/W CNTRCTR-OPRTNL MNTLY TSKS,ENVIRONMENT,CONSTRUCTION-MAIN CONTRACTORS,INTEGRATED WATER SERVICES,0000212648,765.55
DEPARTMENT OF ENERGY AND CLIMATE CHANGE,THE COAL AUTHORITY,21/07/2014,M/W CNTRCTR-OPRTNL MNTLY TSKS,ENVIRONMENT,CONSTRUCTION-MAIN CONTRACTORS,INTEGRATED WATER SERVICES,0000212648,5198.67
DEPARTMENT OF ENERGY AND CLIMATE CHANGE,THE COAL AUTHORITY,17/07/2014,M/W CNTRCTR-OPRTNL MNTLY TSKS,ENVIRONMENT,CONSTRUCTION-MAIN CONTRACTORS,INTEGRATED WATER SERVICES,0000212651,1967.63
DEPARTMENT OF ENERGY AND CLIMATE CHANGE,THE COAL AUTHORITY,17/07/2014,M/W CNTRCTR-OPRTNL MNTLY TSKS,ENVIRONMENT,CONSTRUCTION-MAIN CONTRACTORS,INTEGRATED WATER SERVICES,0000212651,1439.15
DEPARTMENT OF ENERGY AND CLIMATE CHANGE,THE COAL AUTHORITY,17/07/2014,M/W CNTRCTR-OPRTNL MNTLY TSKS,ENVIRONMENT,CONSTRUCTION-MAIN CONTRACTORS,INTEGRATED WATER SERVICES,0000212651,3015.79
DEPARTMENT OF ENERGY AND CLIMATE CHANGE,THE COAL AUTHORITY,17/07/2014,M/W CNTRCTR-OPRTNL MNTLY TSKS,ENVIRONMENT,CONSTRUCTION-MAIN CONTRACTORS,INTEGRATED WATER SERVICES,0000212652,2278.91
DEPARTMENT OF ENERGY AND CLIMATE CHANGE,THE COAL AUTHORITY,17/07/2014,M/W CNTRCTR-OPRTNL MNTLY TSKS,ENVIRONMENT,CONSTRUCTION-MAIN CONTRACTORS,INTEGRATED WATER SERVICES,0000212653,2362.50
DEPARTMENT OF ENERGY AND CLIMATE CHANGE,THE COAL AUTHORITY,17/07/2014,M/W CNTRCTR-OPRTNL MNTLY TSKS,ENVIRONMENT,CONSTRUCTION-MAIN CONTRACTORS,INTEGRATED WATER SERVICES,0000212653,2192.14
DEPARTMENT OF ENERGY AND CLIMATE CHANGE,THE COAL AUTHORITY,17/07/2014,M/W CNTRCTR-OPRTNL MNTLY TSKS,ENVIRONMENT,CONSTRUCTION-MAIN CONTRACTORS,INTEGRATED WATER SERVICES,0000212653,133.53
DEPARTMENT OF ENERGY AND CLIMATE CHANGE,THE COAL AUTHORITY,23/07/2014,M/W CNTRCTR-OPRTNL MNTLY TSKS,ENVIRONMENT,CONSTRUCTION-MAIN CONTRACTORS,INTEGRATED WATER SERVICES,0000212707,204.76
DEPARTMENT OF ENERGY AND CLIMATE CHANGE,THE COAL AUTHORITY,23/07/2014,M/W CNTRCTR-OPRTNL MNTLY TSKS,ENVIRONMENT,CONSTRUCTION-MAIN CONTRACTORS,INTEGRATED WATER SERVICES,0000212709,535.56
DEPARTMENT OF ENERGY AND CLIMATE CHANGE,THE COAL AUTHORITY,23/07/2014,M/W CNTRCTR-OPRTNL MNTLY TSKS,ENVIRONMENT,CONSTRUCTION-MAIN CONTRACTORS,INTEGRATED WATER SERVICES,0000212709,339.84
DEPARTMENT OF ENERGY AND CLIMATE CHANGE,THE COAL AUTHORITY,23/07/2014,M/W CNTRCTR-OPRTNL MNTLY TSKS,ENVIRONMENT,ENERGY&UTILITIES-ELECTRICITY,INTEGRATED WATER SERVICES,0000212709,188.70
DEPARTMENT OF ENERGY AND CLIMATE CHANGE,THE COAL AUTHORITY,23/07/2014,M/W CNTRCTR-OPRTNL MNTLY TSKS,ENVIRONMENT,ENERGY&UTILITIES-ELECTRICITY,INTEGRATED WATER SERVICES,0000212709,500.07
DEPARTMENT OF ENERGY AND CLIMATE CHANGE,THE COAL AUTHORITY,23/07/2014,M/W CNTRCTR-OPRTNL MNTLY TSKS,ENVIRONMENT,ENERGY&UTILITIES-ELECTRICITY,INTEGRATED WATER SERVICES,0000212709,351.57
DEPARTMENT OF ENERGY AND CLIMATE CHANGE,THE COAL AUTHORITY,23/07/2014,M/W CNTRCTR-OPRTNL MNTLY TSKS,ENVIRONMENT,CONSTRUCTION-MAIN CONTRACTORS,INTEGRATED WATER SERVICES,0000212711,1161.20
DEPARTMENT OF ENERGY AND CLIMATE CHANGE,THE COAL AUTHORITY,23/07/2014,M/W CNTRCTR-OPRTNL MNTLY TSKS,ENVIRONMENT,CONSTRUCTION-MAIN CONTRACTORS,INTEGRATED WATER SERVICES,0000212711,1860.23
DEPARTMENT OF ENERGY AND CLIMATE CHANGE,THE COAL AUTHORITY,23/07/2014,M/W CNTRCTR-OPRTNL MNTLY TSKS,ENVIRONMENT,CONSTRUCTION-MAIN CONTRACTORS,INTEGRATED WATER SERVICES,0000212711,218.81
DEPARTMENT OF ENERGY AND CLIMATE CHANGE,THE COAL AUTHORITY,23/07/2014,M/W CNTRCTR-OPRTNL MNTLY TSKS,ENVIRONMENT,CONSTRUCTION-MAIN CONTRACTORS,INTEGRATED WATER SERVICES,0000212873,1098.46
DEPARTMENT OF ENERGY AND CLIMATE CHANGE,THE COAL AUTHORITY,23/07/2014,M/W CNTRCTR-OPRTNL MNTLY TSKS,ENVIRONMENT,CONSTRUCTION-MAIN CONTRACTORS,INTEGRATED WATER SERVICES,0000212875,72.54
DEPARTMENT OF ENERGY AND CLIMATE CHANGE,THE COAL AUTHORITY,28/07/2014,M/W CNTRCTR-OPRTNL MNTLY TSKS,ENVIRONMENT,CONSTRUCTION-MAIN CONTRACTORS,INTEGRATED WATER SERVICES,0000212879,5083.09
DEPARTMENT OF ENERGY AND CLIMATE CHANGE,THE COAL AUTHORITY,11/08/2014,M/W CNTRCTR-OPRTNL MNTLY TSKS,ENVIRONMENT,CONSTRUCTION-MAIN CONTRACTORS,INTEGRATED WATER SERVICES,0000213275,2200.08
DEPARTMENT OF ENERGY AND CLIMATE CHANGE,THE COAL AUTHORITY,05/08/2014,M/W CNTRCTR-OPRTNL MNTLY TSKS,ENVIRONMENT,CONSTRUCTION-MAIN CONTRACTORS,INTEGRATED WATER SERVICES,0000213277,1695.31
DEPARTMENT OF ENERGY AND CLIMATE CHANGE,THE COAL AUTHORITY,05/08/2014,M/W CNTRCTR-OPRTNL MNTLY TSKS,ENVIRONMENT,CONSTRUCTION-MAIN CONTRACTORS,INTEGRATED WATER SERVICES,0000213277,3329.04
DEPARTMENT OF ENERGY AND CLIMATE CHANGE,THE COAL AUTHORITY,05/08/2014,M/W CNTRCTR-OPRTNL MNTLY TSKS,ENVIRONMENT,CONSTRUCTION-MAIN CONTRACTORS,INTEGRATED WATER SERVICES,0000213280,566.67
DEPARTMENT OF ENERGY AND CLIMATE CHANGE,THE COAL AUTHORITY,05/08/2014,M/W CNTRCTR-OPRTNL MNTLY TSKS,ENVIRONMENT,CONSTRUCTION-MAIN CONTRACTORS,INTEGRATED WATER SERVICES,0000213284,439.78
DEPARTMENT OF ENERGY AND CLIMATE CHANGE,THE COAL AUTHORITY,04/08/2014,M/W CNTRCTR-OPRTNL MNTLY TSKS,ENVIRONMENT,CONSTRUCTION-MAIN CONTRACTORS,INTEGRATED WATER SERVICES,0000213287,1271.25
DEPARTMENT OF ENERGY AND CLIMATE CHANGE,THE COAL AUTHORITY,04/08/2014,M/W CNTRCTR-OPRTNL MNTLY TSKS,ENVIRONMENT,CONSTRUCTION-MAIN CONTRACTORS,INTEGRATED WATER SERVICES,0000213287,14.06
DEPARTMENT OF ENERGY AND CLIMATE CHANGE,THE COAL AUTHORITY,04/08/2014,M/W CNTRCTR-OPRTNL MNTLY TSKS,ENVIRONMENT,CONSTRUCTION-MAIN CONTRACTORS,INTEGRATED WATER SERVICES,0000213287,336.99
DEPARTMENT OF ENERGY AND CLIMATE CHANGE,THE COAL AUTHORITY,04/08/2014,M/W CNTRCTR-OPRTNL MNTLY TSKS,ENVIRONMENT,CONSTRUCTION-MAIN CONTRACTORS,INTEGRATED WATER SERVICES,0000213287,3587.06
DEPARTMENT OF ENERGY AND CLIMATE CHANGE,THE COAL AUTHORITY,04/08/2014,M/W CNTRCTR-OPRTNL MNTLY TSKS,ENVIRONMENT,CONSTRUCTION-MAIN CONTRACTORS,INTEGRATED WATER SERVICES,0000213287,1239.75
DEPARTMENT OF ENERGY AND CLIMATE CHANGE,THE COAL AUTHORITY,06/08/2014,M/W CNTRCTR-OPRTNL MNTLY TSKS,ENVIRONMENT,CONSTRUCTION-MAIN CONTRACTORS,INTEGRATED WATER SERVICES,0000213291,303.94
DEPARTMENT OF ENERGY AND CLIMATE CHANGE,THE COAL AUTHORITY,06/08/2014,M/W CNTRCTR-OPRTNL MNTLY TSKS,ENVIRONMENT,CONSTRUCTION-MAIN CONTRACTORS,INTEGRATED WATER SERVICES,0000213291,1487.21
DEPARTMENT OF ENERGY AND CLIMATE CHANGE,THE COAL AUTHORITY,31/07/2014,M/W CONTRCTR OPRNTL MTHLY MAIN,ENVIRONMENT,PROF SER CNSLTNCY-PPM CNSLTNCY,INTEGRATED WATER SERVICES,0000212899,786.40
DEPARTMENT OF ENERGY AND CLIMATE CHANGE,THE COAL AUTHORITY,31/07/2014,M/W CONTRCTR OPRNTL MTHLY MAIN,ENVIRONMENT,PROF SER CNSLTNCY-PPM CNSLTNCY,INTEGRATED WATER SERVICES,0000212899,314.56
DEPARTMENT OF ENERGY AND CLIMATE CHANGE,THE COAL AUTHORITY,31/07/2014,M/W CONTRCTR OPRNTL MTHLY MAIN,ENVIRONMENT,PROF SER CNSLTNCY-PPM CNSLTNCY,INTEGRATED WATER SERVICES,0000212899,786.40
DEPARTMENT OF ENERGY AND CLIMATE CHANGE,THE COAL AUTHORITY,31/07/2014,M/W CONTRCTR OPRNTL MTHLY MAIN,ENVIRONMENT,PROF SER CNSLTNCY-PPM CNSLTNCY,INTEGRATED WATER SERVICES,0000212899,314.56
DEPARTMENT OF ENERGY AND CLIMATE CHANGE,THE COAL AUTHORITY,31/07/2014,M/W CONTRCTR OPRNTL MTHLY MAIN,ENVIRONMENT,PROF SER CNSLTNCY-PPM CNSLTNCY,INTEGRATED WATER SERVICES,0000212899,786.40
DEPARTMENT OF ENERGY AND CLIMATE CHANGE,THE COAL AUTHORITY,31/07/2014,M/W CONTRCTR OPRNTL MTHLY MAIN,ENVIRONMENT,PROF SER CNSLTNCY-PPM CNSLTNCY,INTEGRATED WATER SERVICES,0000212899,104.86
DEPARTMENT OF ENERGY AND CLIMATE CHANGE,THE COAL AUTHORITY,31/07/2014,M/W CONTRCTR OPRNTL MTHLY MAIN,ENVIRONMENT,PROF SER CNSLTNCY-PPM CNSLTNCY,INTEGRATED WATER SERVICES,0000212899,52.43
DEPARTMENT OF ENERGY AND CLIMATE CHANGE,THE COAL AUTHORITY,31/07/2014,M/W CONTRCTR OPRNTL MTHLY MAIN,ENVIRONMENT,PROF SER CNSLTNCY-PPM CNSLTNCY,INTEGRATED WATER SERVICES,0000212899,39.32
DEPARTMENT OF ENERGY AND CLIMATE CHANGE,THE COAL AUTHORITY,31/07/2014,M/W CONTRCTR OPRNTL MTHLY MAIN,ENVIRONMENT,PROF SER CNSLTNCY-PPM CNSLTNCY,INTEGRATED WATER SERVICES,0000212899,52.43
DEPARTMENT OF ENERGY AND CLIMATE CHANGE,THE COAL AUTHORITY,31/07/2014,M/W CONTRCTR OPRNTL MTHLY MAIN,ENVIRONMENT,PROF SER CNSLTNCY-PPM CNSLTNCY,INTEGRATED WATER SERVICES,0000212899,52.43
DEPARTMENT OF ENERGY AND CLIMATE CHANGE,THE COAL AUTHORITY,31/07/2014,M/W CONTRCTR OPRNTL MTHLY MAIN,ENVIRONMENT,PROF SER CNSLTNCY-PPM CNSLTNCY,INTEGRATED WATER SERVICES,0000212899,39.32
DEPARTMENT OF ENERGY AND CLIMATE CHANGE,THE COAL AUTHORITY,31/07/2014,M/W CONTRCTR OPRNTL MTHLY MAIN,ENVIRONMENT,PROF SER CNSLTNCY-PPM CNSLTNCY,INTEGRATED WATER SERVICES,0000212899,104.86
DEPARTMENT OF ENERGY AND CLIMATE CHANGE,THE COAL AUTHORITY,31/07/2014,M/W CONTRCTR OPRNTL MTHLY MAIN,ENVIRONMENT,PROF SER CNSLTNCY-PPM CNSLTNCY,INTEGRATED WATER SERVICES,0000212899,209.72
DEPARTMENT OF ENERGY AND CLIMATE CHANGE,THE COAL AUTHORITY,31/07/2014,M/W CONTRCTR OPRNTL MTHLY MAIN,ENVIRONMENT,PROF SER CNSLTNCY-PPM CNSLTNCY,INTEGRATED WATER SERVICES,0000212899,786.40
DEPARTMENT OF ENERGY AND CLIMATE CHANGE,THE COAL AUTHORITY,31/07/2014,M/W CONTRCTR OPRNTL MTHLY MAIN,ENVIRONMENT,PROF SER CNSLTNCY-PPM CNSLTNCY,INTEGRATED WATER SERVICES,0000212899,104.86
DEPARTMENT OF ENERGY AND CLIMATE CHANGE,THE COAL AUTHORITY,31/07/2014,M/W CONTRCTR OPRNTL MTHLY MAIN,ENVIRONMENT,PROF SER CNSLTNCY-PPM CNSLTNCY,INTEGRATED WATER SERVICES,0000212899,209.72
DEPARTMENT OF ENERGY AND CLIMATE CHANGE,THE COAL AUTHORITY,31/07/2014,M/W CONTRCTR OPRNTL MTHLY MAIN,ENVIRONMENT,PROF SER CNSLTNCY-PPM CNSLTNCY,INTEGRATED WATER SERVICES,0000212899,524.30
DEPARTMENT OF ENERGY AND CLIMATE CHANGE,THE COAL AUTHORITY,31/07/2014,M/W CONTRCTR OPRNTL MTHLY MAIN,ENVIRONMENT,PROF SER CNSLTNCY-PPM CNSLTNCY,INTEGRATED WATER SERVICES,0000212899,104.86
DEPARTMENT OF ENERGY AND CLIMATE CHANGE,THE COAL AUTHORITY,31/07/2014,M/W CONTRCTR OPRNTL MTHLY MAIN,ENVIRONMENT,PROF SER CNSLTNCY-PPM CNSLTNCY,INTEGRATED WATER SERVICES,0000212899,4194.20
DEPARTMENT OF ENERGY AND CLIMATE CHANGE,THE COAL AUTHORITY,31/07/2014,M/W CONTRCTR OPRNTL MTHLY MAIN,ENVIRONMENT,PROF SER CNSLTNCY-PPM CNSLTNCY,INTEGRATED WATER SERVICES,0000212899,209.72
DEPARTMENT OF ENERGY AND CLIMATE CHANGE,THE COAL AUTHORITY,31/07/2014,M/W CONTRCTR OPRNTL MTHLY MAIN,ENVIRONMENT,PROF SER CNSLTNCY-PPM CNSLTNCY,INTEGRATED WATER SERVICES,0000212899,314.56
DEPARTMENT OF ENERGY AND CLIMATE CHANGE,THE COAL AUTHORITY,31/07/2014,M/W CONTRCTR OPRNTL MTHLY MAIN,ENVIRONMENT,PROF SER CNSLTNCY-PPM CNSLTNCY,INTEGRATED WATER SERVICES,0000212899,524.30
DEPARTMENT OF ENERGY AND CLIMATE CHANGE,THE COAL AUTHORITY,31/07/2014,M/W CONTRCTR OPRNTL MTHLY MAIN,ENVIRONMENT,PROF SER CNSLTNCY-PPM CNSLTNCY,INTEGRATED WATER SERVICES,0000212899,157.28
DEPARTMENT OF ENERGY AND CLIMATE CHANGE,THE COAL AUTHORITY,31/07/2014,M/W CONTRCTR OPRNTL MTHLY MAIN,ENVIRONMENT,PROF SER CNSLTNCY-PPM CNSLTNCY,INTEGRATED WATER SERVICES,0000212899,209.72
DEPARTMENT OF ENERGY AND CLIMATE CHANGE,THE COAL AUTHORITY,31/07/2014,M/W CONTRCTR OPRNTL MTHLY MAIN,ENVIRONMENT,PROF SER CNSLTNCY-PPM CNSLTNCY,INTEGRATED WATER SERVICES,0000212899,524.30
DEPARTMENT OF ENERGY AND CLIMATE CHANGE,THE COAL AUTHORITY,31/07/2014,M/W CONTRCTR OPRNTL MTHLY MAIN,ENVIRONMENT,PROF SER CNSLTNCY-PPM CNSLTNCY,INTEGRATED WATER SERVICES,0000212900,314.56
DEPARTMENT OF ENERGY AND CLIMATE CHANGE,THE COAL AUTHORITY,31/07/2014,M/W CONTRCTR OPRNTL MTHLY MAIN,ENVIRONMENT,PROF SER CNSLTNCY-PPM CNSLTNCY,INTEGRATED WATER SERVICES,0000212900,209.72
DEPARTMENT OF ENERGY AND CLIMATE CHANGE,THE COAL AUTHORITY,31/07/2014,M/W CONTRCTR OPRNTL MTHLY MAIN,ENVIRONMENT,PROF SER CNSLTNCY-PPM CNSLTNCY,INTEGRATED WATER SERVICES,0000212900,630.76
DEPARTMENT OF ENERGY AND CLIMATE CHANGE,THE COAL AUTHORITY,31/07/2014,M/W CONTRCTR OPRNTL MTHLY MAIN,ENVIRONMENT,PROF SER CNSLTNCY-PPM CNSLTNCY,INTEGRATED WATER SERVICES,0000212900,786.40
DEPARTMENT OF ENERGY AND CLIMATE CHANGE,THE COAL AUTHORITY,31/07/2014,M/W CONTRCTR OPRNTL MTHLY MAIN,ENVIRONMENT,PROF SER CNSLTNCY-PPM CNSLTNCY,INTEGRATED WATER SERVICES,0000212900,1341.39
DEPARTMENT OF ENERGY AND CLIMATE CHANGE,THE COAL AUTHORITY,31/07/2014,M/W CONTRCTR OPRNTL MTHLY MAIN,ENVIRONMENT,PROF SER CNSLTNCY-PPM CNSLTNCY,INTEGRATED WATER SERVICES,0000212900,786.40
DEPARTMENT OF ENERGY AND CLIMATE CHANGE,THE COAL AUTHORITY,31/07/2014,M/W CONTRCTR OPRNTL MTHLY MAIN,ENVIRONMENT,PROF SER CNSLTNCY-PPM CNSLTNCY,INTEGRATED WATER SERVICES,0000212900,209.72
DEPARTMENT OF ENERGY AND CLIMATE CHANGE,THE COAL AUTHORITY,31/07/2014,M/W CONTRCTR OPRNTL MTHLY MAIN,ENVIRONMENT,PROF SER CNSLTNCY-PPM CNSLTNCY,INTEGRATED WATER SERVICES,0000212900,314.56
DEPARTMENT OF ENERGY AND CLIMATE CHANGE,THE COAL AUTHORITY,31/07/2014,M/W CONTRCTR OPRNTL MTHLY MAIN,ENVIRONMENT,PROF SER CNSLTNCY-PPM CNSLTNCY,INTEGRATED WATER SERVICES,0000212900,411.08
DEPARTMENT OF ENERGY AND CLIMATE CHANGE,THE COAL AUTHORITY,31/07/2014,M/W CONTRCTR OPRNTL MTHLY MAIN,ENVIRONMENT,PROF SER CNSLTNCY-PPM CNSLTNCY,INTEGRATED WATER SERVICES,0000212900,314.56
DEPARTMENT OF ENERGY AND CLIMATE CHANGE,THE COAL AUTHORITY,31/07/2014,M/W CONTRCTR OPRNTL MTHLY MAIN,ENVIRONMENT,PROF SER CNSLTNCY-PPM CNSLTNCY,INTEGRATED WATER SERVICES,0000212900,314.58
DEPARTMENT OF ENERGY AND CLIMATE CHANGE,THE COAL AUTHORITY,31/07/2014,M/W CONTRCTR OPRNTL MTHLY MAIN,ENVIRONMENT,PROF SER CNSLTNCY-PPM CNSLTNCY,INTEGRATED WATER SERVICES,0000212900,209.72
DEPARTMENT OF ENERGY AND CLIMATE CHANGE,THE COAL AUTHORITY,31/07/2014,M/W CONTRCTR OPRNTL MTHLY MAIN,ENVIRONMENT,PROF SER CNSLTNCY-PPM CNSLTNCY,INTEGRATED WATER SERVICES,0000212900,524.30
DEPARTMENT OF ENERGY AND CLIMATE CHANGE,THE COAL AUTHORITY,31/07/2014,M/W CONTRCTR OPRNTL MTHLY MAIN,ENVIRONMENT,PROF SER CNSLTNCY-PPM CNSLTNCY,INTEGRATED WATER SERVICES,0000212900,786.40
DEPARTMENT OF ENERGY AND CLIMATE CHANGE,THE COAL AUTHORITY,31/07/2014,M/W CONTRCTR OPRNTL MTHLY MAIN,ENVIRONMENT,PROF SER CNSLTNCY-PPM CNSLTNCY,INTEGRATED WATER SERVICES,0000212900,630.76
DEPARTMENT OF ENERGY AND CLIMATE CHANGE,THE COAL AUTHORITY,31/07/2014,M/W CONTRCTR OPRNTL MTHLY MAIN,ENVIRONMENT,PROF SER CNSLTNCY-PPM CNSLTNCY,INTEGRATED WATER SERVICES,0000212900,555.86
DEPARTMENT OF ENERGY AND CLIMATE CHANGE,THE COAL AUTHORITY,31/07/2014,M/W CONTRCTR OPRNTL MTHLY MAIN,ENVIRONMENT,PROF SER CNSLTNCY-PPM CNSLTNCY,INTEGRATED WATER SERVICES,0000212900,314.56
DEPARTMENT OF ENERGY AND CLIMATE CHANGE,THE COAL AUTHORITY,31/07/2014,M/W CONTRCTR OPRNTL MTHLY MAIN,ENVIRONMENT,PROF SER CNSLTNCY-PPM CNSLTNCY,INTEGRATED WATER SERVICES,0000212900,786.40
DEPARTMENT OF ENERGY AND CLIMATE CHANGE,THE COAL AUTHORITY,31/07/2014,M/W CONTRCTR OPRNTL MTHLY MAIN,ENVIRONMENT,PROF SER CNSLTNCY-PPM CNSLTNCY,INTEGRATED WATER SERVICES,0000212900,209.72
DEPARTMENT OF ENERGY AND CLIMATE CHANGE,THE COAL AUTHORITY,31/07/2014,M/W CONTRCTR OPRNTL MTHLY MAIN,ENVIRONMENT,PROF SER CNSLTNCY-PPM CNSLTNCY,INTEGRATED WATER SERVICES,0000212900,786.40
DEPARTMENT OF ENERGY AND CLIMATE CHANGE,THE COAL AUTHORITY,31/07/2014,M/W CONTRCTR OPRNTL MTHLY MAIN,ENVIRONMENT,PROF SER CNSLTNCY-PPM CNSLTNCY,INTEGRATED WATER SERVICES,0000212900,209.72
DEPARTMENT OF ENERGY AND CLIMATE CHANGE,THE COAL AUTHORITY,31/07/2014,M/W CONTRCTR OPRNTL MTHLY MAIN,ENVIRONMENT,PROF SER CNSLTNCY-PPM CNSLTNCY,INTEGRATED WATER SERVICES,0000212901,749.26
DEPARTMENT OF ENERGY AND CLIMATE CHANGE,THE COAL AUTHORITY,31/07/2014,M/W CONTRCTR OPRNTL MTHLY MAIN,ENVIRONMENT,PROF SER CNSLTNCY-PPM CNSLTNCY,INTEGRATED WATER SERVICES,0000212901,2359.20
DEPARTMENT OF ENERGY AND CLIMATE CHANGE,THE COAL AUTHORITY,31/07/2014,M/W CONTRCTR OPRNTL MTHLY MAIN,ENVIRONMENT,PROF SER CNSLTNCY-PPM CNSLTNCY,INTEGRATED WATER SERVICES,0000212901,5821.00
DEPARTMENT OF ENERGY AND CLIMATE CHANGE,THE COAL AUTHORITY,31/07/2014,M/W CONTRCTR OPRNTL MTHLY MAIN,ENVIRONMENT,PROF SER CNSLTNCY-PPM CNSLTNCY,INTEGRATED WATER SERVICES,0000212901,104.86
DEPARTMENT OF ENERGY AND CLIMATE CHANGE,THE COAL AUTHORITY,31/07/2014,M/W CONTRCTR OPRNTL MTHLY MAIN,ENVIRONMENT,PROF SER CNSLTNCY-PPM CNSLTNCY,INTEGRATED WATER SERVICES,0000212901,786.40
DEPARTMENT OF ENERGY AND CLIMATE CHANGE,THE COAL AUTHORITY,31/07/2014,M/W CONTRCTR OPRNTL MTHLY MAIN,ENVIRONMENT,PROF SER CNSLTNCY-PPM CNSLTNCY,INTEGRATED WATER SERVICES,0000212901,104.86
DEPARTMENT OF ENERGY AND CLIMATE CHANGE,THE COAL AUTHORITY,31/07/2014,M/W CONTRCTR OPRNTL MTHLY MAIN,ENVIRONMENT,PROF SER CNSLTNCY-PPM CNSLTNCY,INTEGRATED WATER SERVICES,0000212901,104.86
DEPARTMENT OF ENERGY AND CLIMATE CHANGE,THE COAL AUTHORITY,31/07/2014,M/W CONTRCTR OPRNTL MTHLY MAIN,ENVIRONMENT,PROF SER CNSLTNCY-PPM CNSLTNCY,INTEGRATED WATER SERVICES,0000212901,104.86
DEPARTMENT OF ENERGY AND CLIMATE CHANGE,THE COAL AUTHORITY,31/07/2014,M/W CONTRCTR OPRNTL MTHLY MAIN,ENVIRONMENT,PROF SER CNSLTNCY-PPM CNSLTNCY,INTEGRATED WATER SERVICES,0000212901,104.86
DEPARTMENT OF ENERGY AND CLIMATE CHANGE,THE COAL AUTHORITY,31/07/2014,M/W CONTRCTR OPRNTL MTHLY MAIN,ENVIRONMENT,PROF SER CNSLTNCY-PPM CNSLTNCY,INTEGRATED WATER SERVICES,0000212901,104.86
DEPARTMENT OF ENERGY AND CLIMATE CHANGE,THE COAL AUTHORITY,31/07/2014,M/W CONTRCTR OPRNTL MTHLY MAIN,ENVIRONMENT,PROF SER CNSLTNCY-PPM CNSLTNCY,INTEGRATED WATER SERVICES,0000212901,314.56
DEPARTMENT OF ENERGY AND CLIMATE CHANGE,THE COAL AUTHORITY,31/07/2014,M/W CONTRCTR OPRNTL MTHLY MAIN,ENVIRONMENT,PROF SER CNSLTNCY-PPM CNSLTNCY,INTEGRATED WATER SERVICES,0000212901,104.86
DEPARTMENT OF ENERGY AND CLIMATE CHANGE,THE COAL AUTHORITY,31/07/2014,M/W CONTRCTR OPRNTL MTHLY MAIN,ENVIRONMENT,PROF SER CNSLTNCY-PPM CNSLTNCY,INTEGRATED WATER SERVICES,0000212901,314.56
DEPARTMENT OF ENERGY AND CLIMATE CHANGE,THE COAL AUTHORITY,31/07/2014,M/W CONTRCTR OPRNTL MTHLY MAIN,ENVIRONMENT,PROF SER CNSLTNCY-PPM CNSLTNCY,INTEGRATED WATER SERVICES,0000212904,5355.00
DEPARTMENT OF ENERGY AND CLIMATE CHANGE,THE COAL AUTHORITY,31/07/2014,M/W CONTRCTR OPRNTL MTHLY MAIN,ENVIRONMENT,PROF SER CNSLTNCY-PPM CNSLTNCY,INTEGRATED WATER SERVICES,0000212917,3822.75
DEPARTMENT OF ENERGY AND CLIMATE CHANGE,THE COAL AUTHORITY,31/07/2014,M/W CONTRCTR OPRNTL MTHLY MAIN,ENVIRONMENT,PROF SER CNSLTNCY-PPM CNSLTNCY,INTEGRATED WATER SERVICES,0000212917,104.86
DEPARTMENT OF ENERGY AND CLIMATE CHANGE,THE COAL AUTHORITY,31/07/2014,M/W CONTRCTR OPRNTL MTHLY MAIN,ENVIRONMENT,PROF SER CNSLTNCY-PPM CNSLTNCY,INTEGRATED WATER SERVICES,0000212917,104.86
DEPARTMENT OF ENERGY AND CLIMATE CHANGE,THE COAL AUTHORITY,31/07/2014,M/W CONTRCTR OPRNTL MTHLY MAIN,ENVIRONMENT,PROF SER CNSLTNCY-PPM CNSLTNCY,INTEGRATED WATER SERVICES,0000212917,104.86
DEPARTMENT OF ENERGY AND CLIMATE CHANGE,THE COAL AUTHORITY,31/07/2014,M/W CONTRCTR OPRNTL MTHLY MAIN,ENVIRONMENT,PROF SER CNSLTNCY-PPM CNSLTNCY,INTEGRATED WATER SERVICES,0000212917,104.86
DEPARTMENT OF ENERGY AND CLIMATE CHANGE,THE COAL AUTHORITY,31/07/2014,M/W CONTRCTR OPRNTL MTHLY MAIN,ENVIRONMENT,PROF SER CNSLTNCY-PPM CNSLTNCY,INTEGRATED WATER SERVICES,0000212917,1048.60
DEPARTMENT OF ENERGY AND CLIMATE CHANGE,THE COAL AUTHORITY,31/07/2014,M/W CONTRCTR OPRNTL MTHLY MAIN,ENVIRONMENT,PROF SER CNSLTNCY-PPM CNSLTNCY,INTEGRATED WATER SERVICES,0000212917,524.30
DEPARTMENT OF ENERGY AND CLIMATE CHANGE,THE COAL AUTHORITY,31/07/2014,M/W CONTRCTR OPRNTL MTHLY MAIN,ENVIRONMENT,PROF SER CNSLTNCY-PPM CNSLTNCY,INTEGRATED WATER SERVICES,0000212917,209.72
DEPARTMENT OF ENERGY AND CLIMATE CHANGE,THE COAL AUTHORITY,31/07/2014,M/W CONTRCTR OPRNTL MTHLY MAIN,ENVIRONMENT,PROF SER CNSLTNCY-PPM CNSLTNCY,INTEGRATED WATER SERVICES,0000212917,104.86
DEPARTMENT OF ENERGY AND CLIMATE CHANGE,THE COAL AUTHORITY,31/07/2014,M/W CONTRCTR OPRNTL MTHLY MAIN,ENVIRONMENT,PROF SER CNSLTNCY-PPM CNSLTNCY,INTEGRATED WATER SERVICES,0000212917,104.86
DEPARTMENT OF ENERGY AND CLIMATE CHANGE,THE COAL AUTHORITY,31/07/2014,M/W CONTRCTR OPRNTL MTHLY MAIN,ENVIRONMENT,PROF SER CNSLTNCY-PPM CNSLTNCY,INTEGRATED WATER SERVICES,0000212917,104.86
DEPARTMENT OF ENERGY AND CLIMATE CHANGE,THE COAL AUTHORITY,31/07/2014,M/W CONTRCTR OPRNTL MTHLY MAIN,ENVIRONMENT,PROF SER CNSLTNCY-PPM CNSLTNCY,INTEGRATED WATER SERVICES,0000212917,104.86
DEPARTMENT OF ENERGY AND CLIMATE CHANGE,THE COAL AUTHORITY,31/07/2014,M/W CONTRCTR OPRNTL MTHLY MAIN,ENVIRONMENT,PROF SER CNSLTNCY-PPM CNSLTNCY,INTEGRATED WATER SERVICES,0000212917,209.72
DEPARTMENT OF ENERGY AND CLIMATE CHANGE,THE COAL AUTHORITY,31/07/2014,M/W CONTRCTR OPRNTL MTHLY MAIN,ENVIRONMENT,PROF SER CNSLTNCY-PPM CNSLTNCY,INTEGRATED WATER SERVICES,0000212917,314.58
DEPARTMENT OF ENERGY AND CLIMATE CHANGE,THE COAL AUTHORITY,31/07/2014,M/W CONTRCTR OPRNTL MTHLY MAIN,ENVIRONMENT,WASTE MANAGEMENT-WSTE MNGT SER,PREMIER WASTE RECYCLING L,0000213236,40.30
DEPARTMENT OF ENERGY AND CLIMATE CHANGE,THE COAL AUTHORITY,05/08/2014,M/W CONTRCTR OPRNTL MTHLY MAIN,ENVIRONMENT,CONSTRUCTION-MAIN CONTRACTORS,INTEGRATED WATER SERVICES,0000213281,967.50
DEPARTMENT OF ENERGY AND CLIMATE CHANGE,THE COAL AUTHORITY,05/08/2014,M/W CONTRCTR OPRNTL MTHLY MAIN,ENVIRONMENT,CONSTRUCTION-MAIN CONTRACTORS,INTEGRATED WATER SERVICES,0000213281,1536.75
DEPARTMENT OF ENERGY AND CLIMATE CHANGE,THE COAL AUTHORITY,05/08/2014,M/W CONTRCTR OPRNTL MTHLY MAIN,ENVIRONMENT,CONSTRUCTION-MAIN CONTRACTORS,INTEGRATED WATER SERVICES,0000213281,500.98
DEPARTMENT OF ENERGY AND CLIMATE CHANGE,THE COAL AUTHORITY,18/08/2014,M/W LAND AGENTS (AQUISITIONS),ENVIRONMENT,PROF SER-LEGAL SERVICES,EXCLUSIVITY AGREEMENT FOR,0000213228,6200.00
DEPARTMENT OF ENERGY AND CLIMATE CHANGE,THE COAL AUTHORITY,11/08/2014,M/W LANDSCAPING,ENVIRONMENT,CONSTRUCTION-MAIN CONTRACTORS,LOWTHER FORESTRY GROUP LI,0000213242,1950.00
DEPARTMENT OF ENERGY AND CLIMATE CHANGE,THE COAL AUTHORITY,05/08/2014,M/W LANDSCAPING,ENVIRONMENT,PROF SER-ENVIRONMENTAL SRVICES,INTEGRATED WATER SERVICES,0000213282,826.31
DEPARTMENT OF ENERGY AND CLIMATE CHANGE,THE COAL AUTHORITY,05/08/2014,M/W LANDSCAPING,ENVIRONMENT,PROF SER-ENVIRONMENTAL SRVICES,INTEGRATED WATER SERVICES,0000213282,1020.09
DEPARTMENT OF ENERGY AND CLIMATE CHANGE,THE COAL AUTHORITY,05/08/2014,M/W LANDSCAPING,ENVIRONMENT,PROF SER-ENVIRONMENTAL SRVICES,INTEGRATED WATER SERVICES,0000213282,482.30
DEPARTMENT OF ENERGY AND CLIMATE CHANGE,THE COAL AUTHORITY,05/08/2014,M/W LANDSCAPING,ENVIRONMENT,PROF SER-ENVIRONMENTAL SRVICES,INTEGRATED WATER SERVICES,0000213282,1096.14
DEPARTMENT OF ENERGY AND CLIMATE CHANGE,THE COAL AUTHORITY,05/08/2014,M/W LANDSCAPING,ENVIRONMENT,PROF SER-ENVIRONMENTAL SRVICES,INTEGRATED WATER SERVICES,0000213282,939.66
DEPARTMENT OF ENERGY AND CLIMATE CHANGE,THE COAL AUTHORITY,05/08/2014,M/W LANDSCAPING,ENVIRONMENT,PROF SER-ENVIRONMENTAL SRVICES,INTEGRATED WATER SERVICES,0000213282,1172.93
DEPARTMENT OF ENERGY AND CLIMATE CHANGE,THE COAL AUTHORITY,05/08/2014,M/W LANDSCAPING,ENVIRONMENT,PROF SER-ENVIRONMENTAL SRVICES,INTEGRATED WATER SERVICES,0000213282,830.70
DEPARTMENT OF ENERGY AND CLIMATE CHANGE,THE COAL AUTHORITY,05/08/2014,M/W LANDSCAPING,ENVIRONMENT,PROF SER-ENVIRONMENTAL SRVICES,INTEGRATED WATER SERVICES,0000213282,843.86
DEPARTMENT OF ENERGY AND CLIMATE CHANGE,THE COAL AUTHORITY,05/08/2014,M/W LANDSCAPING,ENVIRONMENT,PROF SER-ENVIRONMENTAL SRVICES,INTEGRATED WATER SERVICES,0000213282,595.24
DEPARTMENT OF ENERGY AND CLIMATE CHANGE,THE COAL AUTHORITY,05/08/2014,M/W LANDSCAPING,ENVIRONMENT,PROF SER-ENVIRONMENTAL SRVICES,INTEGRATED WATER SERVICES,0000213283,2134.01
DEPARTMENT OF ENERGY AND CLIMATE CHANGE,THE COAL AUTHORITY,05/08/2014,M/W LANDSCAPING,ENVIRONMENT,PROF SER-ENVIRONMENTAL SRVICES,INTEGRATED WATER SERVICES,0000213283,1169.72
DEPARTMENT OF ENERGY AND CLIMATE CHANGE,THE COAL AUTHORITY,05/08/2014,M/W LANDSCAPING,ENVIRONMENT,PROF SER-ENVIRONMENTAL SRVICES,INTEGRATED WATER SERVICES,0000213283,2317.50
DEPARTMENT OF ENERGY AND CLIMATE CHANGE,THE COAL AUTHORITY,05/08/2014,M/W LANDSCAPING,ENVIRONMENT,PROF SER-ENVIRONMENTAL SRVICES,INTEGRATED WATER SERVICES,0000213283,1733.06
DEPARTMENT OF ENERGY AND CLIMATE CHANGE,THE COAL AUTHORITY,05/08/2014,M/W LANDSCAPING,ENVIRONMENT,PROF SER-ENVIRONMENTAL SRVICES,INTEGRATED WATER SERVICES,0000213283,1065.66
DEPARTMENT OF ENERGY AND CLIMATE CHANGE,THE COAL AUTHORITY,05/08/2014,M/W LANDSCAPING,ENVIRONMENT,PROF SER-ENVIRONMENTAL SRVICES,INTEGRATED WATER SERVICES,0000213283,1239.47
DEPARTMENT OF ENERGY AND CLIMATE CHANGE,THE COAL AUTHORITY,05/08/2014,M/W LANDSCAPING,ENVIRONMENT,PROF SER-ENVIRONMENTAL SRVICES,INTEGRATED WATER SERVICES,0000213283,991.13
DEPARTMENT OF ENERGY AND CLIMATE CHANGE,THE COAL AUTHORITY,31/07/2014,M/W LANDSCAPING SUPERVISION,ENVIRONMENT,PROF SER TECH-ENGINEERING SER,JMC ENGINEERING (UK) LTD,0000213044,592.00
DEPARTMENT OF ENERGY AND CLIMATE CHANGE,THE COAL AUTHORITY,31/07/2014,M/W LANDSCAPING SUPERVISION,ENVIRONMENT,PROF SER TECH-ENGINEERING SER,JMC ENGINEERING (UK) LTD,0000213045,1302.40
DEPARTMENT OF ENERGY AND CLIMATE CHANGE,THE COAL AUTHORITY,31/07/2014,M/W LANDSCAPING SUPERVISION,ENVIRONMENT,PROF SER-ENVIRONMENTAL SRVICES,JMC ENGINEERING (UK) LTD,0000213046,244.20
DEPARTMENT OF ENERGY AND CLIMATE CHANGE,THE COAL AUTHORITY,29/06/2014,M/W NEW SCHEME - CONSULTANCY,ENVIRONMENT,CONSTRUCTION-CNSTRN SER PROVDR,J N BENTLEY LIMITED,0000212773,-2946.71
DEPARTMENT OF ENERGY AND CLIMATE CHANGE,THE COAL AUTHORITY,05/08/2014,M/W POWER COSTS,ENVIRONMENT,ENERGY&UTILITIES-ELECTRICITY,BRITISH GAS BUSINESS,0000213098,19.29
DEPARTMENT OF ENERGY AND CLIMATE CHANGE,THE COAL AUTHORITY,07/08/2014,M/W POWER COSTS,ENVIRONMENT,ENERGY&UTILITIES-ELECTRICITY,BRITISH GAS BUSINESS,0000213101,730.26
DEPARTMENT OF ENERGY AND CLIMATE CHANGE,THE COAL AUTHORITY,07/08/2014,M/W POWER COSTS,ENVIRONMENT,ENERGY&UTILITIES-ELECTRICITY,BRITISH GAS BUSINESS,0000213109,65.47
DEPARTMENT OF ENERGY AND CLIMATE CHANGE,THE COAL AUTHORITY,07/08/2014,M/W POWER COSTS,ENVIRONMENT,ENERGY&UTILITIES-ELECTRICITY,BRITISH GAS BUSINESS,0000213110,623.52
DEPARTMENT OF ENERGY AND CLIMATE CHANGE,THE COAL AUTHORITY,07/08/2014,M/W POWER COSTS,ENVIRONMENT,ENERGY&UTILITIES-ELECTRICITY,BRITISH GAS BUSINESS,0000213111,297.21
DEPARTMENT OF ENERGY AND CLIMATE CHANGE,THE COAL AUTHORITY,11/08/2014,M/W POWER COSTS,ENVIRONMENT,ENERGY&UTILITIES-ELECTRICITY,EDF ENERGY,0000213112,2135.98
DEPARTMENT OF ENERGY AND CLIMATE CHANGE,THE COAL AUTHORITY,11/08/2014,M/W POWER COSTS,ENVIRONMENT,ENERGY&UTILITIES-ELECTRICITY,EDF ENERGY,0000213112,14549.29
DEPARTMENT OF ENERGY AND CLIMATE CHANGE,THE COAL AUTHORITY,11/08/2014,M/W POWER COSTS,ENVIRONMENT,ENERGY&UTILITIES-ELECTRICITY,EDF ENERGY,0000213112,7795.00
DEPARTMENT OF ENERGY AND CLIMATE CHANGE,THE COAL AUTHORITY,11/08/2014,M/W POWER COSTS,ENVIRONMENT,ENERGY&UTILITIES-ELECTRICITY,EDF ENERGY,0000213112,5263.10
DEPARTMENT OF ENERGY AND CLIMATE CHANGE,THE COAL AUTHORITY,11/08/2014,M/W POWER COSTS,ENVIRONMENT,ENERGY&UTILITIES-ELECTRICITY,EDF ENERGY,0000213112,2655.19
DEPARTMENT OF ENERGY AND CLIMATE CHANGE,THE COAL AUTHORITY,11/08/2014,M/W POWER COSTS,ENVIRONMENT,ENERGY&UTILITIES-ELECTRICITY,EDF ENERGY,0000213112,2460.78
DEPARTMENT OF ENERGY AND CLIMATE CHANGE,THE COAL AUTHORITY,11/08/2014,M/W POWER COSTS,ENVIRONMENT,ENERGY&UTILITIES-ELECTRICITY,EDF ENERGY,0000213112,13406.04
DEPARTMENT OF ENERGY AND CLIMATE CHANGE,THE COAL AUTHORITY,11/08/2014,M/W POWER COSTS,ENVIRONMENT,ENERGY&UTILITIES-ELECTRICITY,EDF ENERGY,0000213112,10136.06
DEPARTMENT OF ENERGY AND CLIMATE CHANGE,THE COAL AUTHORITY,11/08/2014,M/W POWER COSTS,ENVIRONMENT,ENERGY&UTILITIES-ELECTRICITY,EDF ENERGY,0000213112,1169.38
DEPARTMENT OF ENERGY AND CLIMATE CHANGE,THE COAL AUTHORITY,11/08/2014,M/W POWER COSTS,ENVIRONMENT,ENERGY&UTILITIES-ELECTRICITY,EDF ENERGY,0000213112,6877.81
DEPARTMENT OF ENERGY AND CLIMATE CHANGE,THE COAL AUTHORITY,11/08/2014,M/W POWER COSTS,ENVIRONMENT,ENERGY&UTILITIES-ELECTRICITY,EDF ENERGY,0000213112,3370.07
DEPARTMENT OF ENERGY AND CLIMATE CHANGE,THE COAL AUTHORITY,11/08/2014,M/W POWER COSTS,ENVIRONMENT,ENERGY&UTILITIES-ELECTRICITY,EDF ENERGY,0000213112,4013.74
DEPARTMENT OF ENERGY AND CLIMATE CHANGE,THE COAL AUTHORITY,11/08/2014,M/W POWER COSTS,ENVIRONMENT,CONSTRUCTION-MAIN CONTRACTORS,EDF ENERGY,0000213112,13409.11
DEPARTMENT OF ENERGY AND CLIMATE CHANGE,THE COAL AUTHORITY,07/08/2014,M/W POWER COSTS,ENVIRONMENT,ENERGY&UTILITIES-ELECTRICITY,BRITISH GAS BUSINESS,0000213151,1319.16
DEPARTMENT OF ENERGY AND CLIMATE CHANGE,THE COAL AUTHORITY,07/08/2014,M/W POWER COSTS,ENVIRONMENT,ENERGY&UTILITIES-ELECTRICITY,BRITISH GAS BUSINESS,0000213152,1656.60
DEPARTMENT OF ENERGY AND CLIMATE CHANGE,THE COAL AUTHORITY,07/08/2014,M/W POWER COSTS,ENVIRONMENT,ENERGY&UTILITIES-ELECTRICITY,BRITISH GAS BUSINESS,0000213153,459.55
DEPARTMENT OF ENERGY AND CLIMATE CHANGE,THE COAL AUTHORITY,07/08/2014,M/W POWER COSTS,ENVIRONMENT,ENERGY&UTILITIES-ELECTRICITY,BRITISH GAS BUSINESS,0000213154,659.39
DEPARTMENT OF ENERGY AND CLIMATE CHANGE,THE COAL AUTHORITY,07/08/2014,M/W POWER COSTS,ENVIRONMENT,ENERGY&UTILITIES-ELECTRICITY,BRITISH GAS BUSINESS,0000213155,1525.69
DEPARTMENT OF ENERGY AND CLIMATE CHANGE,THE COAL AUTHORITY,07/08/2014,M/W POWER COSTS,ENVIRONMENT,ENERGY&UTILITIES-ELECTRICITY,BRITISH GAS BUSINESS,0000213156,191.74
DEPARTMENT OF ENERGY AND CLIMATE CHANGE,THE COAL AUTHORITY,07/08/2014,M/W POWER COSTS,ENVIRONMENT,ENERGY&UTILITIES-ELECTRICITY,BRITISH GAS BUSINESS,0000213157,2591.00
DEPARTMENT OF ENERGY AND CLIMATE CHANGE,THE COAL AUTHORITY,07/08/2014,M/W POWER COSTS,ENVIRONMENT,ENERGY&UTILITIES-ELECTRICITY,BRITISH GAS BUSINESS,0000213158,2469.81
DEPARTMENT OF ENERGY AND CLIMATE CHANGE,THE COAL AUTHORITY,07/08/2014,M/W POWER COSTS,ENVIRONMENT,ENERGY&UTILITIES-ELECTRICITY,BRITISH GAS BUSINESS,0000213159,3141.19
DEPARTMENT OF ENERGY AND CLIMATE CHANGE,THE COAL AUTHORITY,07/08/2014,M/W POWER COSTS,ENVIRONMENT,ENERGY&UTILITIES-ELECTRICITY,BRITISH GAS BUSINESS,0000213160,357.40
DEPARTMENT OF ENERGY AND CLIMATE CHANGE,THE COAL AUTHORITY,07/08/2014,M/W POWER COSTS,ENVIRONMENT,ENERGY&UTILITIES-ELECTRICITY,BRITISH GAS BUSINESS,0000213161,915.97
DEPARTMENT OF ENERGY AND CLIMATE CHANGE,THE COAL AUTHORITY,07/08/2014,M/W POWER COSTS,ENVIRONMENT,ENERGY&UTILITIES-ELECTRICITY,BRITISH GAS BUSINESS,0000213162,277.88
DEPARTMENT OF ENERGY AND CLIMATE CHANGE,THE COAL AUTHORITY,07/08/2014,M/W POWER COSTS,ENVIRONMENT,ENERGY&UTILITIES-ELECTRICITY,BRITISH GAS BUSINESS,0000213163,13.20
DEPARTMENT OF ENERGY AND CLIMATE CHANGE,THE COAL AUTHORITY,07/08/2014,M/W POWER COSTS,ENVIRONMENT,ENERGY&UTILITIES-ELECTRICITY,BRITISH GAS BUSINESS,0000213164,480.56
DEPARTMENT OF ENERGY AND CLIMATE CHANGE,THE COAL AUTHORITY,07/08/2014,M/W POWER COSTS,ENVIRONMENT,ENERGY&UTILITIES-ELECTRICITY,BRITISH GAS BUSINESS,0000213165,7738.27
DEPARTMENT OF ENERGY AND CLIMATE CHANGE,THE COAL AUTHORITY,07/08/2014,M/W POWER COSTS,ENVIRONMENT,ENERGY&UTILITIES-ELECTRICITY,BRITISH GAS BUSINESS,0000213166,1010.83
DEPARTMENT OF ENERGY AND CLIMATE CHANGE,THE COAL AUTHORITY,07/08/2014,M/W POWER COSTS,ENVIRONMENT,ENERGY&UTILITIES-ELECTRICITY,BRITISH GAS BUSINESS,0000213167,3130.94
DEPARTMENT OF ENERGY AND CLIMATE CHANGE,THE COAL AUTHORITY,07/08/2014,M/W POWER COSTS,ENVIRONMENT,ENERGY&UTILITIES-ELECTRICITY,BRITISH GAS BUSINESS,0000213168,1013.60
DEPARTMENT OF ENERGY AND CLIMATE CHANGE,THE COAL AUTHORITY,07/08/2014,M/W POWER COSTS,ENVIRONMENT,ENERGY&UTILITIES-ELECTRICITY,BRITISH GAS BUSINESS,0000213169,1639.34
DEPARTMENT OF ENERGY AND CLIMATE CHANGE,THE COAL AUTHORITY,07/08/2014,M/W POWER COSTS,ENVIRONMENT,ENERGY&UTILITIES-ELECTRICITY,BRITISH GAS BUSINESS,0000213170,90.43
DEPARTMENT OF ENERGY AND CLIMATE CHANGE,THE COAL AUTHORITY,07/08/2014,M/W POWER COSTS,ENVIRONMENT,ENERGY&UTILITIES-ELECTRICITY,BRITISH GAS BUSINESS,0000213171,413.94
DEPARTMENT OF ENERGY AND CLIMATE CHANGE,THE COAL AUTHORITY,07/08/2014,M/W POWER COSTS,ENVIRONMENT,ENERGY&UTILITIES-ELECTRICITY,BRITISH GAS BUSINESS,0000213172,310.51
DEPARTMENT OF ENERGY AND CLIMATE CHANGE,THE COAL AUTHORITY,07/08/2014,M/W POWER COSTS,ENVIRONMENT,ENERGY&UTILITIES-ELECTRICITY,BRITISH GAS BUSINESS,0000213173,79.01
DEPARTMENT OF ENERGY AND CLIMATE CHANGE,THE COAL AUTHORITY,12/08/2014,M/W POWER COSTS,ENVIRONMENT,ENERGY&UTILITIES-ELECTRICITY,PROFESSIONAL COST MANAGEM,0000213245,498.20
DEPARTMENT OF ENERGY AND CLIMATE CHANGE,THE COAL AUTHORITY,01/08/2014,M/W POWER COSTS,ENVIRONMENT,ENERGY&UTILITIES-ELECTRICITY,NATIONAL COAL MINING MUSE,0000213247,14941.21
DEPARTMENT OF ENERGY AND CLIMATE CHANGE,THE COAL AUTHORITY,26/06/2014,M/W PUMPING TESTS,ENVIRONMENT,CONSTRUCTION-MAIN CONTRACTORS,INTEGRATED WATER SERVICES,0000212174,12967.53
DEPARTMENT OF ENERGY AND CLIMATE CHANGE,THE COAL AUTHORITY,11/07/2014,M/W PUMPING TESTS,ENVIRONMENT,CONSTRUCTION-MAIN CONTRACTORS,INTEGRATED WATER SERVICES,0000212474,20669.51
DEPARTMENT OF ENERGY AND CLIMATE CHANGE,THE COAL AUTHORITY,18/07/2014,M/W PUMPING TESTS,ENVIRONMENT,CONSTRUCTION-MAIN CONTRACTORS,INTEGRATED WATER SERVICES,0000212643,3555.36
DEPARTMENT OF ENERGY AND CLIMATE CHANGE,THE COAL AUTHORITY,28/07/2014,M/W PUMPING TESTS,ENVIRONMENT,CONSTRUCTION-MAIN CONTRACTORS,INTEGRATED WATER SERVICES,0000212880,10573.29
DEPARTMENT OF ENERGY AND CLIMATE CHANGE,THE COAL AUTHORITY,31/07/2014,M/W PUMPING TESTS,ENVIRONMENT,CONSTRUCTION-MAIN CONTRACTORS,INTEGRATED WATER SERVICES,0000212954,13970.33
DEPARTMENT OF ENERGY AND CLIMATE CHANGE,THE COAL AUTHORITY,06/08/2014,M/W PUMPING TESTS,ENVIRONMENT,CONSTRUCTION-MAIN CONTRACTORS,INTEGRATED WATER SERVICES,0000213272,9395.43
DEPARTMENT OF ENERGY AND CLIMATE CHANGE,THE COAL AUTHORITY,11/08/2014,M/W PUMPING TESTS,ENVIRONMENT,CONSTRUCTION-MAIN CONTRACTORS,INTEGRATED WATER SERVICES,0000213273,4698.57
DEPARTMENT OF ENERGY AND CLIMATE CHANGE,THE COAL AUTHORITY,19/08/2014,M/W PUMPING TESTS,ENVIRONMENT,CONSTRUCTION-MAIN CONTRACTORS,INTEGRATED WATER SERVICES,0000213350,9370.16
DEPARTMENT OF ENERGY AND CLIMATE CHANGE,THE COAL AUTHORITY,13/08/2014,M/W RENTS PAYABLE,ENVIRONMENT,PROF SER-LEGAL SERVICES,LEASE FOR LAND AT MAINS,0000213087,1000.00
DEPARTMENT OF ENERGY AND CLIMATE CHANGE,THE COAL AUTHORITY,18/08/2014,M/W RENTS PAYABLE,ENVIRONMENT,PROF SER-LEGAL SERVICES,EXCLUSIVITY AGREEMENT FOR,0000213228,4800.00
DEPARTMENT OF ENERGY AND CLIMATE CHANGE,THE COAL AUTHORITY,14/07/2014,M/W SCOPING/FEASIBILITY/CONCEP,ENVIRONMENT,PROF SER TECH-ENGINEERING SER,ATKINS LIMITED,0000212629,5709.80
DEPARTMENT OF ENERGY AND CLIMATE CHANGE,THE COAL AUTHORITY,22/07/2014,M/W SCOPING/FEASIBILITY/CONCEP,ENVIRONMENT,PROF SER TECH-ENGINEERING SER,ATKINS LIMITED,0000212871,2597.50
DEPARTMENT OF ENERGY AND CLIMATE CHANGE,THE COAL AUTHORITY,31/07/2014,M/W SCOPING/FEASIBILITY/CONCEP,ENVIRONMENT,PROF SER TECH-ENGINEERING SER,MOTT MACDONALD LTD,0000212943,424.00
DEPARTMENT OF ENERGY AND CLIMATE CHANGE,THE COAL AUTHORITY,31/07/2014,M/W SCOPING/FEASIBILITY/CONCEP,ENVIRONMENT,PROF SER TECH-ENGINEERING SER,MOTT MACDONALD LTD,0000212944,2766.94
DEPARTMENT OF ENERGY AND CLIMATE CHANGE,THE COAL AUTHORITY,31/07/2014,M/W SCOPING/FEASIBILITY/CONCEP,ENVIRONMENT,PROF SER TECH-ENGINEERING SER,MOTT MACDONALD LTD,0000212945,4220.50
DEPARTMENT OF ENERGY AND CLIMATE CHANGE,THE COAL AUTHORITY,30/06/2014,M/W SCOPING/FEASIBILITY/CONCEP,ENVIRONMENT,PROF SER TECH-ENGINEERING SER,INTERTEK,0000212965,2700.00
DEPARTMENT OF ENERGY AND CLIMATE CHANGE,THE COAL AUTHORITY,24/07/2014,M/W SCOPING/FEASIBILITY/CONCEP,ENVIRONMENT,OFFICE SOLUTIONS-PRINT,HSBC INVOICE FINANCE (UK),0000212966,390.00
DEPARTMENT OF ENERGY AND CLIMATE CHANGE,THE COAL AUTHORITY,31/07/2014,M/W SCOPING/FEASIBILITY/CONCEP,ENVIRONMENT,PROF SER TECH-ENGINEERING SER,JMC ENGINEERING (UK) LTD,0000213053,148.00
DEPARTMENT OF ENERGY AND CLIMATE CHANGE,THE COAL AUTHORITY,31/07/2014,M/W SLUDGE DISPOSAL,ENVIRONMENT,WASTE MANAGEMENT-WSTE MNGT SER,HARGREAVES (UK) SERVICES,0000213246,5803.42
DEPARTMENT OF ENERGY AND CLIMATE CHANGE,THE COAL AUTHORITY,06/08/2014,M/W SLUDGE DISPOSAL,ENVIRONMENT,CONSTRUCTION-MAIN CONTRACTORS,INTEGRATED WATER SERVICES,0000213288,4143.16
DEPARTMENT OF ENERGY AND CLIMATE CHANGE,THE COAL AUTHORITY,02/08/2014,M/W TELECOMS & TELEMETRY,ENVIRONMENT,ICT-TELECOMS,O2 (UK) LIMITED,0000213124,12.50
DEPARTMENT OF ENERGY AND CLIMATE CHANGE,THE COAL AUTHORITY,02/08/2014,M/W TELECOMS & TELEMETRY,ENVIRONMENT,ICT-TELECOMS,O2 (UK) LIMITED,0000213125,12.50
DEPARTMENT OF ENERGY AND CLIMATE CHANGE,THE COAL AUTHORITY,02/08/2014,M/W TELECOMS & TELEMETRY,ENVIRONMENT,ICT-TELECOMS,O2 (UK) LIMITED,0000213126,12.50
DEPARTMENT OF ENERGY AND CLIMATE CHANGE,THE COAL AUTHORITY,13/08/2014,M/W TELECOMS & TELEMETRY,ENVIRONMENT,ICT-TELECOMS,BRITISH TELECOMMUNICATION,0000213324,77.91
DEPARTMENT OF ENERGY AND CLIMATE CHANGE,THE COAL AUTHORITY,04/08/2014,M/W WATER CHARGES,ENVIRONMENT,ENERGY&UTILITIES-WATER,NORTHUMBRIAN WATER LIMITE,0000213243,51.85
DEPARTMENT OF ENERGY AND CLIMATE CHANGE,THE COAL AUTHORITY,05/08/2014,M/W WATER CHARGES,ENVIRONMENT,ENERGY&UTILITIES-WATER,NORTHUMBRIAN WATER LIMITE,0000213244,2365.63
DEPARTMENT OF ENERGY AND CLIMATE CHANGE,THE COAL AUTHORITY,27/08/2014,MILEAGE PAYMENTS,ENVIRONMENT,FUELS/LUBRCNT/GAS-FUELS,STAFF EXPENSES CONTROL,0000213483,200.25
DEPARTMENT OF ENERGY AND CLIMATE CHANGE,THE COAL AUTHORITY,27/08/2014,MILEAGE PAYMENTS,ENVIRONMENT,FUELS/LUBRCNT/GAS-FUELS,STAFF EXPENSES CONTROL,0000213491,31.00
DEPARTMENT OF ENERGY AND CLIMATE CHANGE,THE COAL AUTHORITY,27/08/2014,MILEAGE PAYMENTS,ENVIRONMENT,FUELS/LUBRCNT/GAS-FUELS,STAFF EXPENSES CONTROL,0000213495,72.45
DEPARTMENT OF ENERGY AND CLIMATE CHANGE,THE COAL AUTHORITY,31/07/2014,MONITORING & FLOW MEASUREMENT,ENVIRONMENT,PROF SER CNSLTNCY-PPM CNSLTNCY,INTEGRATED WATER SERVICES,0000212902,3420.84
DEPARTMENT OF ENERGY AND CLIMATE CHANGE,THE COAL AUTHORITY,28/07/2014,PAYMENTS TO AGENCIES FOR TEMPS,ENVIRONMENT,PROF SER TMP STFF-SPCLST CNTRT,MOTT MACDONALD LTD,0000212867,9832.50
DEPARTMENT OF ENERGY AND CLIMATE CHANGE,THE COAL AUTHORITY,06/06/2014,PAYMENTS TO AGENCIES FOR TEMPS,ENVIRONMENT,PROF SER TMP STFF-TEMP WRKERS,KEY PERSONNEL SOLUTIONS L,0000212937,341.02
DEPARTMENT OF ENERGY AND CLIMATE CHANGE,THE COAL AUTHORITY,31/07/2014,PAYMENTS TO AGENCIES FOR TEMPS,ENVIRONMENT,PROF SER TMP STFF-SPCLST CNTRT,AQUA CONSULTANTS,0000212967,5511.45
DEPARTMENT OF ENERGY AND CLIMATE CHANGE,THE COAL AUTHORITY,31/07/2014,PAYMENTS TO AGENCIES FOR TEMPS,ENVIRONMENT,PROF SER TMP STFF-SPCLST CNTRT,AQUA CONSULTANTS,0000212968,9468.18
DEPARTMENT OF ENERGY AND CLIMATE CHANGE,THE COAL AUTHORITY,31/07/2014,PROJECT MANAGEMENT-BOREHOLES,ENVIRONMENT,PROF SER TECH-ENGINEERING SER,JMC ENGINEERING (UK) LTD,0000213042,10545.48
DEPARTMENT OF ENERGY AND CLIMATE CHANGE,THE COAL AUTHORITY,31/07/2014,PROJECT MANAGEMENT-BOREHOLES,ENVIRONMENT,PROF SER TECH-ENGINEERING SER,JMC ENGINEERING (UK) LTD,0000213047,569.80
DEPARTMENT OF ENERGY AND CLIMATE CHANGE,THE COAL AUTHORITY,12/08/2014,PROJECT MANAGEMENT-BOREHOLES,ENVIRONMENT,PROF SER CNSLTNCY-TCHNL CNSLTY,WYG ENV PLANNING TRANSPOR,0000213116,253.85
DEPARTMENT OF ENERGY AND CLIMATE CHANGE,THE COAL AUTHORITY,30/07/2014,PUMP OVERHAULS,ENVIRONMENT,"CONSTRUCTION-BLD,REPR&MAINTNCE",THE DERITEND GROUP LIMITE,0000212960,25275.05
DEPARTMENT OF ENERGY AND CLIMATE CHANGE,THE COAL AUTHORITY,31/07/2014,PUMP OVERHAULS,ENVIRONMENT,"CONSTRUCTION-BLD,REPR&MAINTNCE",THE DERITEND GROUP LIMITE,0000213237,3492.00
DEPARTMENT OF ENERGY AND CLIMATE CHANGE,THE COAL AUTHORITY,31/07/2014,PUMP OVERHAULS,ENVIRONMENT,"CONSTRUCTION-BLD,REPR&MAINTNCE",THE DERITEND GROUP LIMITE,0000213238,2790.00
DEPARTMENT OF ENERGY AND CLIMATE CHANGE,THE COAL AUTHORITY,31/07/2014,R&D-EXTERNAL COSTS,ENVIRONMENT,PROF SER TECH-ENGINEERING SER,AQUA CONSULTANTS,0000212964,5685.08
DEPARTMENT OF ENERGY AND CLIMATE CHANGE,THE COAL AUTHORITY,26/08/2014,R&D-EXTERNAL COSTS,ENVIRONMENT,CONSTRUCTION-MAIN CONTRACTORS,ELECTROKINETIC LTD,0000213239,17490.00
DEPARTMENT OF ENERGY AND CLIMATE CHANGE,THE COAL AUTHORITY,08/08/2014,R&D-EXTERNAL COSTS,ENVIRONMENT,CONSTRUCTION-CNSTRN SER PROVDR,MOUCHEL LTD,0000213240,1577.40
DEPARTMENT OF ENERGY AND CLIMATE CHANGE,THE COAL AUTHORITY,08/08/2014,SUBSISTENCE ALLOWANCES,ENVIRONMENT,FACILITIES - FOOD,COMPANY BARCLAYCARD,0000213358,24.82
DEPARTMENT OF ENERGY AND CLIMATE CHANGE,THE COAL AUTHORITY,08/08/2014,SUBSISTENCE ALLOWANCES,ENVIRONMENT,FACILITIES - FOOD,COMPANY BARCLAYCARD,0000213367,26.20
DEPARTMENT OF ENERGY AND CLIMATE CHANGE,THE COAL AUTHORITY,08/08/2014,SUBSISTENCE ALLOWANCES,ENVIRONMENT,FACILITIES - FOOD,COMPANY BARCLAYCARD,0000213376,4.57
DEPARTMENT OF ENERGY AND CLIMATE CHANGE,THE COAL AUTHORITY,08/08/2014,SUBSISTENCE ALLOWANCES,ENVIRONMENT,FACILITIES - FOOD,COMPANY BARCLAYCARD,0000213378,55.23
DEPARTMENT OF ENERGY AND CLIMATE CHANGE,THE COAL AUTHORITY,08/08/2014,SUBSISTENCE ALLOWANCES,ENVIRONMENT,FACILITIES - FOOD,COMPANY BARCLAYCARD,0000213379,61.50
DEPARTMENT OF ENERGY AND CLIMATE CHANGE,THE COAL AUTHORITY,08/08/2014,SUBSISTENCE ALLOWANCES,ENVIRONMENT,FACILITIES - FOOD,COMPANY BARCLAYCARD,0000213383,30.23
DEPARTMENT OF ENERGY AND CLIMATE CHANGE,THE COAL AUTHORITY,08/08/2014,SUBSISTENCE ALLOWANCES,ENVIRONMENT,FACILITIES - FOOD,COMPANY BARCLAYCARD,0000213384,34.15
DEPARTMENT OF ENERGY AND CLIMATE CHANGE,THE COAL AUTHORITY,08/08/2014,SUBSISTENCE ALLOWANCES,ENVIRONMENT,FACILITIES - FOOD,COMPANY BARCLAYCARD,0000213395,48.79
DEPARTMENT OF ENERGY AND CLIMATE CHANGE,THE COAL AUTHORITY,27/08/2014,SUBSISTENCE ALLOWANCES,ENVIRONMENT,FACILITIES - FOOD,STAFF EXPENSES CONTROL,0000213483,57.15
DEPARTMENT OF ENERGY AND CLIMATE CHANGE,THE COAL AUTHORITY,27/08/2014,SUBSISTENCE ALLOWANCES,ENVIRONMENT,FACILITIES - FOOD,STAFF EXPENSES CONTROL,0000213489,13.35
DEPARTMENT OF ENERGY AND CLIMATE CHANGE,THE COAL AUTHORITY,27/08/2014,SUBSISTENCE ALLOWANCES,ENVIRONMENT,FACILITIES - FOOD,STAFF EXPENSES CONTROL,0000213498,9.66
DEPARTMENT OF ENERGY AND CLIMATE CHANGE,THE COAL AUTHORITY,08/08/2014,SUBSISTENCE ALLOWANCES,ENVIRONMENT,FACILITIES - FOOD,COMPANY BARCLAYCARD,0000213525,66.91
DEPARTMENT OF ENERGY AND CLIMATE CHANGE,THE COAL AUTHORITY,05/08/2014,TRAINING AND EDUCATION,ENVIRONMENT,PROF SER LRNG&DEV-STAFF TRNING,DATRIX LEARNING SERVICES,0000213025,3980.00
DEPARTMENT OF ENERGY AND CLIMATE CHANGE,THE COAL AUTHORITY,29/07/2014,WATER SAMPLING - DEVELOPMENT,ENVIRONMENT,PROF SER TECH-FORENSIC/LAB SER,ENVIRONMENTAL SCIENTIFICS,0000212939,262.50
DEPARTMENT OF ENERGY AND CLIMATE CHANGE,THE COAL AUTHORITY,29/07/2014,WATER SAMPLING - DEVELOPMENT,ENVIRONMENT,PROF SER TECH-FORENSIC/LAB SER,ENVIRONMENTAL SCIENTIFICS,0000212949,604.46
DEPARTMENT OF ENERGY AND CLIMATE CHANGE,THE COAL AUTHORITY,30/07/2014,WATER SAMPLING - DEVELOPMENT,ENVIRONMENT,PROF SER TECH-FORENSIC/LAB SER,ENVIRONMENTAL SCIENTIFICS,0000212952,1384.08
DEPARTMENT OF ENERGY AND CLIMATE CHANGE,THE COAL AUTHORITY,29/07/2014,WATER SAMPLING - OPERATIONAL,ENVIRONMENT,PROF SER TECH-FORENSIC/LAB SER,ENVIRONMENTAL SCIENTIFICS,0000212948,25.00
DEPARTMENT OF ENERGY AND CLIMATE CHANGE,THE COAL AUTHORITY,30/07/2014,WATER SAMPLING - OPERATIONAL,ENVIRONMENT,PROF SER TECH-FORENSIC/LAB SER,ENVIRONMENTAL SCIENTIFICS,0000212950,170.44
DEPARTMENT OF ENERGY AND CLIMATE CHANGE,THE COAL AUTHORITY,30/07/2014,WATER SAMPLING - OPERATIONAL,ENVIRONMENT,PROF SER TECH-FORENSIC/LAB SER,ENVIRONMENTAL SCIENTIFICS,0000212951,6496.58
DEPARTMENT OF ENERGY AND CLIMATE CHANGE,THE COAL AUTHORITY,30/07/2014,WATER SAMPLING - OPERATIONAL,ENVIRONMENT,PROF SER TECH-FORENSIC/LAB SER,ENVIRONMENTAL SCIENTIFICS,0000212953,110.00
DEPARTMENT OF ENERGY AND CLIMATE CHANGE,THE COAL AUTHORITY,28/07/2014,CONTRACT HIRE VEHICLES,FACILITIES MANAGEMENT,VEHICLES-VEHICLE MAINTENANCE,AUTO SMART VALETING LTD,0000213032,378.00
DEPARTMENT OF ENERGY AND CLIMATE CHANGE,THE COAL AUTHORITY,08/08/2014,CONTRACT HIRE VEHICLES,FACILITIES MANAGEMENT,VEHICLES-VEHICLE MAINTENANCE,COMPANY BARCLAYCARD,0000213380,109.99
DEPARTMENT OF ENERGY AND CLIMATE CHANGE,THE COAL AUTHORITY,22/08/2014,COURIER SERVICES,FACILITIES MANAGEMENT,OFFICE SOLUTIONS-POST&COURIER,TNT UK LIMITED,0000213520,37.20
DEPARTMENT OF ENERGY AND CLIMATE CHANGE,THE COAL AUTHORITY,29/06/2014,CURR YR ADDNS BERRY HILL BULD,FACILITIES MANAGEMENT,CONSTRUCTION-MAIN CONTRACTORS,J N BENTLEY LIMITED,0000212774,6684.00
DEPARTMENT OF ENERGY AND CLIMATE CHANGE,THE COAL AUTHORITY,11/08/2014,ELECTRICITY,FACILITIES MANAGEMENT,ENERGY&UTILITIES-ELECTRICITY,EDF ENERGY,0000213112,10959.28
DEPARTMENT OF ENERGY AND CLIMATE CHANGE,THE COAL AUTHORITY,31/07/2014,FARES - PUBLIC TRANSPORT,FACILITIES MANAGEMENT,TRAVEL&EVENTS-TAXI,ACE OF MANSFIELD LTD,0000213031,61.00
DEPARTMENT OF ENERGY AND CLIMATE CHANGE,THE COAL AUTHORITY,30/07/2014,FUEL (VEHICLE),FACILITIES MANAGEMENT,FUELS/LUBRCNT/GAS-FUELS,ALLSTAR BUSINESS SOLUTION,0000212885,66.90
DEPARTMENT OF ENERGY AND CLIMATE CHANGE,THE COAL AUTHORITY,30/07/2014,FUEL (VEHICLE),FACILITIES MANAGEMENT,FUELS/LUBRCNT/GAS-FUELS,ALLSTAR BUSINESS SOLUTION,0000212886,68.33
DEPARTMENT OF ENERGY AND CLIMATE CHANGE,THE COAL AUTHORITY,30/07/2014,FUEL (VEHICLE),FACILITIES MANAGEMENT,FUELS/LUBRCNT/GAS-FUELS,ALLSTAR BUSINESS SOLUTION,0000212887,26.24
DEPARTMENT OF ENERGY AND CLIMATE CHANGE,THE COAL AUTHORITY,30/07/2014,FUEL (VEHICLE),FACILITIES MANAGEMENT,FUELS/LUBRCNT/GAS-FUELS,ALLSTAR BUSINESS SOLUTION,0000212888,76.95
DEPARTMENT OF ENERGY AND CLIMATE CHANGE,THE COAL AUTHORITY,30/07/2014,FUEL (VEHICLE),FACILITIES MANAGEMENT,FUELS/LUBRCNT/GAS-FUELS,ALLSTAR BUSINESS SOLUTION,0000212889,39.40
DEPARTMENT OF ENERGY AND CLIMATE CHANGE,THE COAL AUTHORITY,30/07/2014,FUEL (VEHICLE),FACILITIES MANAGEMENT,FUELS/LUBRCNT/GAS-FUELS,ALLSTAR BUSINESS SOLUTION,0000212890,53.30
DEPARTMENT OF ENERGY AND CLIMATE CHANGE,THE COAL AUTHORITY,06/08/2014,FUEL (VEHICLE),FACILITIES MANAGEMENT,FUELS/LUBRCNT/GAS-FUELS,ALLSTAR BUSINESS SOLUTION,0000212979,33.75
DEPARTMENT OF ENERGY AND CLIMATE CHANGE,THE COAL AUTHORITY,06/08/2014,FUEL (VEHICLE),FACILITIES MANAGEMENT,FUELS/LUBRCNT/GAS-FUELS,ALLSTAR BUSINESS SOLUTION,0000212980,88.45
DEPARTMENT OF ENERGY AND CLIMATE CHANGE,THE COAL AUTHORITY,06/08/2014,FUEL (VEHICLE),FACILITIES MANAGEMENT,FUELS/LUBRCNT/GAS-FUELS,ALLSTAR BUSINESS SOLUTION,0000212981,65.00
DEPARTMENT OF ENERGY AND CLIMATE CHANGE,THE COAL AUTHORITY,06/08/2014,FUEL (VEHICLE),FACILITIES MANAGEMENT,FUELS/LUBRCNT/GAS-FUELS,ALLSTAR BUSINESS SOLUTION,0000212982,49.00
DEPARTMENT OF ENERGY AND CLIMATE CHANGE,THE COAL AUTHORITY,06/08/2014,FUEL (VEHICLE),FACILITIES MANAGEMENT,FUELS/LUBRCNT/GAS-FUELS,ALLSTAR BUSINESS SOLUTION,0000212983,36.58
DEPARTMENT OF ENERGY AND CLIMATE CHANGE,THE COAL AUTHORITY,06/08/2014,FUEL (VEHICLE),FACILITIES MANAGEMENT,FUELS/LUBRCNT/GAS-FUELS,ALLSTAR BUSINESS SOLUTION,0000212984,28.48
DEPARTMENT OF ENERGY AND CLIMATE CHANGE,THE COAL AUTHORITY,06/08/2014,FUEL (VEHICLE),FACILITIES MANAGEMENT,FUELS/LUBRCNT/GAS-FUELS,ALLSTAR BUSINESS SOLUTION,0000212985,106.05
DEPARTMENT OF ENERGY AND CLIMATE CHANGE,THE COAL AUTHORITY,06/08/2014,FUEL (VEHICLE),FACILITIES MANAGEMENT,FUELS/LUBRCNT/GAS-FUELS,ALLSTAR BUSINESS SOLUTION,0000212986,93.16
DEPARTMENT OF ENERGY AND CLIMATE CHANGE,THE COAL AUTHORITY,13/08/2014,FUEL (VEHICLE),FACILITIES MANAGEMENT,FUELS/LUBRCNT/GAS-FUELS,ALLSTAR BUSINESS SOLUTION,0000213189,44.84
DEPARTMENT OF ENERGY AND CLIMATE CHANGE,THE COAL AUTHORITY,13/08/2014,FUEL (VEHICLE),FACILITIES MANAGEMENT,FUELS/LUBRCNT/GAS-FUELS,ALLSTAR BUSINESS SOLUTION,0000213190,19.93
DEPARTMENT OF ENERGY AND CLIMATE CHANGE,THE COAL AUTHORITY,13/08/2014,FUEL (VEHICLE),FACILITIES MANAGEMENT,FUELS/LUBRCNT/GAS-FUELS,ALLSTAR BUSINESS SOLUTION,0000213191,59.40
DEPARTMENT OF ENERGY AND CLIMATE CHANGE,THE COAL AUTHORITY,13/08/2014,FUEL (VEHICLE),FACILITIES MANAGEMENT,FUELS/LUBRCNT/GAS-FUELS,ALLSTAR BUSINESS SOLUTION,0000213192,24.99
DEPARTMENT OF ENERGY AND CLIMATE CHANGE,THE COAL AUTHORITY,13/08/2014,FUEL (VEHICLE),FACILITIES MANAGEMENT,FUELS/LUBRCNT/GAS-FUELS,ALLSTAR BUSINESS SOLUTION,0000213193,43.94
DEPARTMENT OF ENERGY AND CLIMATE CHANGE,THE COAL AUTHORITY,13/08/2014,FUEL (VEHICLE),FACILITIES MANAGEMENT,FUELS/LUBRCNT/GAS-FUELS,ALLSTAR BUSINESS SOLUTION,0000213194,34.67
DEPARTMENT OF ENERGY AND CLIMATE CHANGE,THE COAL AUTHORITY,20/08/2014,FUEL (VEHICLE),FACILITIES MANAGEMENT,FUELS/LUBRCNT/GAS-FUELS,ALLSTAR BUSINESS SOLUTION,0000213399,29.04
DEPARTMENT OF ENERGY AND CLIMATE CHANGE,THE COAL AUTHORITY,20/08/2014,FUEL (VEHICLE),FACILITIES MANAGEMENT,FUELS/LUBRCNT/GAS-FUELS,ALLSTAR BUSINESS SOLUTION,0000213400,84.14
DEPARTMENT OF ENERGY AND CLIMATE CHANGE,THE COAL AUTHORITY,20/08/2014,FUEL (VEHICLE),FACILITIES MANAGEMENT,FUELS/LUBRCNT/GAS-FUELS,ALLSTAR BUSINESS SOLUTION,0000213401,70.80
DEPARTMENT OF ENERGY AND CLIMATE CHANGE,THE COAL AUTHORITY,20/08/2014,FUEL (VEHICLE),FACILITIES MANAGEMENT,FUELS/LUBRCNT/GAS-FUELS,ALLSTAR BUSINESS SOLUTION,0000213402,101.73
DEPARTMENT OF ENERGY AND CLIMATE CHANGE,THE COAL AUTHORITY,20/08/2014,FUEL (VEHICLE),FACILITIES MANAGEMENT,FUELS/LUBRCNT/GAS-FUELS,ALLSTAR BUSINESS SOLUTION,0000213403,48.07
DEPARTMENT OF ENERGY AND CLIMATE CHANGE,THE COAL AUTHORITY,20/08/2014,FUEL (VEHICLE),FACILITIES MANAGEMENT,FUELS/LUBRCNT/GAS-FUELS,ALLSTAR BUSINESS SOLUTION,0000213404,66.68
DEPARTMENT OF ENERGY AND CLIMATE CHANGE,THE COAL AUTHORITY,20/08/2014,FUEL (VEHICLE),FACILITIES MANAGEMENT,FUELS/LUBRCNT/GAS-FUELS,ALLSTAR BUSINESS SOLUTION,0000213405,50.56
DEPARTMENT OF ENERGY AND CLIMATE CHANGE,THE COAL AUTHORITY,27/08/2014,FUEL (VEHICLE),FACILITIES MANAGEMENT,FUELS/LUBRCNT/GAS-FUELS,ALLSTAR BUSINESS SOLUTION,0000213587,48.06
DEPARTMENT OF ENERGY AND CLIMATE CHANGE,THE COAL AUTHORITY,27/08/2014,FUEL (VEHICLE),FACILITIES MANAGEMENT,FUELS/LUBRCNT/GAS-FUELS,ALLSTAR BUSINESS SOLUTION,0000213588,83.13
DEPARTMENT OF ENERGY AND CLIMATE CHANGE,THE COAL AUTHORITY,27/08/2014,FUEL (VEHICLE),FACILITIES MANAGEMENT,FUELS/LUBRCNT/GAS-FUELS,ALLSTAR BUSINESS SOLUTION,0000213589,49.41
DEPARTMENT OF ENERGY AND CLIMATE CHANGE,THE COAL AUTHORITY,27/08/2014,FUEL (VEHICLE),FACILITIES MANAGEMENT,FUELS/LUBRCNT/GAS-FUELS,ALLSTAR BUSINESS SOLUTION,0000213590,58.15
DEPARTMENT OF ENERGY AND CLIMATE CHANGE,THE COAL AUTHORITY,27/08/2014,FUEL (VEHICLE),FACILITIES MANAGEMENT,FUELS/LUBRCNT/GAS-FUELS,ALLSTAR BUSINESS SOLUTION,0000213591,72.81
DEPARTMENT OF ENERGY AND CLIMATE CHANGE,THE COAL AUTHORITY,27/08/2014,FUEL (VEHICLE),FACILITIES MANAGEMENT,FUELS/LUBRCNT/GAS-FUELS,ALLSTAR BUSINESS SOLUTION,0000213592,49.75
DEPARTMENT OF ENERGY AND CLIMATE CHANGE,THE COAL AUTHORITY,27/08/2014,FUEL (VEHICLE),FACILITIES MANAGEMENT,FUELS/LUBRCNT/GAS-FUELS,ALLSTAR BUSINESS SOLUTION,0000213593,72.36
DEPARTMENT OF ENERGY AND CLIMATE CHANGE,THE COAL AUTHORITY,27/08/2014,FUEL (VEHICLE),FACILITIES MANAGEMENT,FUELS/LUBRCNT/GAS-FUELS,ALLSTAR BUSINESS SOLUTION,0000213594,75.00
DEPARTMENT OF ENERGY AND CLIMATE CHANGE,THE COAL AUTHORITY,08/08/2014,HOTEL ACCOMMODATION,FACILITIES MANAGEMENT,TRAVEL&EVENTS-HOTELS,COMPANY BARCLAYCARD,0000213372,297.50
DEPARTMENT OF ENERGY AND CLIMATE CHANGE,THE COAL AUTHORITY,08/08/2014,MEETINGS,FACILITIES MANAGEMENT,TRAVEL&EVENTS-EVENT ORGNSTN,COMPANY BARCLAYCARD,0000213372,243.08
DEPARTMENT OF ENERGY AND CLIMATE CHANGE,THE COAL AUTHORITY,19/07/2014,PLANT MAINTENANCE,FACILITIES MANAGEMENT,FACILITIES-BUILDING MANAGEMENT,NORLAND MANAGED SERVICES,0000212608,1455.32
DEPARTMENT OF ENERGY AND CLIMATE CHANGE,THE COAL AUTHORITY,29/07/2014,PRINTING,FACILITIES MANAGEMENT,OFFICE SOLUTIONS-PRINT,WILLIAMS LEA,0000213029,107.52
DEPARTMENT OF ENERGY AND CLIMATE CHANGE,THE COAL AUTHORITY,29/07/2014,PRINTING,FACILITIES MANAGEMENT,OFFICE SOLUTIONS-PRINT,WILLIAMS LEA,0000213030,26.88
DEPARTMENT OF ENERGY AND CLIMATE CHANGE,THE COAL AUTHORITY,19/07/2014,SITE MAINTENANCE,FACILITIES MANAGEMENT,FACILITIES-BUILDING MANAGEMENT,NORLAND MANAGED SERVICES,0000212609,319.55
DEPARTMENT OF ENERGY AND CLIMATE CHANGE,THE COAL AUTHORITY,11/08/2014,SITE MAINTENANCE,FACILITIES MANAGEMENT,FACILITIES-OFFICE FURNITURE,APOLLO BLINDS,0000213311,398.50
DEPARTMENT OF ENERGY AND CLIMATE CHANGE,THE COAL AUTHORITY,08/08/2014,SITE MAINTENANCE,FACILITIES MANAGEMENT,FACILITIES - SECURITY,COMPANY BARCLAYCARD,0000213450,125.00
DEPARTMENT OF ENERGY AND CLIMATE CHANGE,THE COAL AUTHORITY,08/08/2014,SITE MAINTENANCE,FACILITIES MANAGEMENT,CONSTRUCTION-CNSTRN SUPPLIES,COMPANY BARCLAYCARD,0000213450,64.00
DEPARTMENT OF ENERGY AND CLIMATE CHANGE,THE COAL AUTHORITY,01/08/2014,SITE MAINTENANCE,FACILITIES MANAGEMENT,ENGINEERING GOODS-TOOLS,P/CASH CABLE TIES,35000873,14.17
DEPARTMENT OF ENERGY AND CLIMATE CHANGE,THE COAL AUTHORITY,25/07/2014,SITE SERVICES,FACILITIES MANAGEMENT,FACILITIES-BUILDING MANAGEMENT,INTEGRATED RADIO SYSTEMS,0000212863,353.00
DEPARTMENT OF ENERGY AND CLIMATE CHANGE,THE COAL AUTHORITY,23/07/2014,SITE SERVICES,FACILITIES MANAGEMENT,WASTE MANAGEMENT-WSTE MNGT SER,BANNER BUSINESS SOLUTIONS,0000212864,17.10
DEPARTMENT OF ENERGY AND CLIMATE CHANGE,THE COAL AUTHORITY,31/07/2014,SITE SERVICES,FACILITIES MANAGEMENT,WASTE MANAGEMENT-WSTE MNGT SER,ICS WASTE MANAGEMENT,0000213033,364.50
DEPARTMENT OF ENERGY AND CLIMATE CHANGE,THE COAL AUTHORITY,03/08/2014,SITE SERVICES,FACILITIES MANAGEMENT,WASTE MANAGEMENT-WSTE MNGT SER,BANNER BUSINESS SOLUTIONS,0000213035,10.80
DEPARTMENT OF ENERGY AND CLIMATE CHANGE,THE COAL AUTHORITY,03/08/2014,SITE SERVICES,FACILITIES MANAGEMENT,WASTE MANAGEMENT-WSTE MNGT SER,BANNER BUSINESS SOLUTIONS,0000213036,-10.80
DEPARTMENT OF ENERGY AND CLIMATE CHANGE,THE COAL AUTHORITY,31/07/2014,SITE SERVICES,FACILITIES MANAGEMENT,WASTE MANAGEMENT-WSTE MNGT SER,BANNER BUSINESS SOLUTIONS,0000213037,10.80
DEPARTMENT OF ENERGY AND CLIMATE CHANGE,THE COAL AUTHORITY,31/07/2014,SITE SERVICES,FACILITIES MANAGEMENT,WASTE MANAGEMENT-WSTE MNGT SER,BANNER BUSINESS SOLUTIONS,0000213038,15.30
DEPARTMENT OF ENERGY AND CLIMATE CHANGE,THE COAL AUTHORITY,17/07/2014,SITE SERVICES,FACILITIES MANAGEMENT,WASTE MANAGEMENT-WSTE MNGT SER,BANNER BUSINESS SOLUTIONS,0000213115,10.80
DEPARTMENT OF ENERGY AND CLIMATE CHANGE,THE COAL AUTHORITY,08/08/2014,STATIONERY,FACILITIES MANAGEMENT,OFFICE SOLUTIONS-OFFCE SPPLIES,COMPANY BARCLAYCARD,0000213390,9.91
DEPARTMENT OF ENERGY AND CLIMATE CHANGE,THE COAL AUTHORITY,08/08/2014,STATIONERY,FACILITIES MANAGEMENT,OFFICE SOLUTIONS-OFFCE SPPLIES,COMPANY BARCLAYCARD,0000213450,1022.87
DEPARTMENT OF ENERGY AND CLIMATE CHANGE,THE COAL AUTHORITY,08/08/2014,SUBSISTENCE ALLOWANCES,FACILITIES MANAGEMENT,FACILITIES - FOOD,COMPANY BARCLAYCARD,0000213372,39.52
DEPARTMENT OF ENERGY AND CLIMATE CHANGE,THE COAL AUTHORITY,02/08/2014,CHILDCARE VOUCHERS,FINANCE,PERSONNEL RLTD-STAFF CHILDCARE,FIDELITI LIMITED,0000213005,124.00
DEPARTMENT OF ENERGY AND CLIMATE CHANGE,THE COAL AUTHORITY,31/07/2014,FARES - RAIL,FINANCE,TRAVEL&EVENTS-RAIL,REDFERN TRAVEL LTD,0000213077,164.65
DEPARTMENT OF ENERGY AND CLIMATE CHANGE,THE COAL AUTHORITY,01/08/2014,OTHER BANK CHARGES,FINANCE,PROF SER FNCL-BANKING&INVSTMNT,NATIONAL WESTMINSTER BANK,0000213021,74.67
DEPARTMENT OF ENERGY AND CLIMATE CHANGE,THE COAL AUTHORITY,20/08/2014,OTHER BANK CHARGES,FINANCE,PROF SER FNCL-CORPTE FINANCE,CITIBANK,0000213443,118.54
DEPARTMENT OF ENERGY AND CLIMATE CHANGE,THE COAL AUTHORITY,20/08/2014,OTHER BANK CHARGES,FINANCE,PROF SER FNCL-CORPTE FINANCE,CITIBANK,0000213444,25.00
DEPARTMENT OF ENERGY AND CLIMATE CHANGE,THE COAL AUTHORITY,08/08/2014,PUBLICATIONS,FINANCE,OPRTNL GOODS&SERV-DEVLPNG MTRL,COMPANY BARCLAYCARD,0000213357,103.75
DEPARTMENT OF ENERGY AND CLIMATE CHANGE,THE COAL AUTHORITY,31/07/2014,SALARY PROCESSING FEES,FINANCE,PROF SER FNCL-BUS PROC O/SRCE,CGI IT UK LTD,0000212931,693.53
DEPARTMENT OF ENERGY AND CLIMATE CHANGE,THE COAL AUTHORITY,08/08/2014,STAFF EVENTS,FINANCE,FACILITIES - FOOD,COMPANY BARCLAYCARD,0000213357,120.37
DEPARTMENT OF ENERGY AND CLIMATE CHANGE,THE COAL AUTHORITY,08/08/2014,TRAINING AND EDUCATION,FINANCE,PROF SER LRNG&DEV-STAFF TRNING,COMPANY BARCLAYCARD,0000213357,142.00
DEPARTMENT OF ENERGY AND CLIMATE CHANGE,THE COAL AUTHORITY,30/07/2014,CURR YR ADD-INTNGBLE INFO TECH,HISTORIC LIABILITIES,ICT-SYSTEMS DELIVERY,SCISYS UK LTD,0000212907,4349.79
DEPARTMENT OF ENERGY AND CLIMATE CHANGE,THE COAL AUTHORITY,27/08/2014,FARES - PUBLIC TRANSPORT,HISTORIC LIABILITIES,TRAVEL&EVENTS-TAXI,STAFF EXPENSES CONTROL,0000213484,13.90
DEPARTMENT OF ENERGY AND CLIMATE CHANGE,THE COAL AUTHORITY,31/07/2014,HOTEL ACCOMMODATION,HISTORIC LIABILITIES,TRAVEL&EVENTS-HOTELS,REDFERN TRAVEL LTD,0000213076,91.30
DEPARTMENT OF ENERGY AND CLIMATE CHANGE,THE COAL AUTHORITY,27/08/2014,INCIDENTALS,HISTORIC LIABILITIES,VEHICLES-FLEET MANAGEMENT,STAFF EXPENSES CONTROL,0000213484,5.00
DEPARTMENT OF ENERGY AND CLIMATE CHANGE,THE COAL AUTHORITY,21/07/2014,LEGAL COSTS,HISTORIC LIABILITIES,PROF SER-LEGAL SERVICES,WALKER MORRIS,0000213008,3790.36
DEPARTMENT OF ENERGY AND CLIMATE CHANGE,THE COAL AUTHORITY,07/08/2014,LEGAL COSTS,HISTORIC LIABILITIES,PROF SER-OPERATIONAL SERVICES,LAND REGISTRY,0000213009,6.00
DEPARTMENT OF ENERGY AND CLIMATE CHANGE,THE COAL AUTHORITY,13/08/2014,LEGAL COSTS,HISTORIC LIABILITIES,PROF SER-OPERATIONAL SERVICES,LAND REGISTRY,0000213090,24.00
DEPARTMENT OF ENERGY AND CLIMATE CHANGE,THE COAL AUTHORITY,15/08/2014,LEGAL COSTS,HISTORIC LIABILITIES,PROF SER-OPERATIONAL SERVICES,LAND REGISTRY,0000213204,21.00
DEPARTMENT OF ENERGY AND CLIMATE CHANGE,THE COAL AUTHORITY,27/08/2014,MILEAGE PAYMENTS,HISTORIC LIABILITIES,FUELS/LUBRCNT/GAS-FUELS,STAFF EXPENSES CONTROL,0000213484,79.05
DEPARTMENT OF ENERGY AND CLIMATE CHANGE,THE COAL AUTHORITY,07/08/2014,PROPERTY RATES PAYABLE,HISTORIC LIABILITIES,ENERGY&UTILITIES-ELECTRICITY,BRITISH GAS BUSINESS,0000213187,133.63
DEPARTMENT OF ENERGY AND CLIMATE CHANGE,THE COAL AUTHORITY,07/08/2014,PROPERTY RATES PAYABLE,HISTORIC LIABILITIES,ENERGY&UTILITIES-ELECTRICITY,BRITISH GAS BUSINESS,0000213188,12.23
DEPARTMENT OF ENERGY AND CLIMATE CHANGE,THE COAL AUTHORITY,27/08/2014,SUBSISTENCE ALLOWANCES,HISTORIC LIABILITIES,FACILITIES - FOOD,STAFF EXPENSES CONTROL,0000213484,13.05
DEPARTMENT OF ENERGY AND CLIMATE CHANGE,THE COAL AUTHORITY,08/08/2014,ADVERTISING EXP - RECRUITMENT,HUMAN RESRCES&ORGNSTL DEVLPMNT,PROF SER-OPERATIONAL SERVICES,COMPANY BARCLAYCARD,0000213382,2154.65
DEPARTMENT OF ENERGY AND CLIMATE CHANGE,THE COAL AUTHORITY,25/06/2014,CENTRAL TRAINING BUDGET,HUMAN RESRCES&ORGNSTL DEVLPMNT,PROF SER LRNG&DEV-STAFF TRNING,EASTWOOD HALL,0000212929,2222.13
DEPARTMENT OF ENERGY AND CLIMATE CHANGE,THE COAL AUTHORITY,02/08/2014,CHILDCARE VCHRS-SERVICE CHARGE,HUMAN RESRCES&ORGNSTL DEVLPMNT,PERSONNEL RLTD-STAFF CHILDCARE,FIDELITI LIMITED,0000213005,6.51
DEPARTMENT OF ENERGY AND CLIMATE CHANGE,THE COAL AUTHORITY,23/07/2014,CONCESSIONERY FUEL,HUMAN RESRCES&ORGNSTL DEVLPMNT,PERSONNEL RLTD-STAFF CHILDCARE,CAPITA BUSINESS SERVICES,0000212908,-689.72
DEPARTMENT OF ENERGY AND CLIMATE CHANGE,THE COAL AUTHORITY,23/07/2014,CONCESSIONERY FUEL,HUMAN RESRCES&ORGNSTL DEVLPMNT,PERSONNEL RLTD-STAFF CHILDCARE,CAPITA BUSINESS SERVICES,0000212909,689.72
DEPARTMENT OF ENERGY AND CLIMATE CHANGE,THE COAL AUTHORITY,01/08/2014,E-COMMERCE DEVELOPMENTS,HUMAN RESRCES&ORGNSTL DEVLPMNT,ICT-MAINTENANCE & SUPPORT,COMPUTERS IN PERSONNEL LT,0000213024,1519.65
DEPARTMENT OF ENERGY AND CLIMATE CHANGE,THE COAL AUTHORITY,08/08/2014,HOTEL ACCOMMODATION,HUMAN RESRCES&ORGNSTL DEVLPMNT,TRAVEL&EVENTS-HOTELS,COMPANY BARCLAYCARD,0000213381,90.42
DEPARTMENT OF ENERGY AND CLIMATE CHANGE,THE COAL AUTHORITY,04/08/2014,LEGAL COSTS,HUMAN RESRCES&ORGNSTL DEVLPMNT,PROF SER-LEGAL SERVICES,DLA PIPER UK LLP,0000213006,1170.00
DEPARTMENT OF ENERGY AND CLIMATE CHANGE,THE COAL AUTHORITY,07/08/2014,MEMBERSHIP SUBSCRIPTIONS,HUMAN RESRCES&ORGNSTL DEVLPMNT,PERSONNEL RLTD-STAFF SUBSCRPTN,LEXIS NEXIS,0000213118,146.00
DEPARTMENT OF ENERGY AND CLIMATE CHANGE,THE COAL AUTHORITY,01/08/2014,MILEAGE PAYMENTS,HUMAN RESRCES&ORGNSTL DEVLPMNT,FUELS/LUBRCNT/GAS-FUELS,INTERVIEW EXPENSES,0000212922,18.72
DEPARTMENT OF ENERGY AND CLIMATE CHANGE,THE COAL AUTHORITY,01/08/2014,MILEAGE PAYMENTS,HUMAN RESRCES&ORGNSTL DEVLPMNT,FUELS/LUBRCNT/GAS-FUELS,INTERVIEW EXPENSES,0000212923,34.00
DEPARTMENT OF ENERGY AND CLIMATE CHANGE,THE COAL AUTHORITY,01/08/2014,MILEAGE PAYMENTS,HUMAN RESRCES&ORGNSTL DEVLPMNT,FUELS/LUBRCNT/GAS-FUELS,INTERVIEW EXPENSES,0000212936,153.00
DEPARTMENT OF ENERGY AND CLIMATE CHANGE,THE COAL AUTHORITY,13/08/2014,MILEAGE PAYMENTS,HUMAN RESRCES&ORGNSTL DEVLPMNT,FUELS/LUBRCNT/GAS-FUELS,INTERVIEW EXPENSES,0000213100,50.00
DEPARTMENT OF ENERGY AND CLIMATE CHANGE,THE COAL AUTHORITY,22/08/2014,MILEAGE PAYMENTS,HUMAN RESRCES&ORGNSTL DEVLPMNT,FUELS/LUBRCNT/GAS-FUELS,INTERVIEW EXPENSES,0000213423,61.92
DEPARTMENT OF ENERGY AND CLIMATE CHANGE,THE COAL AUTHORITY,18/08/2014,OTHER RECRUITMENT EXPENSES,HUMAN RESRCES&ORGNSTL DEVLPMNT,PROF SER TMP STFF-TEMP WRKERS,DBS CHECK PAID FOR ,0000213227,25.00
DEPARTMENT OF ENERGY AND CLIMATE CHANGE,THE COAL AUTHORITY,22/08/2014,OTHER RECRUITMENT EXPENSES,HUMAN RESRCES&ORGNSTL DEVLPMNT,PROF SER TMP STFF-TEMP WRKERS,REIMBURSE COST OF DBS CHE,0000213424,25.00
DEPARTMENT OF ENERGY AND CLIMATE CHANGE,THE COAL AUTHORITY,27/08/2014,OTHER RECRUITMENT EXPENSES,HUMAN RESRCES&ORGNSTL DEVLPMNT,PROF SER TMP STFF-TEMP WRKERS,REIMBURSE DBS CHECK,0000213512,25.00
DEPARTMENT OF ENERGY AND CLIMATE CHANGE,THE COAL AUTHORITY,08/08/2014,STAFF EVENTS,HUMAN RESRCES&ORGNSTL DEVLPMNT,MARKETING & MEDIA-PROMOTION,COMPANY BARCLAYCARD,0000213385,59.90
DEPARTMENT OF ENERGY AND CLIMATE CHANGE,THE COAL AUTHORITY,08/08/2014,STAFF EVENTS,HUMAN RESRCES&ORGNSTL DEVLPMNT,OPRTNL GOODS&SERV-CLOTHING,COMPANY BARCLAYCARD,0000213390,6.50
DEPARTMENT OF ENERGY AND CLIMATE CHANGE,THE COAL AUTHORITY,31/07/2014,STAFF MEDICALS,HUMAN RESRCES&ORGNSTL DEVLPMNT,PERSONNEL RLTD-STAFF MEDICAL,RPS BUSINESS HEALTHCARE,0000213092,3835.00
DEPARTMENT OF ENERGY AND CLIMATE CHANGE,THE COAL AUTHORITY,08/08/2014,SUBSISTENCE ALLOWANCES,HUMAN RESRCES&ORGNSTL DEVLPMNT,FACILITIES - FOOD,COMPANY BARCLAYCARD,0000213381,7.18
DEPARTMENT OF ENERGY AND CLIMATE CHANGE,THE COAL AUTHORITY,07/08/2014,TRAINING AND EDUCATION,HUMAN RESRCES&ORGNSTL DEVLPMNT,PROF SER LRNG&DEV-STAFF TRNING,SAVILLE CONSULTING UK LTD,0000213094,805.20
DEPARTMENT OF ENERGY AND CLIMATE CHANGE,THE COAL AUTHORITY,14/04/2014,CALL CHARGES,ICT -  SERVICE MANAGEMENT,ICT-TELECOMS,BRITISH TELECOMMUNICATION,0000210340,917.20
DEPARTMENT OF ENERGY AND CLIMATE CHANGE,THE COAL AUTHORITY,14/05/2014,CALL CHARGES,ICT -  SERVICE MANAGEMENT,ICT-TELECOMS,BRITISH TELECOMMUNICATION,0000211082,404.25
DEPARTMENT OF ENERGY AND CLIMATE CHANGE,THE COAL AUTHORITY,14/06/2014,CALL CHARGES,ICT -  SERVICE MANAGEMENT,ICT-TELECOMS,BRITISH TELECOMMUNICATION,0000211921,461.19
DEPARTMENT OF ENERGY AND CLIMATE CHANGE,THE COAL AUTHORITY,14/07/2014,CALL CHARGES,ICT -  SERVICE MANAGEMENT,ICT-TELECOMS,BRITISH TELECOMMUNICATION,0000212621,563.26
DEPARTMENT OF ENERGY AND CLIMATE CHANGE,THE COAL AUTHORITY,23/07/2014,CALL CHARGES,ICT -  SERVICE MANAGEMENT,ICT-TELECOMS,VODAFONE LIMITED (CORPORA,0000212852,943.51
DEPARTMENT OF ENERGY AND CLIMATE CHANGE,THE COAL AUTHORITY,31/07/2014,CALL CHARGES,ICT -  SERVICE MANAGEMENT,ICT-TELECOMS,BRITISH TELECOMMUNICATION,0000213093,274.27
DEPARTMENT OF ENERGY AND CLIMATE CHANGE,THE COAL AUTHORITY,14/08/2014,CALL CHARGES,ICT -  SERVICE MANAGEMENT,ICT-TELECOMS,BRITISH TELECOMMUNICATION,0000213322,509.79
DEPARTMENT OF ENERGY AND CLIMATE CHANGE,THE COAL AUTHORITY,31/07/2014,FARES - RAIL,ICT -  SERVICE MANAGEMENT,TRAVEL&EVENTS-RAIL,REDFERN TRAVEL LTD,0000213077,253.16
DEPARTMENT OF ENERGY AND CLIMATE CHANGE,THE COAL AUTHORITY,08/08/2014,IT-APPLICATIONS MANAGEMENT,ICT -  SERVICE MANAGEMENT,ICT-HARDWARE,COMPANY BARCLAYCARD,0000213362,672.00
DEPARTMENT OF ENERGY AND CLIMATE CHANGE,THE COAL AUTHORITY,08/08/2014,IT-APPLICATIONS MANAGEMENT,ICT -  SERVICE MANAGEMENT,ICT-SOFTWARE,COMPANY BARCLAYCARD,0000213368,204.52
DEPARTMENT OF ENERGY AND CLIMATE CHANGE,THE COAL AUTHORITY,08/08/2014,IT-APPLICATIONS MANAGEMENT,ICT -  SERVICE MANAGEMENT,ICT-HARDWARE,COMPANY BARCLAYCARD,0000213368,83.57
DEPARTMENT OF ENERGY AND CLIMATE CHANGE,THE COAL AUTHORITY,30/07/2014,IT-INFRASTRUCTURE MANAGEMENT,ICT -  SERVICE MANAGEMENT,ICT-TELECOMS,EQ CONSULTANTS,0000212927,1276.20
DEPARTMENT OF ENERGY AND CLIMATE CHANGE,THE COAL AUTHORITY,08/08/2014,IT-INFRASTRUCTURE MANAGEMENT,ICT -  SERVICE MANAGEMENT,ICT-HARDWARE,COMPANY BARCLAYCARD,0000213368,368.72
DEPARTMENT OF ENERGY AND CLIMATE CHANGE,THE COAL AUTHORITY,06/08/2014,IT-INFRASTRUCTURE MANAGEMENT,ICT -  SERVICE MANAGEMENT,ICT-TELECOMS,EQ CONSULTANTS,0000213519,201.20
DEPARTMENT OF ENERGY AND CLIMATE CHANGE,THE COAL AUTHORITY,30/08/2014,IT-INFRASTRUCTURE MANAGEMENT,ICT -  SERVICE MANAGEMENT,ICT-MAINTENANCE & SUPPORT,NOWCOMM,0000213523,8000.00
DEPARTMENT OF ENERGY AND CLIMATE CHANGE,THE COAL AUTHORITY,14/04/2014,LINE RENTAL,ICT -  SERVICE MANAGEMENT,ICT-TELECOMS,BRITISH TELECOMMUNICATION,0000210340,5966.40
DEPARTMENT OF ENERGY AND CLIMATE CHANGE,THE COAL AUTHORITY,14/05/2014,LINE RENTAL,ICT -  SERVICE MANAGEMENT,ICT-TELECOMS,BRITISH TELECOMMUNICATION,0000211082,6012.16
DEPARTMENT OF ENERGY AND CLIMATE CHANGE,THE COAL AUTHORITY,14/06/2014,LINE RENTAL,ICT -  SERVICE MANAGEMENT,ICT-TELECOMS,BRITISH TELECOMMUNICATION,0000211921,5690.93
DEPARTMENT OF ENERGY AND CLIMATE CHANGE,THE COAL AUTHORITY,10/07/2014,LINE RENTAL,ICT -  SERVICE MANAGEMENT,ICT-TELECOMS,BRITISH TELECOMMUNICATION,0000212439,2095.03
DEPARTMENT OF ENERGY AND CLIMATE CHANGE,THE COAL AUTHORITY,14/07/2014,LINE RENTAL,ICT -  SERVICE MANAGEMENT,ICT-TELECOMS,BRITISH TELECOMMUNICATION,0000212621,5971.03
DEPARTMENT OF ENERGY AND CLIMATE CHANGE,THE COAL AUTHORITY,23/07/2014,LINE RENTAL,ICT -  SERVICE MANAGEMENT,ICT-TELECOMS,VODAFONE LIMITED (CORPORA,0000212852,5883.92
DEPARTMENT OF ENERGY AND CLIMATE CHANGE,THE COAL AUTHORITY,14/08/2014,LINE RENTAL,ICT -  SERVICE MANAGEMENT,ICT-TELECOMS,BRITISH TELECOMMUNICATION,0000213322,6013.78
DEPARTMENT OF ENERGY AND CLIMATE CHANGE,THE COAL AUTHORITY,11/08/2014,LINE RENTAL,ICT -  SERVICE MANAGEMENT,ICT-TELECOMS,BRITISH TELECOMMUNICATION,0000213323,2095.03
DEPARTMENT OF ENERGY AND CLIMATE CHANGE,THE COAL AUTHORITY,08/08/2014,LINE RENTAL,ICT -  SERVICE MANAGEMENT,ICT-TELECOMS,COMPANY BARCLAYCARD,0000213364,76.05
DEPARTMENT OF ENERGY AND CLIMATE CHANGE,THE COAL AUTHORITY,08/08/2014,LINE RENTAL,ICT -  SERVICE MANAGEMENT,ICT-TELECOMS,COMPANY BARCLAYCARD,0000213369,21.49
DEPARTMENT OF ENERGY AND CLIMATE CHANGE,THE COAL AUTHORITY,27/08/2014,SUBSISTENCE ALLOWANCES,ICT -  SERVICE MANAGEMENT,FACILITIES - FOOD,STAFF EXPENSES CONTROL,0000213487,49.53
DEPARTMENT OF ENERGY AND CLIMATE CHANGE,THE COAL AUTHORITY,14/06/2014,TELEPHONE - OTHER,ICT -  SERVICE MANAGEMENT,ICT-TELECOMS,BRITISH TELECOMMUNICATION,0000211921,777.44
DEPARTMENT OF ENERGY AND CLIMATE CHANGE,THE COAL AUTHORITY,23/07/2014,TELEPHONE - OTHER,ICT -  SERVICE MANAGEMENT,ICT-TELECOMS,VODAFONE LIMITED (CORPORA,0000212852,574.48
DEPARTMENT OF ENERGY AND CLIMATE CHANGE,THE COAL AUTHORITY,08/08/2014,TRAINING AND EDUCATION,ICT -  SERVICE MANAGEMENT,PROF SER LRNG&DEV-STAFF TRNING,COMPANY BARCLAYCARD,0000213353,247.50
DEPARTMENT OF ENERGY AND CLIMATE CHANGE,THE COAL AUTHORITY,08/08/2014,TRAINING AND EDUCATION,ICT -  SERVICE MANAGEMENT,PROF SER LRNG&DEV-STAFF TRNING,COMPANY BARCLAYCARD,0000213362,679.00
DEPARTMENT OF ENERGY AND CLIMATE CHANGE,THE COAL AUTHORITY,02/08/2014,CHILDCARE VOUCHERS,ICT-BUSINESS ANALYSIS&DESIGN,PERSONNEL RLTD-STAFF CHILDCARE,FIDELITI LIMITED,0000213005,243.00
DEPARTMENT OF ENERGY AND CLIMATE CHANGE,THE COAL AUTHORITY,30/07/2014,IT-APPLICATIONS MANAGEMENT,ICT-BUSINESS ANALYSIS&DESIGN,ICT-SOFTWARE,FIRMSTEP,0000212933,6000.00
DEPARTMENT OF ENERGY AND CLIMATE CHANGE,THE COAL AUTHORITY,30/07/2014,PAYMENTS TO AGENCIES FOR TEMPS,ICT-BUSINESS ANALYSIS&DESIGN,PROF SER TMP STFF-SPCLST CNTRT,SCISYS UK LTD,0000212932,8117.26
DEPARTMENT OF ENERGY AND CLIMATE CHANGE,THE COAL AUTHORITY,06/08/2014,TRAINING AND EDUCATION,ICT-BUSINESS ANALYSIS&DESIGN,PROF SER LRNG&DEV-STAFF TRNING,EYECADEMY,0000213095,1650.00
DEPARTMENT OF ENERGY AND CLIMATE CHANGE,THE COAL AUTHORITY,31/07/2014,APPRENTICE COSTS,ICT-TECH SUPPORT&SYSTM DVLPMNT,PROF SER TMP STFF-TEMP WRKERS,FUTURES ADVICE SKILLS & E,0000213001,1028.89
DEPARTMENT OF ENERGY AND CLIMATE CHANGE,THE COAL AUTHORITY,02/08/2014,CHILDCARE VOUCHERS,ICT-TECH SUPPORT&SYSTM DVLPMNT,PERSONNEL RLTD-STAFF CHILDCARE,FIDELITI LIMITED,0000213005,124.00
DEPARTMENT OF ENERGY AND CLIMATE CHANGE,THE COAL AUTHORITY,31/07/2014,FARES - RAIL,ICT-TECH SUPPORT&SYSTM DVLPMNT,TRAVEL&EVENTS-RAIL,REDFERN TRAVEL LTD,0000213077,381.69
DEPARTMENT OF ENERGY AND CLIMATE CHANGE,THE COAL AUTHORITY,31/07/2014,HOTEL ACCOMMODATION,ICT-TECH SUPPORT&SYSTM DVLPMNT,TRAVEL&EVENTS-HOTELS,REDFERN TRAVEL LTD,0000213076,576.28
DEPARTMENT OF ENERGY AND CLIMATE CHANGE,THE COAL AUTHORITY,14/12/2012,IT-APPLICATIONS MANAGEMENT,ICT-TECH SUPPORT&SYSTM DVLPMNT,ICT-MAINTENANCE & SUPPORT,2E2 UK LIMITED,0000196737,39525.00
DEPARTMENT OF ENERGY AND CLIMATE CHANGE,THE COAL AUTHORITY,30/07/2014,IT-APPLICATIONS MANAGEMENT,ICT-TECH SUPPORT&SYSTM DVLPMNT,ICT-MAINTENANCE & SUPPORT,SOFTWARE BOX LIMITED,0000212928,7680.00
DEPARTMENT OF ENERGY AND CLIMATE CHANGE,THE COAL AUTHORITY,12/08/2014,IT-APPLICATIONS MANAGEMENT,ICT-TECH SUPPORT&SYSTM DVLPMNT,ICT-MAINTENANCE & SUPPORT,RMV DC 196737 FROM SUN,35000954,-39525.00
DEPARTMENT OF ENERGY AND CLIMATE CHANGE,THE COAL AUTHORITY,14/07/2014,IT-INFRASTRUCTURE MANAGEMENT,ICT-TECH SUPPORT&SYSTM DVLPMNT,ICT-MAINTENANCE & SUPPORT,SPECIALIST COMPUTER CENTR,0000213027,2887.17
DEPARTMENT OF ENERGY AND CLIMATE CHANGE,THE COAL AUTHORITY,08/08/2014,IT-INFRASTRUCTURE MANAGEMENT,ICT-TECH SUPPORT&SYSTM DVLPMNT,ICT-HARDWARE,COMPANY BARCLAYCARD,0000213368,632.50
DEPARTMENT OF ENERGY AND CLIMATE CHANGE,THE COAL AUTHORITY,27/08/2014,MILEAGE PAYMENTS,ICT-TECH SUPPORT&SYSTM DVLPMNT,FUELS/LUBRCNT/GAS-FUELS,STAFF EXPENSES CONTROL,0000213504,33.75
DEPARTMENT OF ENERGY AND CLIMATE CHANGE,THE COAL AUTHORITY,27/08/2014,SUBSISTENCE ALLOWANCES,ICT-TECH SUPPORT&SYSTM DVLPMNT,FACILITIES - FOOD,STAFF EXPENSES CONTROL,0000213492,51.21
DEPARTMENT OF ENERGY AND CLIMATE CHANGE,THE COAL AUTHORITY,06/08/2014,TRAINING AND EDUCATION,ICT-TECH SUPPORT&SYSTM DVLPMNT,PROF SER LRNG&DEV-STAFF TRNING,EYECADEMY,0000213095,1650.00
DEPARTMENT OF ENERGY AND CLIMATE CHANGE,THE COAL AUTHORITY,08/08/2014,TRAINING AND EDUCATION,ICT-TECH SUPPORT&SYSTM DVLPMNT,PROF SER LRNG&DEV-STAFF TRNING,COMPANY BARCLAYCARD,0000213362,1316.00
DEPARTMENT OF ENERGY AND CLIMATE CHANGE,THE COAL AUTHORITY,08/08/2014,TRAINING AND EDUCATION,ICT-TECH SUPPORT&SYSTM DVLPMNT,PROF SER LRNG&DEV-STAFF TRNING,COMPANY BARCLAYCARD,0000213368,2632.00
DEPARTMENT OF ENERGY AND CLIMATE CHANGE,THE COAL AUTHORITY,02/08/2014,CHILDCARE VOUCHERS,LEGAL & COMMERCIAL,PERSONNEL RLTD-STAFF CHILDCARE,FIDELITI LIMITED,0000213005,100.00
DEPARTMENT OF ENERGY AND CLIMATE CHANGE,THE COAL AUTHORITY,01/08/2014,LEGAL COSTS,LEGAL & COMMERCIAL,PROF SER-OPERATIONAL SERVICES,LAND REGISTRY,0000212930,42.00
DEPARTMENT OF ENERGY AND CLIMATE CHANGE,THE COAL AUTHORITY,07/08/2014,LEGAL COSTS,LEGAL & COMMERCIAL,PROF SER-OPERATIONAL SERVICES,LAND REGISTRY,0000213009,39.00
DEPARTMENT OF ENERGY AND CLIMATE CHANGE,THE COAL AUTHORITY,08/08/2014,LEGAL COSTS,LEGAL & COMMERCIAL,PROF SER-OPERATIONAL SERVICES,LAND REGISTRY,0000213010,33.00
DEPARTMENT OF ENERGY AND CLIMATE CHANGE,THE COAL AUTHORITY,13/08/2014,LEGAL COSTS,LEGAL & COMMERCIAL,PROF SER-OPERATIONAL SERVICES,LAND REGISTRY,0000213090,21.00
DEPARTMENT OF ENERGY AND CLIMATE CHANGE,THE COAL AUTHORITY,25/07/2014,PAYMENTS TO AGENCIES FOR TEMPS,LEGAL & COMMERCIAL,PROF SER TMP STFF-TEMP WRKERS,KEY PERSONNEL SOLUTIONS L,0000212865,219.90
DEPARTMENT OF ENERGY AND CLIMATE CHANGE,THE COAL AUTHORITY,01/08/2014,PAYMENTS TO AGENCIES FOR TEMPS,LEGAL & COMMERCIAL,PROF SER TMP STFF-TEMP WRKERS,KEY PERSONNEL SOLUTIONS L,0000213000,219.90
DEPARTMENT OF ENERGY AND CLIMATE CHANGE,THE COAL AUTHORITY,08/08/2014,PAYMENTS TO AGENCIES FOR TEMPS,LEGAL & COMMERCIAL,PROF SER TMP STFF-TEMP WRKERS,KEY PERSONNEL SOLUTIONS L,0000213117,219.90
DEPARTMENT OF ENERGY AND CLIMATE CHANGE,THE COAL AUTHORITY,05/08/2014,CONSULTANCY,LICENSING,PROF SER TMP STFF-SPCLST CNTRT,WYG ENV PLANNING TRANSPOR,0000213018,2926.00
DEPARTMENT OF ENERGY AND CLIMATE CHANGE,THE COAL AUTHORITY,31/07/2014,CONSULTANCY,LICENSING,PROF SER CNSLTNCY-PROP/CNSTRCN,JMC ENGINEERING (UK) LTD,0000213052,8008.00
DEPARTMENT OF ENERGY AND CLIMATE CHANGE,THE COAL AUTHORITY,04/08/2014,LEGAL COSTS,LICENSING,PROF SER-LEGAL SERVICES,DLA PIPER UK LLP,0000213006,91.00
DEPARTMENT OF ENERGY AND CLIMATE CHANGE,THE COAL AUTHORITY,21/07/2014,LEGAL COSTS,LICENSING,PROF SER-LEGAL SERVICES,WALKER MORRIS,0000213008,307.00
DEPARTMENT OF ENERGY AND CLIMATE CHANGE,THE COAL AUTHORITY,21/07/2014,CONTRACTORS AND CLAIM COSTS,LICENSING: UK COAL,CONSTRUCTION-MAIN CONTRACTORS,INTAL DECORATORS LTD,0000212912,3525.47
DEPARTMENT OF ENERGY AND CLIMATE CHANGE,THE COAL AUTHORITY,01/08/2014,CONTRACTORS AND CLAIM COSTS,LICENSING: UK COAL,PROF SER-OPERATIONAL SERVICES,REIMBURSE PROFESSIONAL FE,0000212924,960.00
DEPARTMENT OF ENERGY AND CLIMATE CHANGE,THE COAL AUTHORITY,04/08/2014,CONTRACTORS AND CLAIM COSTS,LICENSING: UK COAL,CONSTRUCTION-MAIN CONTRACTORS,INTAL DECORATORS LTD,0000213072,6016.27
DEPARTMENT OF ENERGY AND CLIMATE CHANGE,THE COAL AUTHORITY,24/07/2014,CONTRACTORS AND CLAIM COSTS,LICENSING: UK COAL,CONSTRUCTION-CNSTRN SER PROVDR,INTERLOCK SURVEYS,0000213073,950.00
DEPARTMENT OF ENERGY AND CLIMATE CHANGE,THE COAL AUTHORITY,30/07/2014,CONTRACTORS AND CLAIM COSTS,LICENSING: UK COAL,CONSTRUCTION-CNSTRN SER PROVDR,INTERLOCK SURVEYS,0000213074,950.00
DEPARTMENT OF ENERGY AND CLIMATE CHANGE,THE COAL AUTHORITY,25/07/2014,CONTRACTORS AND CLAIM COSTS,LICENSING: UK COAL,CONSTRUCTION-CNSTRN SER PROVDR,INTERLOCK SURVEYS,0000213075,950.00
DEPARTMENT OF ENERGY AND CLIMATE CHANGE,THE COAL AUTHORITY,12/08/2014,CONTRACTORS AND CLAIM COSTS,LICENSING: UK COAL,CONSTRUCTION-MAIN CONTRACTORS,D S WILLIAMS PAINTERS & D,0000213120,3915.30
DEPARTMENT OF ENERGY AND CLIMATE CHANGE,THE COAL AUTHORITY,12/08/2014,CONTRACTORS AND CLAIM COSTS,LICENSING: UK COAL,CONSTRUCTION-MAIN CONTRACTORS,D S WILLIAMS PAINTERS & D,0000213121,6370.51
DEPARTMENT OF ENERGY AND CLIMATE CHANGE,THE COAL AUTHORITY,18/08/2014,CONTRACTORS AND CLAIM COSTS,LICENSING: UK COAL,"CONSTRUCTION-BLD,REPR&MAINTNCE",FULL & FINAL SETTLEMENT R,0000213229,57290.00
DEPARTMENT OF ENERGY AND CLIMATE CHANGE,THE COAL AUTHORITY,18/08/2014,CONTRACTORS AND CLAIM COSTS,LICENSING: UK COAL,FACILITIES-ACCOMDTN SERVICES,REIMBURSE ALTERNATIVE ACC,0000213231,250.00
DEPARTMENT OF ENERGY AND CLIMATE CHANGE,THE COAL AUTHORITY,18/08/2014,CONTRACTORS AND CLAIM COSTS,LICENSING: UK COAL,"CONSTRUCTION-BLD,REPR&MAINTNCE",REIMBURSE CARE HOME FEES,0000213232,1340.00
DEPARTMENT OF ENERGY AND CLIMATE CHANGE,THE COAL AUTHORITY,08/08/2014,CONTRACTORS AND CLAIM COSTS,LICENSING: UK COAL,CONSTRUCTION-CNSTRN SER PROVDR,INTERLOCK SURVEYS,0000213339,950.00
DEPARTMENT OF ENERGY AND CLIMATE CHANGE,THE COAL AUTHORITY,22/08/2014,CONTRACTORS AND CLAIM COSTS,LICENSING: UK COAL,"CONSTRUCTION-BLD,REPR&MAINTNCE",FULL & FINAL SETTLEMENT S,0000213415,10802.80
DEPARTMENT OF ENERGY AND CLIMATE CHANGE,THE COAL AUTHORITY,22/08/2014,CONTRACTORS AND CLAIM COSTS,LICENSING: UK COAL,"CONSTRUCTION-BLD,REPR&MAINTNCE",FULL & FIANL PAYMENT RE D,0000213417,117000.00
DEPARTMENT OF ENERGY AND CLIMATE CHANGE,THE COAL AUTHORITY,22/08/2014,CONTRACTORS AND CLAIM COSTS,LICENSING: UK COAL,"CONSTRUCTION-BLD,REPR&MAINTNCE",CI-345588 FULL & FINAL PA,0000213418,518.38
DEPARTMENT OF ENERGY AND CLIMATE CHANGE,THE COAL AUTHORITY,22/08/2014,CONTRACTORS AND CLAIM COSTS,LICENSING: UK COAL,"CONSTRUCTION-BLD,REPR&MAINTNCE",CI-345613 FULL & FINAL PA,0000213419,751.10
DEPARTMENT OF ENERGY AND CLIMATE CHANGE,THE COAL AUTHORITY,22/08/2014,CONTRACTORS AND CLAIM COSTS,LICENSING: UK COAL,"CONSTRUCTION-BLD,REPR&MAINTNCE",REIMBURSE CHEMICAL TOILET,0000213420,29.98
DEPARTMENT OF ENERGY AND CLIMATE CHANGE,THE COAL AUTHORITY,22/08/2014,CONTRACTORS AND CLAIM COSTS,LICENSING: UK COAL,"CONSTRUCTION-BLD,REPR&MAINTNCE",CI-345615 FULL & FINAL PA,0000213422,3427.20
DEPARTMENT OF ENERGY AND CLIMATE CHANGE,THE COAL AUTHORITY,27/08/2014,CONTRACTORS AND CLAIM COSTS,LICENSING: UK COAL,PROF SER-OPERATIONAL SERVICES,CONTRIBUTION TO AGENTS FE,0000213509,1558.92
DEPARTMENT OF ENERGY AND CLIMATE CHANGE,THE COAL AUTHORITY,27/08/2014,CONTRACTORS AND CLAIM COSTS,LICENSING: UK COAL,PROF SER-OPERATIONAL SERVICES,CONTRIBUTION TO AGENTS FE,0000213510,1106.65
DEPARTMENT OF ENERGY AND CLIMATE CHANGE,THE COAL AUTHORITY,30/07/2014,CURR YR ADD-INTNGBLE INFO TECH,MINE ENTRY INSPECTIONS,ICT-SYSTEMS DELIVERY,SCISYS UK LTD,0000212907,8699.58
DEPARTMENT OF ENERGY AND CLIMATE CHANGE,THE COAL AUTHORITY,27/08/2014,OFFICE MACHINERY PURCHASED,MINE ENTRY INSPECTIONS,OPRTNL GOODS&SERV-ELEC MNTRING,ENVIRONMENTAL SCIENTIFICS,0000213511,1446.60
DEPARTMENT OF ENERGY AND CLIMATE CHANGE,THE COAL AUTHORITY,07/08/2014,OUTSOURCED MANAGEMENT-PS&S,MINE ENTRY INSPECTIONS,SOCIAL CARE-EMERGENCY SERVICES,MINES RESCUE SERVICE LIMI,0000213017,42000.00
DEPARTMENT OF ENERGY AND CLIMATE CHANGE,THE COAL AUTHORITY,31/07/2014,OUTSOURCED MANAGEMENT-PS&S,MINE ENTRY INSPECTIONS,CONSTRUCTION-CNSTRN SER PROVDR,INTERLOCK SURVEYS,0000213067,7638.75
DEPARTMENT OF ENERGY AND CLIMATE CHANGE,THE COAL AUTHORITY,31/07/2014,OUTSOURCED MANAGEMENT-PS&S,MINE ENTRY INSPECTIONS,CONSTRUCTION-CNSTRN SER PROVDR,INTERLOCK SURVEYS,0000213069,1712.00
DEPARTMENT OF ENERGY AND CLIMATE CHANGE,THE COAL AUTHORITY,31/07/2014,OUTSOURCED MANAGEMENT-PS&S,MINE ENTRY INSPECTIONS,CONSTRUCTION-CNSTRN SER PROVDR,INTERLOCK SURVEYS,0000213070,4550.00
DEPARTMENT OF ENERGY AND CLIMATE CHANGE,THE COAL AUTHORITY,31/07/2014,OUTSOURCED MANAGEMENT-PS&S,MINE ENTRY INSPECTIONS,CONSTRUCTION-CNSTRN SER PROVDR,INTERLOCK SURVEYS,0000213071,1137.50
DEPARTMENT OF ENERGY AND CLIMATE CHANGE,THE COAL AUTHORITY,31/07/2014,APPRENTICE COSTS,MINING INFORMATION COMMERCIAL,PROF SER TMP STFF-TEMP WRKERS,FUTURES ADVICE SKILLS & E,0000213001,1245.50
DEPARTMENT OF ENERGY AND CLIMATE CHANGE,THE COAL AUTHORITY,01/08/2014,COMMISSION CHARGES-E-COMMERCE,MINING INFORMATION COMMERCIAL,PROF SER FNCL-BANKING&INVSTMNT,WORLDPAY,0000213028,1419.06
DEPARTMENT OF ENERGY AND CLIMATE CHANGE,THE COAL AUTHORITY,05/08/2014,COMMISSION CHARGES-E-COMMERCE,MINING INFORMATION COMMERCIAL,PROF SER FNCL-BANKING&INVSTMNT,WORLDPAY LIMITED,0000213096,814.29
DEPARTMENT OF ENERGY AND CLIMATE CHANGE,THE COAL AUTHORITY,01/08/2014,COURIER SERVICES,MINING INFORMATION COMMERCIAL,OFFICE SOLUTIONS-POST&COURIER,TNT UK LIMITED,0000213034,82.55
DEPARTMENT OF ENERGY AND CLIMATE CHANGE,THE COAL AUTHORITY,08/08/2014,COURIER SERVICES,MINING INFORMATION COMMERCIAL,OFFICE SOLUTIONS-POST&COURIER,TNT UK LIMITED,0000213091,107.83
DEPARTMENT OF ENERGY AND CLIMATE CHANGE,THE COAL AUTHORITY,15/08/2014,COURIER SERVICES,MINING INFORMATION COMMERCIAL,OFFICE SOLUTIONS-POST&COURIER,TNT UK LIMITED,0000213325,118.57
DEPARTMENT OF ENERGY AND CLIMATE CHANGE,THE COAL AUTHORITY,15/08/2014,COURIER SERVICES,MINING INFORMATION COMMERCIAL,OFFICE SOLUTIONS-POST&COURIER,TNT UK LIMITED,0000213351,-10.92
DEPARTMENT OF ENERGY AND CLIMATE CHANGE,THE COAL AUTHORITY,27/07/2014,IT-APPLICATIONS MANAGEMENT,MINING INFORMATION COMMERCIAL,ICT-TELECOMS,BRITISH TELECOMMUNICATION,0000212935,3560.25
DEPARTMENT OF ENERGY AND CLIMATE CHANGE,THE COAL AUTHORITY,21/08/2014,IT-APPLICATIONS MANAGEMENT,MINING INFORMATION COMMERCIAL,ICT-MAINTENANCE & SUPPORT,SYSTEM ASSOCIATES,0000213437,5000.00
DEPARTMENT OF ENERGY AND CLIMATE CHANGE,THE COAL AUTHORITY,31/07/2014,LEGAL COSTS,MINING INFORMATION COMMERCIAL,PROF SER-LEGAL SERVICES,SMITHS GORE,0000213011,3294.00
DEPARTMENT OF ENERGY AND CLIMATE CHANGE,THE COAL AUTHORITY,25/07/2014,PAYMENTS TO AGENCIES FOR TEMPS,MINING INFORMATION COMMERCIAL,PROF SER TMP STFF-TEMP WRKERS,KEY PERSONNEL SOLUTIONS L,0000212865,792.88
DEPARTMENT OF ENERGY AND CLIMATE CHANGE,THE COAL AUTHORITY,25/07/2014,PAYMENTS TO AGENCIES FOR TEMPS,MINING INFORMATION COMMERCIAL,PROF SER TMP STFF-SPCLST CNTRT,KEY PERSONNEL SOLUTIONS L,0000212865,446.00
DEPARTMENT OF ENERGY AND CLIMATE CHANGE,THE COAL AUTHORITY,06/06/2014,PAYMENTS TO AGENCIES FOR TEMPS,MINING INFORMATION COMMERCIAL,PROF SER TMP STFF-TEMP WRKERS,KEY PERSONNEL SOLUTIONS L,0000212937,502.32
DEPARTMENT OF ENERGY AND CLIMATE CHANGE,THE COAL AUTHORITY,01/08/2014,PAYMENTS TO AGENCIES FOR TEMPS,MINING INFORMATION COMMERCIAL,PROF SER TMP STFF-TEMP WRKERS,KEY PERSONNEL SOLUTIONS L,0000213000,851.18
DEPARTMENT OF ENERGY AND CLIMATE CHANGE,THE COAL AUTHORITY,01/08/2014,PAYMENTS TO AGENCIES FOR TEMPS,MINING INFORMATION COMMERCIAL,PROF SER TMP STFF-TEMP WRKERS,KEY PERSONNEL SOLUTIONS L,0000213000,431.42
DEPARTMENT OF ENERGY AND CLIMATE CHANGE,THE COAL AUTHORITY,08/08/2014,PAYMENTS TO AGENCIES FOR TEMPS,MINING INFORMATION COMMERCIAL,PROF SER TMP STFF-TEMP WRKERS,KEY PERSONNEL SOLUTIONS L,0000213117,819.12
DEPARTMENT OF ENERGY AND CLIMATE CHANGE,THE COAL AUTHORITY,08/08/2014,PAYMENTS TO AGENCIES FOR TEMPS,MINING INFORMATION COMMERCIAL,PROF SER TMP STFF-TEMP WRKERS,KEY PERSONNEL SOLUTIONS L,0000213117,448.91
DEPARTMENT OF ENERGY AND CLIMATE CHANGE,THE COAL AUTHORITY,28/07/2014,ROYALTIES,MINING INFORMATION COMMERCIAL,PSPES NOT APPLICABLE,NERC,0000212925,11714.25
DEPARTMENT OF ENERGY AND CLIMATE CHANGE,THE COAL AUTHORITY,02/08/2014,CHILDCARE VOUCHERS,MINING INFORMATION WHOLESALE,PERSONNEL RLTD-STAFF CHILDCARE,FIDELITI LIMITED,0000213005,240.00
DEPARTMENT OF ENERGY AND CLIMATE CHANGE,THE COAL AUTHORITY,01/08/2014,COMMISSION CHARGES-E-COMMERCE,MINING INFORMATION WHOLESALE,PROF SER FNCL-BANKING&INVSTMNT,WORLDPAY,0000213028,61.79
DEPARTMENT OF ENERGY AND CLIMATE CHANGE,THE COAL AUTHORITY,31/07/2014,FARES - AIR,MINING INFORMATION WHOLESALE,TRAVEL&EVENTS-AIR,REDFERN TRAVEL LTD,0000213077,182.70
DEPARTMENT OF ENERGY AND CLIMATE CHANGE,THE COAL AUTHORITY,31/07/2014,HOTEL ACCOMMODATION,MINING INFORMATION WHOLESALE,TRAVEL&EVENTS-HOTELS,REDFERN TRAVEL LTD,0000213076,254.63
DEPARTMENT OF ENERGY AND CLIMATE CHANGE,THE COAL AUTHORITY,27/07/2014,IT-APPLICATIONS MANAGEMENT,MINING INFORMATION WHOLESALE,ICT-TELECOMS,BRITISH TELECOMMUNICATION,0000212935,3560.25
DEPARTMENT OF ENERGY AND CLIMATE CHANGE,THE COAL AUTHORITY,04/08/2014,LEGAL COSTS,MINING INFORMATION WHOLESALE,PROF SER-LEGAL SERVICES,DLA PIPER UK LLP,0000213006,168.00
DEPARTMENT OF ENERGY AND CLIMATE CHANGE,THE COAL AUTHORITY,28/07/2014,CURR YR ADDNS NON COAL MINES,NON-COAL MINEWATER (DEFRA),PROF SER TECH-ENGINEERING SER,MOTT MACDONALD LTD,0000212868,2892.20
DEPARTMENT OF ENERGY AND CLIMATE CHANGE,THE COAL AUTHORITY,28/07/2014,CURR YR ADDNS NON COAL MINES,NON-COAL MINEWATER (DEFRA),PROF SER TECH-ENGINEERING SER,MOTT MACDONALD LTD,0000212870,3428.00
DEPARTMENT OF ENERGY AND CLIMATE CHANGE,THE COAL AUTHORITY,31/07/2014,CURR YR ADDNS NON COAL MINES,NON-COAL MINEWATER (DEFRA),PROF SER TECH-ENGINEERING SER,JMC ENGINEERING (UK) LTD,0000213048,259.00
DEPARTMENT OF ENERGY AND CLIMATE CHANGE,THE COAL AUTHORITY,31/07/2014,CURR YR ADDNS NON COAL MINES,NON-COAL MINEWATER (DEFRA),PROF SER TECH-ENGINEERING SER,MOTT MACDONALD LTD,0000213135,2336.80
DEPARTMENT OF ENERGY AND CLIMATE CHANGE,THE COAL AUTHORITY,08/08/2014,INCIDENTALS,NON-COAL MINEWATER (DEFRA),VEHICLES-FLEET MANAGEMENT,COMPANY BARCLAYCARD,0000213359,8.33
DEPARTMENT OF ENERGY AND CLIMATE CHANGE,THE COAL AUTHORITY,01/08/2014,IT-APPLICATIONS MANAGEMENT,NON-COAL MINEWATER (DEFRA),ICT-SOFTWARE,CONJECT LIMITED,0000213252,1314.00
DEPARTMENT OF ENERGY AND CLIMATE CHANGE,THE COAL AUTHORITY,31/07/2014,M/W CHEMICAL OPERATIONAL,NON-COAL MINEWATER (DEFRA),ENGRNG GOODS-NON-MDICL CHMCLS,BIOCHEMICA UK LIMITED,0000212911,270.00
DEPARTMENT OF ENERGY AND CLIMATE CHANGE,THE COAL AUTHORITY,08/08/2014,M/W CHEMICAL OPERATIONAL,NON-COAL MINEWATER (DEFRA),ENGRNG GOODS-NON-MDICL CHMCLS,BIOCHEMICA UK LIMITED,0000213128,270.00
DEPARTMENT OF ENERGY AND CLIMATE CHANGE,THE COAL AUTHORITY,23/07/2014,M/W CNTRCTR-OPRTNL MNTLY TSKS,NON-COAL MINEWATER (DEFRA),CONSTRUCTION-MAIN CONTRACTORS,INTEGRATED WATER SERVICES,0000212711,147.94
DEPARTMENT OF ENERGY AND CLIMATE CHANGE,THE COAL AUTHORITY,21/07/2014,M/W PUMPING TESTS,NON-COAL MINEWATER (DEFRA),CONSTRUCTION-MAIN CONTRACTORS,INTEGRATED WATER SERVICES,0000212648,2433.96
DEPARTMENT OF ENERGY AND CLIMATE CHANGE,THE COAL AUTHORITY,28/07/2014,M/W PUMPING TESTS,NON-COAL MINEWATER (DEFRA),CONSTRUCTION-MAIN CONTRACTORS,INTEGRATED WATER SERVICES,0000212877,6851.74
DEPARTMENT OF ENERGY AND CLIMATE CHANGE,THE COAL AUTHORITY,28/07/2014,M/W PUMPING TESTS,NON-COAL MINEWATER (DEFRA),CONSTRUCTION-MAIN CONTRACTORS,INTEGRATED WATER SERVICES,0000212878,304.73
DEPARTMENT OF ENERGY AND CLIMATE CHANGE,THE COAL AUTHORITY,31/07/2014,M/W PUMPING TESTS,NON-COAL MINEWATER (DEFRA),CONSTRUCTION-MAIN CONTRACTORS,INTEGRATED WATER SERVICES,0000212955,2932.01
DEPARTMENT OF ENERGY AND CLIMATE CHANGE,THE COAL AUTHORITY,18/08/2014,M/W PUMPING TESTS,NON-COAL MINEWATER (DEFRA),CONSTRUCTION-MAIN CONTRACTORS,INTEGRATED WATER SERVICES,0000213271,6701.05
DEPARTMENT OF ENERGY AND CLIMATE CHANGE,THE COAL AUTHORITY,11/08/2014,M/W PUMPING TESTS,NON-COAL MINEWATER (DEFRA),CONSTRUCTION-MAIN CONTRACTORS,INTEGRATED WATER SERVICES,0000213274,3805.23
DEPARTMENT OF ENERGY AND CLIMATE CHANGE,THE COAL AUTHORITY,04/08/2014,M/W RESEARCH AND DEVELOPMENT,NON-COAL MINEWATER (DEFRA),PROF SER TECH-ENGINEERING SER,NEWCASTLE UNIVERSITY,0000213241,11207.12
DEPARTMENT OF ENERGY AND CLIMATE CHANGE,THE COAL AUTHORITY,11/07/2014,M/W SCOPING/FEASIBILITY/CONCEP,NON-COAL MINEWATER (DEFRA),PROF SER-ENVIRONMENTAL SRVICES,ENVIRO CENTRE,0000212462,3000.00
DEPARTMENT OF ENERGY AND CLIMATE CHANGE,THE COAL AUTHORITY,06/08/2014,M/W SLUDGE DISPOSAL,NON-COAL MINEWATER (DEFRA),CONSTRUCTION-MAIN CONTRACTORS,INTEGRATED WATER SERVICES,0000213290,9583.22
DEPARTMENT OF ENERGY AND CLIMATE CHANGE,THE COAL AUTHORITY,05/08/2014,MONITORING & FLOW MEASUREMENT,NON-COAL MINEWATER (DEFRA),CONSTRUCTION-MAIN CONTRACTORS,INTEGRATED WATER SERVICES,0000213279,130.64
DEPARTMENT OF ENERGY AND CLIMATE CHANGE,THE COAL AUTHORITY,05/08/2014,MONITORING & FLOW MEASUREMENT,NON-COAL MINEWATER (DEFRA),CONSTRUCTION-MAIN CONTRACTORS,INTEGRATED WATER SERVICES,0000213279,217.73
DEPARTMENT OF ENERGY AND CLIMATE CHANGE,THE COAL AUTHORITY,05/08/2014,MONITORING & FLOW MEASUREMENT,NON-COAL MINEWATER (DEFRA),CONSTRUCTION-MAIN CONTRACTORS,INTEGRATED WATER SERVICES,0000213279,464.48
DEPARTMENT OF ENERGY AND CLIMATE CHANGE,THE COAL AUTHORITY,04/08/2014,R&D-EXTERNAL COSTS,NON-COAL MINEWATER (DEFRA),PROF SER TECH-ENGINEERING SER,NEWCASTLE UNIVERSITY,0000213241,5421.00
DEPARTMENT OF ENERGY AND CLIMATE CHANGE,THE COAL AUTHORITY,08/08/2014,SUBSISTENCE ALLOWANCES,NON-COAL MINEWATER (DEFRA),FACILITIES - FOOD,COMPANY BARCLAYCARD,0000213397,6.45
DEPARTMENT OF ENERGY AND CLIMATE CHANGE,THE COAL AUTHORITY,30/07/2014,WATER SAMPLING - DEVELOPMENT,NON-COAL MINEWATER (DEFRA),PROF SER TECH-FORENSIC/LAB SER,ENVIRONMENTAL SCIENTIFICS,0000212970,205.20
DEPARTMENT OF ENERGY AND CLIMATE CHANGE,THE COAL AUTHORITY,30/07/2014,WATER SAMPLING - DEVELOPMENT,NON-COAL MINEWATER (DEFRA),PROF SER TECH-FORENSIC/LAB SER,ENVIRONMENTAL SCIENTIFICS,0000212970,51.30
DEPARTMENT OF ENERGY AND CLIMATE CHANGE,THE COAL AUTHORITY,30/07/2014,WATER SAMPLING - DEVELOPMENT,NON-COAL MINEWATER (DEFRA),PROF SER TECH-FORENSIC/LAB SER,ENVIRONMENTAL SCIENTIFICS,0000212970,51.30
DEPARTMENT OF ENERGY AND CLIMATE CHANGE,THE COAL AUTHORITY,30/07/2014,WATER SAMPLING - DEVELOPMENT,NON-COAL MINEWATER (DEFRA),PROF SER TECH-FORENSIC/LAB SER,ENVIRONMENTAL SCIENTIFICS,0000212970,102.60
DEPARTMENT OF ENERGY AND CLIMATE CHANGE,THE COAL AUTHORITY,30/07/2014,WATER SAMPLING - DEVELOPMENT,NON-COAL MINEWATER (DEFRA),PROF SER TECH-FORENSIC/LAB SER,ENVIRONMENTAL SCIENTIFICS,0000212970,51.30
DEPARTMENT OF ENERGY AND CLIMATE CHANGE,THE COAL AUTHORITY,30/07/2014,WATER SAMPLING - DEVELOPMENT,NON-COAL MINEWATER (DEFRA),PROF SER TECH-FORENSIC/LAB SER,ENVIRONMENTAL SCIENTIFICS,0000212970,102.60
DEPARTMENT OF ENERGY AND CLIMATE CHANGE,THE COAL AUTHORITY,30/07/2014,WATER SAMPLING - DEVELOPMENT,NON-COAL MINEWATER (DEFRA),PROF SER TECH-FORENSIC/LAB SER,ENVIRONMENTAL SCIENTIFICS,0000212970,102.60
DEPARTMENT OF ENERGY AND CLIMATE CHANGE,THE COAL AUTHORITY,30/07/2014,WATER SAMPLING - DEVELOPMENT,NON-COAL MINEWATER (DEFRA),PROF SER TECH-FORENSIC/LAB SER,ENVIRONMENTAL SCIENTIFICS,0000212970,102.60
DEPARTMENT OF ENERGY AND CLIMATE CHANGE,THE COAL AUTHORITY,30/07/2014,WATER SAMPLING - OPERATIONAL,NON-COAL MINEWATER (DEFRA),PROF SER TECH-FORENSIC/LAB SER,ENVIRONMENTAL SCIENTIFICS,0000212970,2149.29
DEPARTMENT OF ENERGY AND CLIMATE CHANGE,THE COAL AUTHORITY,30/07/2014,WATER SAMPLING - OPERATIONAL,NON-COAL MINEWATER (DEFRA),PROF SER TECH-FORENSIC/LAB SER,ENVIRONMENTAL SCIENTIFICS,0000212970,741.12
DEPARTMENT OF ENERGY AND CLIMATE CHANGE,THE COAL AUTHORITY,02/08/2014,CHILDCARE VOUCHERS,PERMISSIONS,PERSONNEL RLTD-STAFF CHILDCARE,FIDELITI LIMITED,0000213005,243.00
DEPARTMENT OF ENERGY AND CLIMATE CHANGE,THE COAL AUTHORITY,01/08/2014,COMMISSION CHARGES-E-COMMERCE,PERMISSIONS,PROF SER FNCL-BANKING&INVSTMNT,WORLDPAY,0000213028,495.92
DEPARTMENT OF ENERGY AND CLIMATE CHANGE,THE COAL AUTHORITY,31/07/2013,CURR YR ADD-INTNGBLE INFO TECH,PERMISSIONS,ICT-SYSTEMS DELIVERY,SCISYS UK LTD,0000202596,50053.80
DEPARTMENT OF ENERGY AND CLIMATE CHANGE,THE COAL AUTHORITY,30/07/2014,PAYMENTS TO AGENCIES FOR TEMPS,PERMISSIONS,PROF SER TMP STFF-TEMP WRKERS,STAFFORCE RECRUITMENT,0000213002,277.43
DEPARTMENT OF ENERGY AND CLIMATE CHANGE,THE COAL AUTHORITY,05/08/2014,PAYMENTS TO AGENCIES FOR TEMPS,PERMISSIONS,PROF SER TMP STFF-TEMP WRKERS,STAFFORCE RECRUITMENT,0000213003,456.21
DEPARTMENT OF ENERGY AND CLIMATE CHANGE,THE COAL AUTHORITY,12/08/2014,PAYMENTS TO AGENCIES FOR TEMPS,PERMISSIONS,PROF SER TMP STFF-TEMP WRKERS,STAFFORCE RECRUITMENT,0000213312,271.26
DEPARTMENT OF ENERGY AND CLIMATE CHANGE,THE COAL AUTHORITY,20/08/2014,PAYMENTS TO AGENCIES FOR TEMPS,PERMISSIONS,PROF SER TMP STFF-SPCLST CNTRT,STAFFORCE RECRUITMENT,0000213453,456.21
DEPARTMENT OF ENERGY AND CLIMATE CHANGE,THE COAL AUTHORITY,30/07/2014,CAR HIRE,PLANNING & LOCAL AUTH LIAISON,TRAVEL&EVENTS-VEHICLE HIRE,ENTERPRISE RENT A CAR,0000212919,36.75
DEPARTMENT OF ENERGY AND CLIMATE CHANGE,THE COAL AUTHORITY,28/07/2014,CONSULTANCY,PLANNING & LOCAL AUTH LIAISON,PROF SER CNSLTNCY-PROP/CNSTRCN,ANTHONY NORTHCOTE PLANNIN,0000212806,3209.76
DEPARTMENT OF ENERGY AND CLIMATE CHANGE,THE COAL AUTHORITY,26/08/2014,CONSULTANCY,PLANNING & LOCAL AUTH LIAISON,PROF SER CNSLTNCY-PROP/CNSTRCN,ANTHONY NORTHCOTE PLANNIN,0000213455,802.44
DEPARTMENT OF ENERGY AND CLIMATE CHANGE,THE COAL AUTHORITY,30/07/2014,CURR YR ADD-INTNGBLE INFO TECH,PLANNING & LOCAL AUTH LIAISON,ICT-SYSTEMS DELIVERY,SCISYS UK LTD,0000212907,4349.80
DEPARTMENT OF ENERGY AND CLIMATE CHANGE,THE COAL AUTHORITY,31/07/2014,FARES - RAIL,PLANNING & LOCAL AUTH LIAISON,TRAVEL&EVENTS-RAIL,REDFERN TRAVEL LTD,0000213077,72.50
DEPARTMENT OF ENERGY AND CLIMATE CHANGE,THE COAL AUTHORITY,08/08/2014,FUEL (VEHICLE),PLANNING & LOCAL AUTH LIAISON,FUELS/LUBRCNT/GAS-FUELS,COMPANY BARCLAYCARD,0000213376,84.01
DEPARTMENT OF ENERGY AND CLIMATE CHANGE,THE COAL AUTHORITY,31/07/2014,HOTEL ACCOMMODATION,PLANNING & LOCAL AUTH LIAISON,TRAVEL&EVENTS-HOTELS,REDFERN TRAVEL LTD,0000213076,121.30
DEPARTMENT OF ENERGY AND CLIMATE CHANGE,THE COAL AUTHORITY,27/08/2014,INCIDENTALS,PLANNING & LOCAL AUTH LIAISON,VEHICLES-FLEET MANAGEMENT,STAFF EXPENSES CONTROL,0000213486,16.66
DEPARTMENT OF ENERGY AND CLIMATE CHANGE,THE COAL AUTHORITY,27/08/2014,MILEAGE PAYMENTS,PLANNING & LOCAL AUTH LIAISON,FUELS/LUBRCNT/GAS-FUELS,STAFF EXPENSES CONTROL,0000213486,17.28
DEPARTMENT OF ENERGY AND CLIMATE CHANGE,THE COAL AUTHORITY,08/08/2014,SUBSISTENCE ALLOWANCES,PLANNING & LOCAL AUTH LIAISON,FACILITIES - FOOD,COMPANY BARCLAYCARD,0000213376,8.89
DEPARTMENT OF ENERGY AND CLIMATE CHANGE,THE COAL AUTHORITY,27/08/2014,SUBSISTENCE ALLOWANCES,PLANNING & LOCAL AUTH LIAISON,FACILITIES - FOOD,STAFF EXPENSES CONTROL,0000213486,37.29
DEPARTMENT OF ENERGY AND CLIMATE CHANGE,THE COAL AUTHORITY,30/06/2014,TRAINING AND EDUCATION,PLANNING & LOCAL AUTH LIAISON,PROF SER LRNG&DEV-STAFF TRNING,MINERAL PRODUCTS ASSOC,0000212938,300.00
DEPARTMENT OF ENERGY AND CLIMATE CHANGE,THE COAL AUTHORITY,27/08/2014,FARES - PUBLIC TRANSPORT,PROCUREMENT,TRAVEL&EVENTS-TAXI,STAFF EXPENSES CONTROL,0000213490,9.60
DEPARTMENT OF ENERGY AND CLIMATE CHANGE,THE COAL AUTHORITY,31/07/2014,HOTEL ACCOMMODATION,PROCUREMENT,TRAVEL&EVENTS-HOTELS,REDFERN TRAVEL LTD,0000213076,2.60
DEPARTMENT OF ENERGY AND CLIMATE CHANGE,THE COAL AUTHORITY,27/08/2014,INCIDENTALS,PROCUREMENT,VEHICLES-FLEET MANAGEMENT,STAFF EXPENSES CONTROL,0000213490,27.50
DEPARTMENT OF ENERGY AND CLIMATE CHANGE,THE COAL AUTHORITY,04/08/2014,LEGAL COSTS,PROCUREMENT,PROF SER-LEGAL SERVICES,DLA PIPER UK LLP,0000213006,1884.00
DEPARTMENT OF ENERGY AND CLIMATE CHANGE,THE COAL AUTHORITY,27/08/2014,MILEAGE PAYMENTS,PROCUREMENT,FUELS/LUBRCNT/GAS-FUELS,STAFF EXPENSES CONTROL,0000213490,16.20
DEPARTMENT OF ENERGY AND CLIMATE CHANGE,THE COAL AUTHORITY,27/08/2014,SUBSISTENCE ALLOWANCES,PROCUREMENT,FACILITIES - FOOD,STAFF EXPENSES CONTROL,0000213490,24.77
DEPARTMENT OF ENERGY AND CLIMATE CHANGE,THE COAL AUTHORITY,22/07/2014,CONSULTANCY - PROPERTY SALES,PROPERTY MANAGEMENT & SALES,PROF SER-OPERATIONAL SERVICES,BUTTERS JOHN BEE,0000213308,1595.00
DEPARTMENT OF ENERGY AND CLIMATE CHANGE,THE COAL AUTHORITY,30/07/2014,LAND MANAGEMENT-ESTATES,PROPERTY MANAGEMENT & SALES,PROF SER CNSLTNCY-PROP/CNSTRCN,COOKE & ARKWRIGHT,0000212959,276.54
DEPARTMENT OF ENERGY AND CLIMATE CHANGE,THE COAL AUTHORITY,04/08/2014,LAND MANAGEMENT-ESTATES,PROPERTY MANAGEMENT & SALES,PROF SER TECH-ENGINEERING SER,ATKINS LIMITED,0000213251,1771.60
DEPARTMENT OF ENERGY AND CLIMATE CHANGE,THE COAL AUTHORITY,01/08/2014,LEGAL COSTS,PROPERTY MANAGEMENT & SALES,PROF SER-LEGAL SERVICES,ANDERSON STRATHERN,0000213007,429.00
DEPARTMENT OF ENERGY AND CLIMATE CHANGE,THE COAL AUTHORITY,31/07/2014,LEGAL COSTS,PROPERTY MANAGEMENT & SALES,PROF SER-LEGAL SERVICES,SHEPHERD & WEDDERBURN,0000213301,6178.00
DEPARTMENT OF ENERGY AND CLIMATE CHANGE,THE COAL AUTHORITY,01/08/2014,LEGAL FEES - SALES,PROPERTY MANAGEMENT & SALES,PROF SER-LEGAL SERVICES,ANDERSON STRATHERN,0000213007,141.00
DEPARTMENT OF ENERGY AND CLIMATE CHANGE,THE COAL AUTHORITY,31/07/2014,OTHER CONTRACTOR COSTS,PROPERTY MANAGEMENT & SALES,PROF SER CNSLTNCY-PPM CNSLTNCY,JMC ENGINEERING (UK) LTD,0000213041,2729.90
DEPARTMENT OF ENERGY AND CLIMATE CHANGE,THE COAL AUTHORITY,31/07/2014,PROPERTY /TIP MAINTENANCE,PROPERTY MANAGEMENT & SALES,PROF SER CNSLTNCY-PPM CNSLTNCY,INTEGRATED WATER SERVICES,0000212900,209.71
DEPARTMENT OF ENERGY AND CLIMATE CHANGE,THE COAL AUTHORITY,30/07/2014,PROPERTY /TIP MAINTENANCE,PROPERTY MANAGEMENT & SALES,PROF SER-ENVIRONMENTAL SRVICES,GARDEN BEAUTY MAINT SERV,0000212961,530.00
DEPARTMENT OF ENERGY AND CLIMATE CHANGE,THE COAL AUTHORITY,30/07/2014,PROPERTY /TIP MAINTENANCE,PROPERTY MANAGEMENT & SALES,PROF SER-ENVIRONMENTAL SRVICES,GARDEN BEAUTY MAINT SERV,0000212962,560.00
DEPARTMENT OF ENERGY AND CLIMATE CHANGE,THE COAL AUTHORITY,07/08/2014,PROPERTY /TIP MAINTENANCE,PROPERTY MANAGEMENT & SALES,PROF SER TECH-FORENSIC/LAB SER,ENVIRONMENTAL SCIENTIFICS,0000213302,214.82
DEPARTMENT OF ENERGY AND CLIMATE CHANGE,THE COAL AUTHORITY,05/08/2014,PROPERTY RATES PAYABLE,PROPERTY MANAGEMENT & SALES,ENERGY&UTILITIES-ELECTRICITY,BRITISH GAS BUSINESS,0000213099,40.56
DEPARTMENT OF ENERGY AND CLIMATE CHANGE,THE COAL AUTHORITY,24/07/2014,PROPERTY RENTS PAYABLE,PROPERTY MANAGEMENT & SALES,FACILITIES-BUILDING MANAGEMENT,CITY OF NEWCASTLE UPON TY,0000212866,500.00
DEPARTMENT OF ENERGY AND CLIMATE CHANGE,THE COAL AUTHORITY,24/07/2014,RESTRTN CLSED CLLRY STE-PROP,PROPERTY MANAGEMENT & SALES,FACILITIES-BUILDING MANAGEMENT,OVENDEN PLANT HIRE LIMITE,0000213248,1385.30
DEPARTMENT OF ENERGY AND CLIMATE CHANGE,THE COAL AUTHORITY,28/07/2014,RESTRTN CLSED CLLRY STE-PROP,PROPERTY MANAGEMENT & SALES,FACILITIES-BUILDING MANAGEMENT,OVENDEN PLANT HIRE LIMITE,0000213249,4121.05
DEPARTMENT OF ENERGY AND CLIMATE CHANGE,THE COAL AUTHORITY,31/07/2014,RESTRTN CLSED CLLRY STE-PROP,PROPERTY MANAGEMENT & SALES,PROF SER-OPERATIONAL SERVICES,CRIMEFIGHTER ALARMS LTD,0000213253,1912.56
DEPARTMENT OF ENERGY AND CLIMATE CHANGE,THE COAL AUTHORITY,01/08/2014,COMMISSION CHARGES-E-COMMERCE,RECORDS STORAGE,PROF SER FNCL-BANKING&INVSTMNT,WORLDPAY,0000213028,127.77
DEPARTMENT OF ENERGY AND CLIMATE CHANGE,THE COAL AUTHORITY,31/07/2014,FARES - RAIL,RESEARCH & DEVELOPMENT,TRAVEL&EVENTS-RAIL,REDFERN TRAVEL LTD,0000213077,96.75
DEPARTMENT OF ENERGY AND CLIMATE CHANGE,THE COAL AUTHORITY,31/07/2014,CENTRAL TRAINING BUDGET,SHE/CDM,PROF SER LRNG&DEV-STAFF TRNING,IAM DRIVE A SURVIVE LTD,0000213013,200.00
DEPARTMENT OF ENERGY AND CLIMATE CHANGE,THE COAL AUTHORITY,05/08/2014,CENTRAL TRAINING BUDGET,SHE/CDM,PROF SER LRNG&DEV-STAFF TRNING,MINES RESCUE SERVICE LIMI,0000213014,194.00
DEPARTMENT OF ENERGY AND CLIMATE CHANGE,THE COAL AUTHORITY,05/08/2014,CENTRAL TRAINING BUDGET,SHE/CDM,PROF SER LRNG&DEV-STAFF TRNING,MINES RESCUE SERVICE LIMI,0000213015,194.00
DEPARTMENT OF ENERGY AND CLIMATE CHANGE,THE COAL AUTHORITY,05/08/2014,CENTRAL TRAINING BUDGET,SHE/CDM,PROF SER LRNG&DEV-STAFF TRNING,MINES RESCUE SERVICE LIMI,0000213016,194.00
DEPARTMENT OF ENERGY AND CLIMATE CHANGE,THE COAL AUTHORITY,12/08/2014,CENTRAL TRAINING BUDGET,SHE/CDM,PROF SER LRNG&DEV-STAFF TRNING,RISK & SAFETY MANAGEMENT,0000213097,724.00
DEPARTMENT OF ENERGY AND CLIMATE CHANGE,THE COAL AUTHORITY,14/08/2014,CENTRAL TRAINING BUDGET,SHE/CDM,PROF SER LRNG&DEV-STAFF TRNING,IAM DRIVE A SURVIVE LTD,0000213317,310.00
DEPARTMENT OF ENERGY AND CLIMATE CHANGE,THE COAL AUTHORITY,18/08/2014,CENTRAL TRAINING BUDGET,SHE/CDM,PROF SER LRNG&DEV-STAFF TRNING,BRITISH SAFETY COUNCIL,0000213320,15345.00
DEPARTMENT OF ENERGY AND CLIMATE CHANGE,THE COAL AUTHORITY,27/08/2014,FARES - PUBLIC TRANSPORT,SHE/CDM,TRAVEL&EVENTS-TAXI,STAFF EXPENSES CONTROL,0000213501,6.60
DEPARTMENT OF ENERGY AND CLIMATE CHANGE,THE COAL AUTHORITY,31/07/2014,FARES - RAIL,SHE/CDM,TRAVEL&EVENTS-RAIL,REDFERN TRAVEL LTD,0000213077,118.58
DEPARTMENT OF ENERGY AND CLIMATE CHANGE,THE COAL AUTHORITY,08/08/2014,FUEL (VEHICLE),SHE/CDM,FUELS/LUBRCNT/GAS-FUELS,COMPANY BARCLAYCARD,0000213377,45.71
DEPARTMENT OF ENERGY AND CLIMATE CHANGE,THE COAL AUTHORITY,11/08/2014,HEALTH & SAFETY GROUP,SHE/CDM,PERSONNEL RLTD-STAFF SUBSCRPTN,CEDREC INFORMATION SYSTEM,0000213316,1000.00
DEPARTMENT OF ENERGY AND CLIMATE CHANGE,THE COAL AUTHORITY,31/07/2014,HOTEL ACCOMMODATION,SHE/CDM,TRAVEL&EVENTS-HOTELS,REDFERN TRAVEL LTD,0000213076,304.03
DEPARTMENT OF ENERGY AND CLIMATE CHANGE,THE COAL AUTHORITY,08/08/2014,HOTEL ACCOMMODATION,SHE/CDM,TRAVEL&EVENTS-HOTELS,COMPANY BARCLAYCARD,0000213372,297.50
DEPARTMENT OF ENERGY AND CLIMATE CHANGE,THE COAL AUTHORITY,08/08/2014,INCIDENTALS,SHE/CDM,VEHICLES-FLEET MANAGEMENT,COMPANY BARCLAYCARD,0000213377,10.00
DEPARTMENT OF ENERGY AND CLIMATE CHANGE,THE COAL AUTHORITY,08/08/2014,INCIDENTALS,SHE/CDM,VEHICLES-FLEET MANAGEMENT,COMPANY BARCLAYCARD,0000213378,38.66
DEPARTMENT OF ENERGY AND CLIMATE CHANGE,THE COAL AUTHORITY,08/08/2014,MEETINGS,SHE/CDM,TRAVEL&EVENTS-EVENT ORGNSTN,COMPANY BARCLAYCARD,0000213372,243.08
DEPARTMENT OF ENERGY AND CLIMATE CHANGE,THE COAL AUTHORITY,27/08/2014,MILEAGE PAYMENTS,SHE/CDM,FUELS/LUBRCNT/GAS-FUELS,STAFF EXPENSES CONTROL,0000213501,14.40
DEPARTMENT OF ENERGY AND CLIMATE CHANGE,THE COAL AUTHORITY,17/07/2014,SAFETY CLOTHING,SHE/CDM,OPRTNL GOODS&SERV-CLOTHING,ARCO LIMITED,0000213113,101.64
DEPARTMENT OF ENERGY AND CLIMATE CHANGE,THE COAL AUTHORITY,18/07/2014,SAFETY CLOTHING,SHE/CDM,OPRTNL GOODS&SERV-CLOTHING,ARCO LIMITED,0000213114,13.90
DEPARTMENT OF ENERGY AND CLIMATE CHANGE,THE COAL AUTHORITY,11/08/2014,SAFETY CLOTHING,SHE/CDM,OPRTNL GOODS&SERV-CLOTHING,ARCO LIMITED,0000213321,94.32
DEPARTMENT OF ENERGY AND CLIMATE CHANGE,THE COAL AUTHORITY,08/08/2014,SAFETY CLOTHING,SHE/CDM,OPRTNL GOODS&SERV-CLOTHING,COMPANY BARCLAYCARD,0000213352,13.44
DEPARTMENT OF ENERGY AND CLIMATE CHANGE,THE COAL AUTHORITY,08/08/2014,SAFETY CLOTHING,SHE/CDM,OPRTNL GOODS&SERV-CLOTHING,COMPANY BARCLAYCARD,0000213372,57.00
DEPARTMENT OF ENERGY AND CLIMATE CHANGE,THE COAL AUTHORITY,11/06/2014,SAFETY CLOTHING,SHE/CDM,OPRTNL GOODS&SERV-CLOTHING,ARCO LIMITED,0000213436,86.26
DEPARTMENT OF ENERGY AND CLIMATE CHANGE,THE COAL AUTHORITY,14/08/2014,SAFETY CLOTHING,SHE/CDM,OPRTNL GOODS&SERV-CLOTHING,ARCO LIMITED,0000213447,32.81
DEPARTMENT OF ENERGY AND CLIMATE CHANGE,THE COAL AUTHORITY,18/08/2014,SAFETY CLOTHING,SHE/CDM,OPRTNL GOODS&SERV-CLOTHING,ARCO LIMITED,0000213456,35.28
DEPARTMENT OF ENERGY AND CLIMATE CHANGE,THE COAL AUTHORITY,19/08/2014,SAFETY CLOTHING,SHE/CDM,OPRTNL GOODS&SERV-CLOTHING,ARCO LIMITED,0000213457,96.70
DEPARTMENT OF ENERGY AND CLIMATE CHANGE,THE COAL AUTHORITY,08/08/2014,STAFF EVENTS,SHE/CDM,OPRTNL GOODS&SERV-CLOTHING,COMPANY BARCLAYCARD,0000213372,6.25
DEPARTMENT OF ENERGY AND CLIMATE CHANGE,THE COAL AUTHORITY,08/08/2014,SUBSISTENCE ALLOWANCES,SHE/CDM,FACILITIES - FOOD,COMPANY BARCLAYCARD,0000213372,79.04
DEPARTMENT OF ENERGY AND CLIMATE CHANGE,THE COAL AUTHORITY,08/08/2014,SUBSISTENCE ALLOWANCES,SHE/CDM,FACILITIES - FOOD,COMPANY BARCLAYCARD,0000213378,30.11
DEPARTMENT OF ENERGY AND CLIMATE CHANGE,THE COAL AUTHORITY,27/08/2014,SUBSISTENCE ALLOWANCES,SHE/CDM,FACILITIES - FOOD,STAFF EXPENSES CONTROL,0000213501,36.91
DEPARTMENT OF ENERGY AND CLIMATE CHANGE,THE COAL AUTHORITY,23/07/2014,CNTRCTR & CLAIM CSTS-BRDGEWATR,SUBSIDENCE,CONSTRUCTION-CNSTRN SER PROVDR,THE BRIDGEWATER CANAL CO,0000212838,3225.00
DEPARTMENT OF ENERGY AND CLIMATE CHANGE,THE COAL AUTHORITY,06/08/2014,CNTRCTR & CLAIM CSTS-BRDGEWATR,SUBSIDENCE,CONSTRUCTION-CNSTRN SER PROVDR,THE BRIDGEWATER CANAL CO,0000213058,564.38
DEPARTMENT OF ENERGY AND CLIMATE CHANGE,THE COAL AUTHORITY,26/08/2014,CNTRCTR & CLAIM CSTS-BRDGEWATR,SUBSIDENCE,CONSTRUCTION-MAIN CONTRACTORS,THE BRIDGEWATER CANAL CO,0000213479,337.73
DEPARTMENT OF ENERGY AND CLIMATE CHANGE,THE COAL AUTHORITY,26/08/2014,CNTRCTR & CLAIM CSTS-BRDGEWATR,SUBSIDENCE,CONSTRUCTION-CNSTRN SER PROVDR,THE BRIDGEWATER CANAL CO,0000213480,443.62
DEPARTMENT OF ENERGY AND CLIMATE CHANGE,THE COAL AUTHORITY,01/08/2014,CONTRACTORS AND CLAIM COSTS,SUBSIDENCE,PROF SER-OPERATIONAL SERVICES,PAYMENT FOR TEMPORARY TRA,0000212934,818.00
DEPARTMENT OF ENERGY AND CLIMATE CHANGE,THE COAL AUTHORITY,11/08/2014,CONTRACTORS AND CLAIM COSTS,SUBSIDENCE,PROF SER-OPERATIONAL SERVICES,AGENTS FEES,0000212996,1298.58
DEPARTMENT OF ENERGY AND CLIMATE CHANGE,THE COAL AUTHORITY,11/08/2014,CONTRACTORS AND CLAIM COSTS,SUBSIDENCE,"CONSTRUCTION-BLD,REPR&MAINTNCE",CROP LOSS,0000212997,250.00
DEPARTMENT OF ENERGY AND CLIMATE CHANGE,THE COAL AUTHORITY,30/06/2014,CONTRACTORS AND CLAIM COSTS,SUBSIDENCE,CONSTRUCTION-CNSTRN SER PROVDR,PMC SURVEYS,0000213055,1600.00
DEPARTMENT OF ENERGY AND CLIMATE CHANGE,THE COAL AUTHORITY,11/08/2014,CONTRACTORS AND CLAIM COSTS,SUBSIDENCE,CONSTRUCTION-CNSTRN SER PROVDR,PMC SURVEYS,0000213056,2183.24
DEPARTMENT OF ENERGY AND CLIMATE CHANGE,THE COAL AUTHORITY,13/08/2014,CONTRACTORS AND CLAIM COSTS,SUBSIDENCE,PROF SER-OPERATIONAL SERVICES,GATE FIELD AGENTS FEES,0000213083,1658.36
DEPARTMENT OF ENERGY AND CLIMATE CHANGE,THE COAL AUTHORITY,13/08/2014,CONTRACTORS AND CLAIM COSTS,SUBSIDENCE,PROF SER-OPERATIONAL SERVICES,MIDDLEMOOR FIELD AGENTS F,0000213084,632.75
DEPARTMENT OF ENERGY AND CLIMATE CHANGE,THE COAL AUTHORITY,13/08/2014,CONTRACTORS AND CLAIM COSTS,SUBSIDENCE,PROF SER-OPERATIONAL SERVICES,HILLY GRASS FIELD AGENTS,0000213085,1745.05
DEPARTMENT OF ENERGY AND CLIMATE CHANGE,THE COAL AUTHORITY,13/08/2014,CONTRACTORS AND CLAIM COSTS,SUBSIDENCE,"CONSTRUCTION-BLD,REPR&MAINTNCE","TEMPORARY FENCING, CROP L",0000213086,1950.00
DEPARTMENT OF ENERGY AND CLIMATE CHANGE,THE COAL AUTHORITY,18/08/2014,CONTRACTORS AND CLAIM COSTS,SUBSIDENCE,CONSTRUCTION-CNSTRN SER PROVDR,GEOL-CONSULTANTS LTD,0000213233,800.00
DEPARTMENT OF ENERGY AND CLIMATE CHANGE,THE COAL AUTHORITY,18/08/2014,CONTRACTORS AND CLAIM COSTS,SUBSIDENCE,CONSTRUCTION-CNSTRN SER PROVDR,CORNERSTONE  PROJECTS LTD,0000213263,103.00
DEPARTMENT OF ENERGY AND CLIMATE CHANGE,THE COAL AUTHORITY,15/08/2014,CONTRACTORS AND CLAIM COSTS,SUBSIDENCE,PROF SER-OPERATIONAL SERVICES,IDRS LIMITED,0000213333,2931.30
DEPARTMENT OF ENERGY AND CLIMATE CHANGE,THE COAL AUTHORITY,15/08/2014,CONTRACTORS AND CLAIM COSTS,SUBSIDENCE,CONSTRUCTION-MAIN CONTRACTORS,TURNEY WYLDE CONSTRUCTION,0000213334,7224.18
DEPARTMENT OF ENERGY AND CLIMATE CHANGE,THE COAL AUTHORITY,15/08/2014,CONTRACTORS AND CLAIM COSTS,SUBSIDENCE,CONSTRUCTION-MAIN CONTRACTORS,TURNEY WYLDE CONSTRUCTION,0000213335,718.00
DEPARTMENT OF ENERGY AND CLIMATE CHANGE,THE COAL AUTHORITY,14/08/2014,CONTRACTORS AND CLAIM COSTS,SUBSIDENCE,CONSTRUCTION-CNSTRN SER PROVDR,PMC SURVEYS,0000213343,3292.20
DEPARTMENT OF ENERGY AND CLIMATE CHANGE,THE COAL AUTHORITY,14/08/2014,CONTRACTORS AND CLAIM COSTS,SUBSIDENCE,PROF SER-OPERATIONAL SERVICES,BUTTERS JOHN BEE,0000213344,450.00
DEPARTMENT OF ENERGY AND CLIMATE CHANGE,THE COAL AUTHORITY,21/08/2014,CONTRACTORS AND CLAIM COSTS,SUBSIDENCE,CONSTRUCTION-MAIN CONTRACTORS,BALFOUR BEATTY CIVIL ENG,0000213430,147.24
DEPARTMENT OF ENERGY AND CLIMATE CHANGE,THE COAL AUTHORITY,12/08/2014,CONTRACTORS AND CLAIM COSTS,SUBSIDENCE,CONSTRUCTION-MAIN CONTRACTORS,BALFOUR BEATTY CIVIL ENG,0000213466,737.40
DEPARTMENT OF ENERGY AND CLIMATE CHANGE,THE COAL AUTHORITY,20/08/2014,CONTRACTORS AND CLAIM COSTS,SUBSIDENCE,CONSTRUCTION-MAIN CONTRACTORS,GEOL-CONSULTANTS LTD,0000213472,1560.00
DEPARTMENT OF ENERGY AND CLIMATE CHANGE,THE COAL AUTHORITY,14/08/2014,CONTRACTORS AND CLAIM COSTS,SUBSIDENCE,ENERGY&UTILITIES-WATER,NORTHUMBRIAN WATER LIMITE,0000213475,482.81
DEPARTMENT OF ENERGY AND CLIMATE CHANGE,THE COAL AUTHORITY,22/08/2014,CONTRACTORS AND CLAIM COSTS,SUBSIDENCE,CONSTRUCTION-MAIN CONTRACTORS,SOIL ENGINEERING GEOSERVI,0000213476,130.20
DEPARTMENT OF ENERGY AND CLIMATE CHANGE,THE COAL AUTHORITY,22/08/2014,CONTRACTORS AND CLAIM COSTS,SUBSIDENCE,CONSTRUCTION-MAIN CONTRACTORS,SOIL ENGINEERING GEOSERVI,0000213477,130.20
DEPARTMENT OF ENERGY AND CLIMATE CHANGE,THE COAL AUTHORITY,22/08/2014,CONTRACTORS AND CLAIM COSTS,SUBSIDENCE,CONSTRUCTION-MAIN CONTRACTORS,SOIL ENGINEERING GEOSERVI,0000213478,2172.64
DEPARTMENT OF ENERGY AND CLIMATE CHANGE,THE COAL AUTHORITY,20/08/2014,CONTRACTORS AND CLAIM COSTS,SUBSIDENCE,ENERGY&UTILITIES-ELECTRICITY,EDF ENERGY,0000213481,56.76
DEPARTMENT OF ENERGY AND CLIMATE CHANGE,THE COAL AUTHORITY,20/08/2014,CONTRACTORS AND CLAIM COSTS,SUBSIDENCE,ENERGY&UTILITIES-ELECTRICITY,BRITISH GAS TRADING LTD,0000213482,37.65
DEPARTMENT OF ENERGY AND CLIMATE CHANGE,THE COAL AUTHORITY,27/08/2014,CONTRACTORS AND CLAIM COSTS,SUBSIDENCE,PROF SER-OPERATIONAL SERVICES,AGENTS FEES,0000213507,357.50
DEPARTMENT OF ENERGY AND CLIMATE CHANGE,THE COAL AUTHORITY,27/08/2014,CONTRACTORS AND CLAIM COSTS,SUBSIDENCE,"CONSTRUCTION-BLD,REPR&MAINTNCE",REMEDIATION WORKS TO COLL,0000213508,1100.00
DEPARTMENT OF ENERGY AND CLIMATE CHANGE,THE COAL AUTHORITY,27/08/2014,CONTRACTORS AND CLAIM COSTS,SUBSIDENCE,CONSTRUCTION-MAIN CONTRACTORS,ALLIANCE CONSTRUCTION SOL,0000213575,67.75
DEPARTMENT OF ENERGY AND CLIMATE CHANGE,THE COAL AUTHORITY,27/08/2014,CONTRACTORS AND CLAIM COSTS,SUBSIDENCE,CONSTRUCTION-MAIN CONTRACTORS,ALLIANCE CONSTRUCTION SOL,0000213579,255.00
DEPARTMENT OF ENERGY AND CLIMATE CHANGE,THE COAL AUTHORITY,04/08/2014,LEGAL COSTS,SUBSIDENCE,PROF SER-LEGAL SERVICES,DLA PIPER UK LLP,0000213006,16378.20
DEPARTMENT OF ENERGY AND CLIMATE CHANGE,THE COAL AUTHORITY,07/08/2014,CONTRACTORS AND CLAIM COSTS,SUBSIDENCE PUMPING STATIONS,ENERGY&UTILITIES-ELECTRICITY,BRITISH GAS BUSINESS,0000213179,517.71
DEPARTMENT OF ENERGY AND CLIMATE CHANGE,THE COAL AUTHORITY,23/07/2014,SUB PUMP STTN MAINTENANCE-OTHR,SUBSIDENCE PUMPING STATIONS,CONSTRUCTION-MAIN CONTRACTORS,INTEGRATED WATER SERVICES,0000212710,249.85
DEPARTMENT OF ENERGY AND CLIMATE CHANGE,THE COAL AUTHORITY,23/07/2014,SUB PUMP STTN MAINTENANCE-OTHR,SUBSIDENCE PUMPING STATIONS,CONSTRUCTION-MAIN CONTRACTORS,INTEGRATED WATER SERVICES,0000212710,116.12
DEPARTMENT OF ENERGY AND CLIMATE CHANGE,THE COAL AUTHORITY,04/07/2014,SUB PUMP STTN MAINTENANCE-OTHR,SUBSIDENCE PUMPING STATIONS,"CONSTRUCTION-BLD,REPR&MAINTNCE",ENVIRONMENT AGENCY,0000212713,1227.91
DEPARTMENT OF ENERGY AND CLIMATE CHANGE,THE COAL AUTHORITY,04/07/2014,SUB PUMP STTN MAINTENANCE-OTHR,SUBSIDENCE PUMPING STATIONS,"CONSTRUCTION-BLD,REPR&MAINTNCE",ENVIRONMENT AGENCY,0000212713,4329.51
DEPARTMENT OF ENERGY AND CLIMATE CHANGE,THE COAL AUTHORITY,04/07/2014,SUB PUMP STTN MAINTENANCE-OTHR,SUBSIDENCE PUMPING STATIONS,"CONSTRUCTION-BLD,REPR&MAINTNCE",ENVIRONMENT AGENCY,0000212713,16246.96
DEPARTMENT OF ENERGY AND CLIMATE CHANGE,THE COAL AUTHORITY,04/07/2014,SUB PUMP STTN MAINTENANCE-OTHR,SUBSIDENCE PUMPING STATIONS,"CONSTRUCTION-BLD,REPR&MAINTNCE",ENVIRONMENT AGENCY,0000212713,34649.06
DEPARTMENT OF ENERGY AND CLIMATE CHANGE,THE COAL AUTHORITY,30/06/2014,SUB PUMP STTN MAINTENANCE-OTHR,SUBSIDENCE PUMPING STATIONS,TRAVEL&EVENTS-VEHICLE HIRE,DONCASTER EAST I D B,0000212830,1364.94
DEPARTMENT OF ENERGY AND CLIMATE CHANGE,THE COAL AUTHORITY,30/06/2014,SUB PUMP STTN MAINTENANCE-OTHR,SUBSIDENCE PUMPING STATIONS,PROF SER-ENVIRONMENTAL SRVICES,DONCASTER EAST I D B,0000212830,271.82
DEPARTMENT OF ENERGY AND CLIMATE CHANGE,THE COAL AUTHORITY,30/06/2014,SUB PUMP STTN MAINTENANCE-OTHR,SUBSIDENCE PUMPING STATIONS,"CONSTRUCTION-BLD,REPR&MAINTNCE",DONCASTER EAST I D B,0000212830,2324.00
DEPARTMENT OF ENERGY AND CLIMATE CHANGE,THE COAL AUTHORITY,30/06/2014,SUB PUMP STTN MAINTENANCE-OTHR,SUBSIDENCE PUMPING STATIONS,"CONSTRUCTION-BLD,REPR&MAINTNCE",DONCASTER EAST I D B,0000212830,10.00
DEPARTMENT OF ENERGY AND CLIMATE CHANGE,THE COAL AUTHORITY,30/06/2014,SUB PUMP STTN MAINTENANCE-OTHR,SUBSIDENCE PUMPING STATIONS,"CONSTRUCTION-BLD,REPR&MAINTNCE",DONCASTER EAST I D B,0000212830,3655.00
DEPARTMENT OF ENERGY AND CLIMATE CHANGE,THE COAL AUTHORITY,30/06/2014,SUB PUMP STTN MAINTENANCE-OTHR,SUBSIDENCE PUMPING STATIONS,"CONSTRUCTION-BLD,REPR&MAINTNCE",DONCASTER EAST I D B,0000212830,53.28
DEPARTMENT OF ENERGY AND CLIMATE CHANGE,THE COAL AUTHORITY,30/06/2014,SUB PUMP STTN MAINTENANCE-OTHR,SUBSIDENCE PUMPING STATIONS,"CONSTRUCTION-BLD,REPR&MAINTNCE",DONCASTER EAST I D B,0000212830,10.00
DEPARTMENT OF ENERGY AND CLIMATE CHANGE,THE COAL AUTHORITY,30/06/2014,SUB PUMP STTN MAINTENANCE-OTHR,SUBSIDENCE PUMPING STATIONS,"CONSTRUCTION-BLD,REPR&MAINTNCE",DONCASTER EAST I D B,0000212830,1675.00
DEPARTMENT OF ENERGY AND CLIMATE CHANGE,THE COAL AUTHORITY,30/06/2014,SUB PUMP STTN MAINTENANCE-OTHR,SUBSIDENCE PUMPING STATIONS,"CONSTRUCTION-BLD,REPR&MAINTNCE",DONCASTER EAST I D B,0000212830,126.00
DEPARTMENT OF ENERGY AND CLIMATE CHANGE,THE COAL AUTHORITY,30/06/2014,SUB PUMP STTN MAINTENANCE-OTHR,SUBSIDENCE PUMPING STATIONS,ICT-TELECOMS,DONCASTER EAST I D B,0000212830,121.48
DEPARTMENT OF ENERGY AND CLIMATE CHANGE,THE COAL AUTHORITY,30/06/2014,SUB PUMP STTN MAINTENANCE-OTHR,SUBSIDENCE PUMPING STATIONS,ICT-TELECOMS,DONCASTER EAST I D B,0000212830,200.21
DEPARTMENT OF ENERGY AND CLIMATE CHANGE,THE COAL AUTHORITY,30/06/2014,SUB PUMP STTN MAINTENANCE-OTHR,SUBSIDENCE PUMPING STATIONS,ICT-TELECOMS,DONCASTER EAST I D B,0000212830,200.31
DEPARTMENT OF ENERGY AND CLIMATE CHANGE,THE COAL AUTHORITY,30/06/2014,SUB PUMP STTN MAINTENANCE-OTHR,SUBSIDENCE PUMPING STATIONS,ICT-TELECOMS,DONCASTER EAST I D B,0000212830,0.73
DEPARTMENT OF ENERGY AND CLIMATE CHANGE,THE COAL AUTHORITY,30/06/2014,SUB PUMP STTN MAINTENANCE-OTHR,SUBSIDENCE PUMPING STATIONS,ICT-TELECOMS,DONCASTER EAST I D B,0000212830,202.96
DEPARTMENT OF ENERGY AND CLIMATE CHANGE,THE COAL AUTHORITY,30/06/2014,SUB PUMP STTN MAINTENANCE-OTHR,SUBSIDENCE PUMPING STATIONS,ICT-TELECOMS,DONCASTER EAST I D B,0000212830,29.02
DEPARTMENT OF ENERGY AND CLIMATE CHANGE,THE COAL AUTHORITY,30/06/2014,SUB PUMP STTN MAINTENANCE-OTHR,SUBSIDENCE PUMPING STATIONS,ICT-TELECOMS,DONCASTER EAST I D B,0000212830,71.40
DEPARTMENT OF ENERGY AND CLIMATE CHANGE,THE COAL AUTHORITY,30/06/2014,SUB PUMP STTN MAINTENANCE-OTHR,SUBSIDENCE PUMPING STATIONS,ICT-TELECOMS,DONCASTER EAST I D B,0000212830,3.59
DEPARTMENT OF ENERGY AND CLIMATE CHANGE,THE COAL AUTHORITY,30/06/2014,SUB PUMP STTN MAINTENANCE-OTHR,SUBSIDENCE PUMPING STATIONS,ICT-TELECOMS,DONCASTER EAST I D B,0000212830,200.00
DEPARTMENT OF ENERGY AND CLIMATE CHANGE,THE COAL AUTHORITY,30/06/2014,SUB PUMP STTN MAINTENANCE-OTHR,SUBSIDENCE PUMPING STATIONS,ICT-TELECOMS,DONCASTER EAST I D B,0000212830,14.51
DEPARTMENT OF ENERGY AND CLIMATE CHANGE,THE COAL AUTHORITY,30/06/2014,SUB PUMP STTN MAINTENANCE-OTHR,SUBSIDENCE PUMPING STATIONS,ICT-TELECOMS,DONCASTER EAST I D B,0000212830,4.65
DEPARTMENT OF ENERGY AND CLIMATE CHANGE,THE COAL AUTHORITY,30/06/2014,SUB PUMP STTN MAINTENANCE-OTHR,SUBSIDENCE PUMPING STATIONS,PROF SER TMP STFF-TEMP WRKERS,DONCASTER EAST I D B,0000212830,17.53
DEPARTMENT OF ENERGY AND CLIMATE CHANGE,THE COAL AUTHORITY,30/06/2014,SUB PUMP STTN MAINTENANCE-OTHR,SUBSIDENCE PUMPING STATIONS,PROF SER TMP STFF-TEMP WRKERS,DONCASTER EAST I D B,0000212830,21.03
DEPARTMENT OF ENERGY AND CLIMATE CHANGE,THE COAL AUTHORITY,30/06/2014,SUB PUMP STTN MAINTENANCE-OTHR,SUBSIDENCE PUMPING STATIONS,PROF SER TMP STFF-TEMP WRKERS,DONCASTER EAST I D B,0000212830,3963.57
DEPARTMENT OF ENERGY AND CLIMATE CHANGE,THE COAL AUTHORITY,30/06/2014,SUB PUMP STTN MAINTENANCE-OTHR,SUBSIDENCE PUMPING STATIONS,PROF SER TMP STFF-TEMP WRKERS,DONCASTER EAST I D B,0000212830,438.20
DEPARTMENT OF ENERGY AND CLIMATE CHANGE,THE COAL AUTHORITY,30/06/2014,SUB PUMP STTN MAINTENANCE-OTHR,SUBSIDENCE PUMPING STATIONS,PROF SER TMP STFF-TEMP WRKERS,DONCASTER EAST I D B,0000212830,21.03
DEPARTMENT OF ENERGY AND CLIMATE CHANGE,THE COAL AUTHORITY,30/06/2014,SUB PUMP STTN MAINTENANCE-OTHR,SUBSIDENCE PUMPING STATIONS,PROF SER TMP STFF-TEMP WRKERS,DONCASTER EAST I D B,0000212830,350.57
DEPARTMENT OF ENERGY AND CLIMATE CHANGE,THE COAL AUTHORITY,30/06/2014,SUB PUMP STTN MAINTENANCE-OTHR,SUBSIDENCE PUMPING STATIONS,FUELS/LUBRCNT/GAS-FUELS,DONCASTER EAST I D B,0000212830,2.98
DEPARTMENT OF ENERGY AND CLIMATE CHANGE,THE COAL AUTHORITY,19/08/2014,SUB PUMP STTN MAINTENANCE-OTHR,SUBSIDENCE PUMPING STATIONS,"CONSTRUCTION-BLD,REPR&MAINTNCE",OUSE&DERWNT INTERN DRAING,0000213295,497.91
DEPARTMENT OF ENERGY AND CLIMATE CHANGE,THE COAL AUTHORITY,31/07/2014,SUB PUMP STTN MAINTENANCE-OTHR,SUBSIDENCE PUMPING STATIONS,"CONSTRUCTION-BLD,REPR&MAINTNCE",OUSE&DERWNT INTERN DRAING,0000213296,494.24
DEPARTMENT OF ENERGY AND CLIMATE CHANGE,THE COAL AUTHORITY,31/07/2014,SUB PUMP STTN MAINTENANCE-OTHR,SUBSIDENCE PUMPING STATIONS,"CONSTRUCTION-BLD,REPR&MAINTNCE",OUSE&DERWNT INTERN DRAING,0000213297,887.35
DEPARTMENT OF ENERGY AND CLIMATE CHANGE,THE COAL AUTHORITY,31/07/2014,SUB PUMP STTN MAINTENANCE-OTHR,SUBSIDENCE PUMPING STATIONS,"CONSTRUCTION-BLD,REPR&MAINTNCE",OUSE&DERWNT INTERN DRAING,0000213298,300.32
DEPARTMENT OF ENERGY AND CLIMATE CHANGE,THE COAL AUTHORITY,31/07/2014,SUB PUMP STTN MAINTENANCE-OTHR,SUBSIDENCE PUMPING STATIONS,"CONSTRUCTION-BLD,REPR&MAINTNCE",OUSE&DERWNT INTERN DRAING,0000213299,-7.50
DEPARTMENT OF ENERGY AND CLIMATE CHANGE,THE COAL AUTHORITY,31/07/2014,SUB PUMP STTN MAINTENANCE-OTHR,SUBSIDENCE PUMPING STATIONS,"CONSTRUCTION-BLD,REPR&MAINTNCE",OUSE&DERWNT INTERN DRAING,0000213300,229.86
DEPARTMENT OF ENERGY AND CLIMATE CHANGE,THE COAL AUTHORITY,04/07/2014,SUB PUMP STTN MAINTENANCE-PWER,SUBSIDENCE PUMPING STATIONS,ENERGY&UTILITIES-ELECTRICITY,ENVIRONMENT AGENCY,0000212713,8854.40
DEPARTMENT OF ENERGY AND CLIMATE CHANGE,THE COAL AUTHORITY,30/06/2014,SUB PUMP STTN MAINTENANCE-PWER,SUBSIDENCE PUMPING STATIONS,ENERGY&UTILITIES-ELECTRICITY,DONCASTER EAST I D B,0000212830,539.15
DEPARTMENT OF ENERGY AND CLIMATE CHANGE,THE COAL AUTHORITY,30/06/2014,SUB PUMP STTN MAINTENANCE-PWER,SUBSIDENCE PUMPING STATIONS,ENERGY&UTILITIES-ELECTRICITY,DONCASTER EAST I D B,0000212830,390.07
DEPARTMENT OF ENERGY AND CLIMATE CHANGE,THE COAL AUTHORITY,30/06/2014,SUB PUMP STTN MAINTENANCE-PWER,SUBSIDENCE PUMPING STATIONS,ENERGY&UTILITIES-ELECTRICITY,DONCASTER EAST I D B,0000212830,2.61
DEPARTMENT OF ENERGY AND CLIMATE CHANGE,THE COAL AUTHORITY,30/06/2014,SUB PUMP STTN MAINTENANCE-PWER,SUBSIDENCE PUMPING STATIONS,ENERGY&UTILITIES-ELECTRICITY,DONCASTER EAST I D B,0000212830,7.14
DEPARTMENT OF ENERGY AND CLIMATE CHANGE,THE COAL AUTHORITY,30/06/2014,SUB PUMP STTN MAINTENANCE-PWER,SUBSIDENCE PUMPING STATIONS,ENERGY&UTILITIES-ELECTRICITY,DONCASTER EAST I D B,0000212830,577.60
DEPARTMENT OF ENERGY AND CLIMATE CHANGE,THE COAL AUTHORITY,30/06/2014,SUB PUMP STTN MAINTENANCE-PWER,SUBSIDENCE PUMPING STATIONS,ENERGY&UTILITIES-ELECTRICITY,DONCASTER EAST I D B,0000212830,152.58
DEPARTMENT OF ENERGY AND CLIMATE CHANGE,THE COAL AUTHORITY,30/06/2014,SUB PUMP STTN MAINTENANCE-PWER,SUBSIDENCE PUMPING STATIONS,ENERGY&UTILITIES-ELECTRICITY,DONCASTER EAST I D B,0000212830,6.09
DEPARTMENT OF ENERGY AND CLIMATE CHANGE,THE COAL AUTHORITY,30/06/2014,SUB PUMP STTN MAINTENANCE-PWER,SUBSIDENCE PUMPING STATIONS,ENERGY&UTILITIES-ELECTRICITY,DONCASTER EAST I D B,0000212830,1347.04
DEPARTMENT OF ENERGY AND CLIMATE CHANGE,THE COAL AUTHORITY,30/06/2014,SUB PUMP STTN MAINTENANCE-PWER,SUBSIDENCE PUMPING STATIONS,ENERGY&UTILITIES-ELECTRICITY,DONCASTER EAST I D B,0000212830,670.84
DEPARTMENT OF ENERGY AND CLIMATE CHANGE,THE COAL AUTHORITY,07/08/2014,SUB PUMP STTN MAINTENANCE-PWER,SUBSIDENCE PUMPING STATIONS,ENERGY&UTILITIES-ELECTRICITY,BRITISH GAS BUSINESS,0000213102,32.10
DEPARTMENT OF ENERGY AND CLIMATE CHANGE,THE COAL AUTHORITY,07/08/2014,SUB PUMP STTN MAINTENANCE-PWER,SUBSIDENCE PUMPING STATIONS,ENERGY&UTILITIES-ELECTRICITY,BRITISH GAS BUSINESS,0000213103,29.32
DEPARTMENT OF ENERGY AND CLIMATE CHANGE,THE COAL AUTHORITY,07/08/2014,SUB PUMP STTN MAINTENANCE-PWER,SUBSIDENCE PUMPING STATIONS,ENERGY&UTILITIES-ELECTRICITY,BRITISH GAS BUSINESS,0000213104,50.17
DEPARTMENT OF ENERGY AND CLIMATE CHANGE,THE COAL AUTHORITY,07/08/2014,SUB PUMP STTN MAINTENANCE-PWER,SUBSIDENCE PUMPING STATIONS,ENERGY&UTILITIES-ELECTRICITY,BRITISH GAS BUSINESS,0000213105,15.15
DEPARTMENT OF ENERGY AND CLIMATE CHANGE,THE COAL AUTHORITY,07/08/2014,SUB PUMP STTN MAINTENANCE-PWER,SUBSIDENCE PUMPING STATIONS,ENERGY&UTILITIES-ELECTRICITY,BRITISH GAS BUSINESS,0000213106,64.44
DEPARTMENT OF ENERGY AND CLIMATE CHANGE,THE COAL AUTHORITY,07/08/2014,SUB PUMP STTN MAINTENANCE-PWER,SUBSIDENCE PUMPING STATIONS,ENERGY&UTILITIES-ELECTRICITY,BRITISH GAS BUSINESS,0000213107,43.32
DEPARTMENT OF ENERGY AND CLIMATE CHANGE,THE COAL AUTHORITY,07/08/2014,SUB PUMP STTN MAINTENANCE-PWER,SUBSIDENCE PUMPING STATIONS,ENERGY&UTILITIES-ELECTRICITY,BRITISH GAS BUSINESS,0000213108,52.18
DEPARTMENT OF ENERGY AND CLIMATE CHANGE,THE COAL AUTHORITY,11/08/2014,SUB PUMP STTN MAINTENANCE-PWER,SUBSIDENCE PUMPING STATIONS,ENERGY&UTILITIES-ELECTRICITY,EDF ENERGY,0000213112,892.42
DEPARTMENT OF ENERGY AND CLIMATE CHANGE,THE COAL AUTHORITY,11/08/2014,SUB PUMP STTN MAINTENANCE-PWER,SUBSIDENCE PUMPING STATIONS,ENERGY&UTILITIES-ELECTRICITY,EDF ENERGY,0000213112,765.28
DEPARTMENT OF ENERGY AND CLIMATE CHANGE,THE COAL AUTHORITY,11/08/2014,SUB PUMP STTN MAINTENANCE-PWER,SUBSIDENCE PUMPING STATIONS,ENERGY&UTILITIES-ELECTRICITY,EDF ENERGY,0000213112,296.03
DEPARTMENT OF ENERGY AND CLIMATE CHANGE,THE COAL AUTHORITY,11/08/2014,SUB PUMP STTN MAINTENANCE-PWER,SUBSIDENCE PUMPING STATIONS,ENERGY&UTILITIES-ELECTRICITY,EDF ENERGY,0000213112,1440.37
DEPARTMENT OF ENERGY AND CLIMATE CHANGE,THE COAL AUTHORITY,07/08/2014,SUB PUMP STTN MAINTENANCE-PWER,SUBSIDENCE PUMPING STATIONS,ENERGY&UTILITIES-ELECTRICITY,BRITISH GAS BUSINESS,0000213174,32.93
DEPARTMENT OF ENERGY AND CLIMATE CHANGE,THE COAL AUTHORITY,07/08/2014,SUB PUMP STTN MAINTENANCE-PWER,SUBSIDENCE PUMPING STATIONS,ENERGY&UTILITIES-ELECTRICITY,BRITISH GAS BUSINESS,0000213175,12.54
DEPARTMENT OF ENERGY AND CLIMATE CHANGE,THE COAL AUTHORITY,07/08/2014,SUB PUMP STTN MAINTENANCE-PWER,SUBSIDENCE PUMPING STATIONS,ENERGY&UTILITIES-ELECTRICITY,BRITISH GAS BUSINESS,0000213176,240.96
DEPARTMENT OF ENERGY AND CLIMATE CHANGE,THE COAL AUTHORITY,07/08/2014,SUB PUMP STTN MAINTENANCE-PWER,SUBSIDENCE PUMPING STATIONS,ENERGY&UTILITIES-ELECTRICITY,BRITISH GAS BUSINESS,0000213177,408.24
DEPARTMENT OF ENERGY AND CLIMATE CHANGE,THE COAL AUTHORITY,07/08/2014,SUB PUMP STTN MAINTENANCE-PWER,SUBSIDENCE PUMPING STATIONS,ENERGY&UTILITIES-ELECTRICITY,BRITISH GAS BUSINESS,0000213178,44.05
DEPARTMENT OF ENERGY AND CLIMATE CHANGE,THE COAL AUTHORITY,07/08/2014,SUB PUMP STTN MAINTENANCE-PWER,SUBSIDENCE PUMPING STATIONS,ENERGY&UTILITIES-ELECTRICITY,BRITISH GAS BUSINESS,0000213180,488.47
DEPARTMENT OF ENERGY AND CLIMATE CHANGE,THE COAL AUTHORITY,07/08/2014,SUB PUMP STTN MAINTENANCE-PWER,SUBSIDENCE PUMPING STATIONS,ENERGY&UTILITIES-ELECTRICITY,BRITISH GAS BUSINESS,0000213181,116.33
DEPARTMENT OF ENERGY AND CLIMATE CHANGE,THE COAL AUTHORITY,07/08/2014,SUB PUMP STTN MAINTENANCE-PWER,SUBSIDENCE PUMPING STATIONS,ENERGY&UTILITIES-ELECTRICITY,BRITISH GAS BUSINESS,0000213182,323.32
DEPARTMENT OF ENERGY AND CLIMATE CHANGE,THE COAL AUTHORITY,07/08/2014,SUB PUMP STTN MAINTENANCE-PWER,SUBSIDENCE PUMPING STATIONS,ENERGY&UTILITIES-ELECTRICITY,BRITISH GAS BUSINESS,0000213183,84.68
DEPARTMENT OF ENERGY AND CLIMATE CHANGE,THE COAL AUTHORITY,07/08/2014,SUB PUMP STTN MAINTENANCE-PWER,SUBSIDENCE PUMPING STATIONS,ENERGY&UTILITIES-ELECTRICITY,BRITISH GAS BUSINESS,0000213184,26.51
DEPARTMENT OF ENERGY AND CLIMATE CHANGE,THE COAL AUTHORITY,07/08/2014,SUB PUMP STTN MAINTENANCE-PWER,SUBSIDENCE PUMPING STATIONS,ENERGY&UTILITIES-ELECTRICITY,BRITISH GAS BUSINESS,0000213185,114.49
DEPARTMENT OF ENERGY AND CLIMATE CHANGE,THE COAL AUTHORITY,07/08/2014,SUB PUMP STTN MAINTENANCE-PWER,SUBSIDENCE PUMPING STATIONS,ENERGY&UTILITIES-ELECTRICITY,BRITISH GAS BUSINESS,0000213186,46.29
DEPARTMENT OF ENERGY AND CLIMATE CHANGE,THE COAL AUTHORITY,06/06/2014,SUB PUMP STTN MAINTENANCE-PWER,SUBSIDENCE PUMPING STATIONS,ENERGY&UTILITIES-ELECTRICITY,BRITISH GAS BUSINESS,0000213205,-74.56
DEPARTMENT OF ENERGY AND CLIMATE CHANGE,THE COAL AUTHORITY,07/07/2014,SUB PUMP STTN MAINTENANCE-PWER,SUBSIDENCE PUMPING STATIONS,ENERGY&UTILITIES-ELECTRICITY,BRITISH GAS BUSINESS,0000213206,-71.85
DEPARTMENT OF ENERGY AND CLIMATE CHANGE,THE COAL AUTHORITY,14/08/2014,SUB PUMP STTN MAINTENANCE-PWER,SUBSIDENCE PUMPING STATIONS,ENERGY&UTILITIES-ELECTRICITY,BRITISH GAS BUSINESS,0000213207,124.70
DEPARTMENT OF ENERGY AND CLIMATE CHANGE,THE COAL AUTHORITY,19/08/2014,SUB PUMP STTN MAINTENANCE-PWER,SUBSIDENCE PUMPING STATIONS,ENERGY&UTILITIES-ELECTRICITY,OUSE&DERWNT INTERN DRAING,0000213295,1635.83
DEPARTMENT OF ENERGY AND CLIMATE CHANGE,THE COAL AUTHORITY,31/07/2014,SUB PUMP STTN MAINTENANCE-PWER,SUBSIDENCE PUMPING STATIONS,ENERGY&UTILITIES-ELECTRICITY,OUSE&DERWNT INTERN DRAING,0000213296,1549.16
DEPARTMENT OF ENERGY AND CLIMATE CHANGE,THE COAL AUTHORITY,31/07/2014,SUB PUMP STTN MAINTENANCE-PWER,SUBSIDENCE PUMPING STATIONS,ENERGY&UTILITIES-ELECTRICITY,OUSE&DERWNT INTERN DRAING,0000213297,3118.28
DEPARTMENT OF ENERGY AND CLIMATE CHANGE,THE COAL AUTHORITY,31/07/2014,SUB PUMP STTN MAINTENANCE-PWER,SUBSIDENCE PUMPING STATIONS,ENERGY&UTILITIES-ELECTRICITY,OUSE&DERWNT INTERN DRAING,0000213298,645.43
DEPARTMENT OF ENERGY AND CLIMATE CHANGE,THE COAL AUTHORITY,31/07/2014,SUB PUMP STTN MAINTENANCE-PWER,SUBSIDENCE PUMPING STATIONS,ENERGY&UTILITIES-ELECTRICITY,OUSE&DERWNT INTERN DRAING,0000213299,-50.00
DEPARTMENT OF ENERGY AND CLIMATE CHANGE,THE COAL AUTHORITY,31/07/2014,SUB PUMP STTN MAINTENANCE-PWER,SUBSIDENCE PUMPING STATIONS,ENERGY&UTILITIES-ELECTRICITY,OUSE&DERWNT INTERN DRAING,0000213300,268.96
DEPARTMENT OF ENERGY AND CLIMATE CHANGE,THE COAL AUTHORITY,07/07/2014,SUB PUMP STTN MAINTENANCE-PWER,SUBSIDENCE PUMPING STATIONS,ENERGY&UTILITIES-ELECTRICITY,BRITISH GAS BUSINESS,0000213445,-1016.21
DEPARTMENT OF ENERGY AND CLIMATE CHANGE,THE COAL AUTHORITY,06/06/2014,SUB PUMP STTN MAINTENANCE-PWER,SUBSIDENCE PUMPING STATIONS,ENERGY&UTILITIES-ELECTRICITY,BRITISH GAS BUSINESS,0000213446,-3068.08
DEPARTMENT OF ENERGY AND CLIMATE CHANGE,THE COAL AUTHORITY,18/08/2014,SUB PUMP STTN MAINTENANCE-PWER,SUBSIDENCE PUMPING STATIONS,ENERGY&UTILITIES-ELECTRICITY,BRITISH GAS BUSINESS,0000213448,73.27
DEPARTMENT OF ENERGY AND CLIMATE CHANGE,THE COAL AUTHORITY,07/07/2014,SUB PUMP STTN MAINTENANCE-PWER,SUBSIDENCE PUMPING STATIONS,ENERGY&UTILITIES-ELECTRICITY,BRITISH GAS BUSINESS,0000213451,-110.73
DEPARTMENT OF ENERGY AND CLIMATE CHANGE,THE COAL AUTHORITY,20/08/2014,SUB PUMP STTN MAINTENANCE-PWER,SUBSIDENCE PUMPING STATIONS,ENERGY&UTILITIES-ELECTRICITY,BRITISH GAS BUSINESS,0000213452,216.48
DEPARTMENT OF ENERGY AND CLIMATE CHANGE,THE COAL AUTHORITY,29/07/2014,CAR HIRE,SURFACE HAZARDS,TRAVEL&EVENTS-VEHICLE HIRE,ENTERPRISE RENT A CAR,0000212920,409.34
DEPARTMENT OF ENERGY AND CLIMATE CHANGE,THE COAL AUTHORITY,17/07/2014,CAR HIRE,SURFACE HAZARDS,TRAVEL&EVENTS-VEHICLE HIRE,ENTERPRISE RENT A CAR,0000212921,1400.84
DEPARTMENT OF ENERGY AND CLIMATE CHANGE,THE COAL AUTHORITY,02/08/2014,CHILDCARE VOUCHERS,SURFACE HAZARDS,PERSONNEL RLTD-STAFF CHILDCARE,FIDELITI LIMITED,0000213005,50.00
DEPARTMENT OF ENERGY AND CLIMATE CHANGE,THE COAL AUTHORITY,02/08/2014,CHILDCARE VOUCHERS,SURFACE HAZARDS,PERSONNEL RLTD-STAFF CHILDCARE,FIDELITI LIMITED,0000213005,443.00
DEPARTMENT OF ENERGY AND CLIMATE CHANGE,THE COAL AUTHORITY,02/08/2014,CHILDCARE VOUCHERS,SURFACE HAZARDS,PERSONNEL RLTD-STAFF CHILDCARE,FIDELITI LIMITED,0000213005,10.00
DEPARTMENT OF ENERGY AND CLIMATE CHANGE,THE COAL AUTHORITY,26/07/2014,CONTRACT HIRE VEHICLES,SURFACE HAZARDS,VEHICLES-VEHICLE MAINTENANCE,ALLSCREENS NATIONWIDE LTD,0000212913,498.62
DEPARTMENT OF ENERGY AND CLIMATE CHANGE,THE COAL AUTHORITY,08/08/2014,CONTRACT HIRE VEHICLES,SURFACE HAZARDS,VEHICLES-FLEET MANAGEMENT,COMPANY BARCLAYCARD,0000213369,10.00
DEPARTMENT OF ENERGY AND CLIMATE CHANGE,THE COAL AUTHORITY,19/07/2014,CONTRACTORS AND CLAIM COSTS,SURFACE HAZARDS,CONSTRUCTION-MAIN CONTRACTORS,GEOL-CONSULTANTS LTD,0000212593,1429.59
DEPARTMENT OF ENERGY AND CLIMATE CHANGE,THE COAL AUTHORITY,22/07/2014,CONTRACTORS AND CLAIM COSTS,SURFACE HAZARDS,CONSTRUCTION-CNSTRN SER PROVDR,LOY SURVEYS,0000212661,2300.00
DEPARTMENT OF ENERGY AND CLIMATE CHANGE,THE COAL AUTHORITY,25/07/2014,CONTRACTORS AND CLAIM COSTS,SURFACE HAZARDS,CONSTRUCTION-MAIN CONTRACTORS,ALLIANCE CONSTRUCTION SOL,0000212757,1831.31
DEPARTMENT OF ENERGY AND CLIMATE CHANGE,THE COAL AUTHORITY,24/07/2014,CONTRACTORS AND CLAIM COSTS,SURFACE HAZARDS,CONSTRUCTION-MAIN CONTRACTORS,JIM DAVIES CIVIL ENGINEER,0000212825,269.10
DEPARTMENT OF ENERGY AND CLIMATE CHANGE,THE COAL AUTHORITY,24/07/2014,CONTRACTORS AND CLAIM COSTS,SURFACE HAZARDS,CONSTRUCTION-MAIN CONTRACTORS,JIM DAVIES CIVIL ENGINEER,0000212826,259.65
DEPARTMENT OF ENERGY AND CLIMATE CHANGE,THE COAL AUTHORITY,30/07/2014,CONTRACTORS AND CLAIM COSTS,SURFACE HAZARDS,CONSTRUCTION-CNSTRN SER PROVDR,CORNERSTONE  PROJECTS LTD,0000212853,113.00
DEPARTMENT OF ENERGY AND CLIMATE CHANGE,THE COAL AUTHORITY,30/07/2014,CONTRACTORS AND CLAIM COSTS,SURFACE HAZARDS,CONSTRUCTION-CNSTRN SER PROVDR,CORNERSTONE  PROJECTS LTD,0000212854,58.00
DEPARTMENT OF ENERGY AND CLIMATE CHANGE,THE COAL AUTHORITY,30/07/2014,CONTRACTORS AND CLAIM COSTS,SURFACE HAZARDS,CONSTRUCTION-CNSTRN SER PROVDR,CORNERSTONE  PROJECTS LTD,0000212855,58.00
DEPARTMENT OF ENERGY AND CLIMATE CHANGE,THE COAL AUTHORITY,30/07/2014,CONTRACTORS AND CLAIM COSTS,SURFACE HAZARDS,CONSTRUCTION-CNSTRN SER PROVDR,CORNERSTONE  PROJECTS LTD,0000212856,107.26
DEPARTMENT OF ENERGY AND CLIMATE CHANGE,THE COAL AUTHORITY,30/07/2014,CONTRACTORS AND CLAIM COSTS,SURFACE HAZARDS,CONSTRUCTION-CNSTRN SER PROVDR,CORNERSTONE  PROJECTS LTD,0000212857,111.52
DEPARTMENT OF ENERGY AND CLIMATE CHANGE,THE COAL AUTHORITY,30/07/2014,CONTRACTORS AND CLAIM COSTS,SURFACE HAZARDS,CONSTRUCTION-CNSTRN SER PROVDR,CORNERSTONE  PROJECTS LTD,0000212858,127.26
DEPARTMENT OF ENERGY AND CLIMATE CHANGE,THE COAL AUTHORITY,30/07/2014,CONTRACTORS AND CLAIM COSTS,SURFACE HAZARDS,CONSTRUCTION-CNSTRN SER PROVDR,CORNERSTONE  PROJECTS LTD,0000212859,107.26
DEPARTMENT OF ENERGY AND CLIMATE CHANGE,THE COAL AUTHORITY,30/07/2014,CONTRACTORS AND CLAIM COSTS,SURFACE HAZARDS,CONSTRUCTION-CNSTRN SER PROVDR,CORNERSTONE  PROJECTS LTD,0000212860,119.00
DEPARTMENT OF ENERGY AND CLIMATE CHANGE,THE COAL AUTHORITY,31/07/2014,CONTRACTORS AND CLAIM COSTS,SURFACE HAZARDS,CONSTRUCTION-MAIN CONTRACTORS,ALLIANCE CONSTRUCTION SOL,0000212910,31.70
DEPARTMENT OF ENERGY AND CLIMATE CHANGE,THE COAL AUTHORITY,29/07/2014,CONTRACTORS AND CLAIM COSTS,SURFACE HAZARDS,PROF SER TECH-FORENSIC/LAB SER,ENVIRONMENTAL SCIENTIFICS,0000212940,35.00
DEPARTMENT OF ENERGY AND CLIMATE CHANGE,THE COAL AUTHORITY,23/07/2014,CONTRACTORS AND CLAIM COSTS,SURFACE HAZARDS,ENERGY&UTILITIES-ELECTRICITY,SCOTTISH POWER,0000212941,175.95
DEPARTMENT OF ENERGY AND CLIMATE CHANGE,THE COAL AUTHORITY,08/08/2014,CONTRACTORS AND CLAIM COSTS,SURFACE HAZARDS,CONSTRUCTION-CNSTRN SER PROVDR,CORNERSTONE  PROJECTS LTD,0000212971,127.26
DEPARTMENT OF ENERGY AND CLIMATE CHANGE,THE COAL AUTHORITY,08/08/2014,CONTRACTORS AND CLAIM COSTS,SURFACE HAZARDS,CONSTRUCTION-CNSTRN SER PROVDR,CORNERSTONE  PROJECTS LTD,0000212972,143.00
DEPARTMENT OF ENERGY AND CLIMATE CHANGE,THE COAL AUTHORITY,08/08/2014,CONTRACTORS AND CLAIM COSTS,SURFACE HAZARDS,CONSTRUCTION-CNSTRN SER PROVDR,CORNERSTONE  PROJECTS LTD,0000212973,143.00
DEPARTMENT OF ENERGY AND CLIMATE CHANGE,THE COAL AUTHORITY,08/08/2014,CONTRACTORS AND CLAIM COSTS,SURFACE HAZARDS,CONSTRUCTION-CNSTRN SER PROVDR,CORNERSTONE  PROJECTS LTD,0000212974,148.00
DEPARTMENT OF ENERGY AND CLIMATE CHANGE,THE COAL AUTHORITY,08/08/2014,CONTRACTORS AND CLAIM COSTS,SURFACE HAZARDS,CONSTRUCTION-CNSTRN SER PROVDR,CORNERSTONE  PROJECTS LTD,0000212975,113.00
DEPARTMENT OF ENERGY AND CLIMATE CHANGE,THE COAL AUTHORITY,08/08/2014,CONTRACTORS AND CLAIM COSTS,SURFACE HAZARDS,CONSTRUCTION-CNSTRN SER PROVDR,CORNERSTONE  PROJECTS LTD,0000212976,148.00
DEPARTMENT OF ENERGY AND CLIMATE CHANGE,THE COAL AUTHORITY,08/08/2014,CONTRACTORS AND CLAIM COSTS,SURFACE HAZARDS,CONSTRUCTION-CNSTRN SER PROVDR,CORNERSTONE  PROJECTS LTD,0000212977,148.00
DEPARTMENT OF ENERGY AND CLIMATE CHANGE,THE COAL AUTHORITY,08/08/2014,CONTRACTORS AND CLAIM COSTS,SURFACE HAZARDS,CONSTRUCTION-CNSTRN SER PROVDR,CORNERSTONE  PROJECTS LTD,0000212978,107.26
DEPARTMENT OF ENERGY AND CLIMATE CHANGE,THE COAL AUTHORITY,11/08/2014,CONTRACTORS AND CLAIM COSTS,SURFACE HAZARDS,"CONSTRUCTION-BLD,REPR&MAINTNCE",ROOFING REPAIRS & ANNUAL,0000212995,176.40
DEPARTMENT OF ENERGY AND CLIMATE CHANGE,THE COAL AUTHORITY,11/08/2014,CONTRACTORS AND CLAIM COSTS,SURFACE HAZARDS,"CONSTRUCTION-BLD,REPR&MAINTNCE",PAYMENT FOR GARDEN MAINTE,0000212998,50.00
DEPARTMENT OF ENERGY AND CLIMATE CHANGE,THE COAL AUTHORITY,11/08/2014,CONTRACTORS AND CLAIM COSTS,SURFACE HAZARDS,"CONSTRUCTION-BLD,REPR&MAINTNCE",CROP LOSS & DAMAGE TO TRA,0000213020,200.00
DEPARTMENT OF ENERGY AND CLIMATE CHANGE,THE COAL AUTHORITY,26/07/2014,CONTRACTORS AND CLAIM COSTS,SURFACE HAZARDS,CONSTRUCTION-CNSTRN SER PROVDR,PMC SURVEYS,0000213057,2222.12
DEPARTMENT OF ENERGY AND CLIMATE CHANGE,THE COAL AUTHORITY,07/08/2014,CONTRACTORS AND CLAIM COSTS,SURFACE HAZARDS,PROF SER-OPERATIONAL SERVICES,VALUATION OFFICE AGENCY,0000213059,675.66
DEPARTMENT OF ENERGY AND CLIMATE CHANGE,THE COAL AUTHORITY,15/07/2014,CONTRACTORS AND CLAIM COSTS,SURFACE HAZARDS,CONSTRUCTION-MAIN CONTRACTORS,BALFOUR BEATTY CIVIL ENG,0000213060,1180.22
DEPARTMENT OF ENERGY AND CLIMATE CHANGE,THE COAL AUTHORITY,15/07/2014,CONTRACTORS AND CLAIM COSTS,SURFACE HAZARDS,CONSTRUCTION-MAIN CONTRACTORS,BALFOUR BEATTY CIVIL ENG,0000213061,366.30
DEPARTMENT OF ENERGY AND CLIMATE CHANGE,THE COAL AUTHORITY,15/07/2014,CONTRACTORS AND CLAIM COSTS,SURFACE HAZARDS,CONSTRUCTION-MAIN CONTRACTORS,BALFOUR BEATTY CIVIL ENG,0000213062,521.70
DEPARTMENT OF ENERGY AND CLIMATE CHANGE,THE COAL AUTHORITY,15/07/2014,CONTRACTORS AND CLAIM COSTS,SURFACE HAZARDS,CONSTRUCTION-MAIN CONTRACTORS,BALFOUR BEATTY CIVIL ENG,0000213063,155.40
DEPARTMENT OF ENERGY AND CLIMATE CHANGE,THE COAL AUTHORITY,15/07/2014,CONTRACTORS AND CLAIM COSTS,SURFACE HAZARDS,CONSTRUCTION-MAIN CONTRACTORS,BALFOUR BEATTY CIVIL ENG,0000213064,5148.00
DEPARTMENT OF ENERGY AND CLIMATE CHANGE,THE COAL AUTHORITY,31/07/2014,CONTRACTORS AND CLAIM COSTS,SURFACE HAZARDS,CONSTRUCTION-MAIN CONTRACTORS,ALLIANCE CONSTRUCTION SOL,0000213065,10906.82
DEPARTMENT OF ENERGY AND CLIMATE CHANGE,THE COAL AUTHORITY,31/07/2014,CONTRACTORS AND CLAIM COSTS,SURFACE HAZARDS,CONSTRUCTION-MAIN CONTRACTORS,ALLIANCE CONSTRUCTION SOL,0000213066,5728.16
DEPARTMENT OF ENERGY AND CLIMATE CHANGE,THE COAL AUTHORITY,12/08/2014,CONTRACTORS AND CLAIM COSTS,SURFACE HAZARDS,CONSTRUCTION-MAIN CONTRACTORS,ALLIANCE CONSTRUCTION SOL,0000213078,394.30
DEPARTMENT OF ENERGY AND CLIMATE CHANGE,THE COAL AUTHORITY,12/08/2014,CONTRACTORS AND CLAIM COSTS,SURFACE HAZARDS,CONSTRUCTION-MAIN CONTRACTORS,ALLIANCE CONSTRUCTION SOL,0000213079,811.58
DEPARTMENT OF ENERGY AND CLIMATE CHANGE,THE COAL AUTHORITY,31/07/2014,CONTRACTORS AND CLAIM COSTS,SURFACE HAZARDS,CONSTRUCTION-CNSTRN SER PROVDR,SWS ENVIRONMENTAL SERVICE,0000213080,450.00
DEPARTMENT OF ENERGY AND CLIMATE CHANGE,THE COAL AUTHORITY,13/08/2014,CONTRACTORS AND CLAIM COSTS,SURFACE HAZARDS,PROF SER-ENVIRONMENTAL SRVICES,REMOVE GARDEN RUBBISH FRO,0000213082,2452.80
DEPARTMENT OF ENERGY AND CLIMATE CHANGE,THE COAL AUTHORITY,13/08/2014,CONTRACTORS AND CLAIM COSTS,SURFACE HAZARDS,CONSTRUCTION-CNSTRN SER PROVDR,PMC SURVEYS,0000213122,1291.86
DEPARTMENT OF ENERGY AND CLIMATE CHANGE,THE COAL AUTHORITY,13/08/2014,CONTRACTORS AND CLAIM COSTS,SURFACE HAZARDS,CONSTRUCTION-MAIN CONTRACTORS,LLETTYSHENKIN CONS CO LTD,0000213123,1406.20
DEPARTMENT OF ENERGY AND CLIMATE CHANGE,THE COAL AUTHORITY,08/08/2014,CONTRACTORS AND CLAIM COSTS,SURFACE HAZARDS,CONSTRUCTION-MAIN CONTRACTORS,BALFOUR BEATTY CIVIL ENG,0000213139,146.40
DEPARTMENT OF ENERGY AND CLIMATE CHANGE,THE COAL AUTHORITY,08/08/2014,CONTRACTORS AND CLAIM COSTS,SURFACE HAZARDS,CONSTRUCTION-MAIN CONTRACTORS,BALFOUR BEATTY CIVIL ENG,0000213140,186.09
DEPARTMENT OF ENERGY AND CLIMATE CHANGE,THE COAL AUTHORITY,08/08/2014,CONTRACTORS AND CLAIM COSTS,SURFACE HAZARDS,CONSTRUCTION-MAIN CONTRACTORS,BALFOUR BEATTY CIVIL ENG,0000213141,644.29
DEPARTMENT OF ENERGY AND CLIMATE CHANGE,THE COAL AUTHORITY,08/08/2014,CONTRACTORS AND CLAIM COSTS,SURFACE HAZARDS,CONSTRUCTION-MAIN CONTRACTORS,BALFOUR BEATTY CIVIL ENG,0000213142,543.90
DEPARTMENT OF ENERGY AND CLIMATE CHANGE,THE COAL AUTHORITY,08/08/2014,CONTRACTORS AND CLAIM COSTS,SURFACE HAZARDS,CONSTRUCTION-MAIN CONTRACTORS,BALFOUR BEATTY CIVIL ENG,0000213143,6327.49
DEPARTMENT OF ENERGY AND CLIMATE CHANGE,THE COAL AUTHORITY,08/08/2014,CONTRACTORS AND CLAIM COSTS,SURFACE HAZARDS,CONSTRUCTION-MAIN CONTRACTORS,BALFOUR BEATTY CIVIL ENG,0000213144,4561.77
DEPARTMENT OF ENERGY AND CLIMATE CHANGE,THE COAL AUTHORITY,08/08/2014,CONTRACTORS AND CLAIM COSTS,SURFACE HAZARDS,CONSTRUCTION-MAIN CONTRACTORS,BALFOUR BEATTY CIVIL ENG,0000213145,3834.60
DEPARTMENT OF ENERGY AND CLIMATE CHANGE,THE COAL AUTHORITY,08/08/2014,CONTRACTORS AND CLAIM COSTS,SURFACE HAZARDS,CONSTRUCTION-CNSTRN SER PROVDR,BALFOUR BEATTY CIVIL ENG,0000213146,902.46
DEPARTMENT OF ENERGY AND CLIMATE CHANGE,THE COAL AUTHORITY,08/08/2014,CONTRACTORS AND CLAIM COSTS,SURFACE HAZARDS,CONSTRUCTION-MAIN CONTRACTORS,BALFOUR BEATTY CIVIL ENG,0000213147,21755.61
DEPARTMENT OF ENERGY AND CLIMATE CHANGE,THE COAL AUTHORITY,08/08/2014,CONTRACTORS AND CLAIM COSTS,SURFACE HAZARDS,CONSTRUCTION-MAIN CONTRACTORS,BALFOUR BEATTY CIVIL ENG,0000213148,670.52
DEPARTMENT OF ENERGY AND CLIMATE CHANGE,THE COAL AUTHORITY,08/08/2014,CONTRACTORS AND CLAIM COSTS,SURFACE HAZARDS,CONSTRUCTION-MAIN CONTRACTORS,BALFOUR BEATTY CIVIL ENG,0000213149,268.59
DEPARTMENT OF ENERGY AND CLIMATE CHANGE,THE COAL AUTHORITY,08/08/2014,CONTRACTORS AND CLAIM COSTS,SURFACE HAZARDS,CONSTRUCTION-MAIN CONTRACTORS,BALFOUR BEATTY CIVIL ENG,0000213150,146.40
DEPARTMENT OF ENERGY AND CLIMATE CHANGE,THE COAL AUTHORITY,18/08/2014,CONTRACTORS AND CLAIM COSTS,SURFACE HAZARDS,CONSTRUCTION-MAIN CONTRACTORS,GEOL-CONSULTANTS LTD,0000213208,-18.59
DEPARTMENT OF ENERGY AND CLIMATE CHANGE,THE COAL AUTHORITY,18/08/2014,CONTRACTORS AND CLAIM COSTS,SURFACE HAZARDS,PROF SER-ENVIRONMENTAL SRVICES,GEOL-CONSULTANTS LTD,0000213209,852.50
DEPARTMENT OF ENERGY AND CLIMATE CHANGE,THE COAL AUTHORITY,16/08/2014,CONTRACTORS AND CLAIM COSTS,SURFACE HAZARDS,CONSTRUCTION-MAIN CONTRACTORS,GEOL-CONSULTANTS LTD,0000213211,1300.00
DEPARTMENT OF ENERGY AND CLIMATE CHANGE,THE COAL AUTHORITY,16/08/2014,CONTRACTORS AND CLAIM COSTS,SURFACE HAZARDS,CONSTRUCTION-MAIN CONTRACTORS,GEOL-CONSULTANTS LTD,0000213212,7695.69
DEPARTMENT OF ENERGY AND CLIMATE CHANGE,THE COAL AUTHORITY,16/08/2014,CONTRACTORS AND CLAIM COSTS,SURFACE HAZARDS,CONSTRUCTION-MAIN CONTRACTORS,GEOL-CONSULTANTS LTD,0000213213,1411.00
DEPARTMENT OF ENERGY AND CLIMATE CHANGE,THE COAL AUTHORITY,16/08/2014,CONTRACTORS AND CLAIM COSTS,SURFACE HAZARDS,CONSTRUCTION-MAIN CONTRACTORS,GEOL-CONSULTANTS LTD,0000213214,1485.00
DEPARTMENT OF ENERGY AND CLIMATE CHANGE,THE COAL AUTHORITY,16/08/2014,CONTRACTORS AND CLAIM COSTS,SURFACE HAZARDS,CONSTRUCTION-MAIN CONTRACTORS,GEOL-CONSULTANTS LTD,0000213215,1485.00
DEPARTMENT OF ENERGY AND CLIMATE CHANGE,THE COAL AUTHORITY,16/08/2014,CONTRACTORS AND CLAIM COSTS,SURFACE HAZARDS,CONSTRUCTION-MAIN CONTRACTORS,GEOL-CONSULTANTS LTD,0000213216,1411.00
DEPARTMENT OF ENERGY AND CLIMATE CHANGE,THE COAL AUTHORITY,16/08/2014,CONTRACTORS AND CLAIM COSTS,SURFACE HAZARDS,CONSTRUCTION-MAIN CONTRACTORS,GEOL-CONSULTANTS LTD,0000213217,1411.00
DEPARTMENT OF ENERGY AND CLIMATE CHANGE,THE COAL AUTHORITY,16/08/2014,CONTRACTORS AND CLAIM COSTS,SURFACE HAZARDS,CONSTRUCTION-MAIN CONTRACTORS,GEOL-CONSULTANTS LTD,0000213218,1485.00
DEPARTMENT OF ENERGY AND CLIMATE CHANGE,THE COAL AUTHORITY,16/08/2014,CONTRACTORS AND CLAIM COSTS,SURFACE HAZARDS,CONSTRUCTION-MAIN CONTRACTORS,GEOL-CONSULTANTS LTD,0000213219,1745.00
DEPARTMENT OF ENERGY AND CLIMATE CHANGE,THE COAL AUTHORITY,12/08/2014,CONTRACTORS AND CLAIM COSTS,SURFACE HAZARDS,CONSTRUCTION-MAIN CONTRACTORS,BALFOUR BEATTY CIVIL ENG,0000213220,10390.73
DEPARTMENT OF ENERGY AND CLIMATE CHANGE,THE COAL AUTHORITY,12/08/2014,CONTRACTORS AND CLAIM COSTS,SURFACE HAZARDS,CONSTRUCTION-MAIN CONTRACTORS,BALFOUR BEATTY CIVIL ENG,0000213221,15705.99
DEPARTMENT OF ENERGY AND CLIMATE CHANGE,THE COAL AUTHORITY,12/08/2014,CONTRACTORS AND CLAIM COSTS,SURFACE HAZARDS,CONSTRUCTION-MAIN CONTRACTORS,BALFOUR BEATTY CIVIL ENG,0000213222,4456.30
DEPARTMENT OF ENERGY AND CLIMATE CHANGE,THE COAL AUTHORITY,12/08/2014,CONTRACTORS AND CLAIM COSTS,SURFACE HAZARDS,CONSTRUCTION-MAIN CONTRACTORS,BALFOUR BEATTY CIVIL ENG,0000213223,7780.29
DEPARTMENT OF ENERGY AND CLIMATE CHANGE,THE COAL AUTHORITY,12/08/2014,CONTRACTORS AND CLAIM COSTS,SURFACE HAZARDS,CONSTRUCTION-MAIN CONTRACTORS,BALFOUR BEATTY CIVIL ENG,0000213224,8518.40
DEPARTMENT OF ENERGY AND CLIMATE CHANGE,THE COAL AUTHORITY,08/08/2014,CONTRACTORS AND CLAIM COSTS,SURFACE HAZARDS,CONSTRUCTION-CNSTRN SER PROVDR,CORNERSTONE  PROJECTS LTD,0000213225,148.00
DEPARTMENT OF ENERGY AND CLIMATE CHANGE,THE COAL AUTHORITY,18/08/2014,CONTRACTORS AND CLAIM COSTS,SURFACE HAZARDS,"CONSTRUCTION-BLD,REPR&MAINTNCE",CROP LOSS & DAMAGE TO TRA,0000213230,250.00
DEPARTMENT OF ENERGY AND CLIMATE CHANGE,THE COAL AUTHORITY,18/08/2014,CONTRACTORS AND CLAIM COSTS,SURFACE HAZARDS,CONSTRUCTION-CNSTRN SER PROVDR,CORNERSTONE  PROJECTS LTD,0000213256,103.00
DEPARTMENT OF ENERGY AND CLIMATE CHANGE,THE COAL AUTHORITY,18/08/2014,CONTRACTORS AND CLAIM COSTS,SURFACE HAZARDS,CONSTRUCTION-CNSTRN SER PROVDR,CORNERSTONE  PROJECTS LTD,0000213257,103.00
DEPARTMENT OF ENERGY AND CLIMATE CHANGE,THE COAL AUTHORITY,18/08/2014,CONTRACTORS AND CLAIM COSTS,SURFACE HAZARDS,CONSTRUCTION-CNSTRN SER PROVDR,CORNERSTONE  PROJECTS LTD,0000213258,143.00
DEPARTMENT OF ENERGY AND CLIMATE CHANGE,THE COAL AUTHORITY,18/08/2014,CONTRACTORS AND CLAIM COSTS,SURFACE HAZARDS,CONSTRUCTION-CNSTRN SER PROVDR,CORNERSTONE  PROJECTS LTD,0000213259,78.00
DEPARTMENT OF ENERGY AND CLIMATE CHANGE,THE COAL AUTHORITY,18/08/2014,CONTRACTORS AND CLAIM COSTS,SURFACE HAZARDS,CONSTRUCTION-MAIN CONTRACTORS,CORNERSTONE  PROJECTS LTD,0000213260,58.00
DEPARTMENT OF ENERGY AND CLIMATE CHANGE,THE COAL AUTHORITY,18/08/2014,CONTRACTORS AND CLAIM COSTS,SURFACE HAZARDS,CONSTRUCTION-CNSTRN SER PROVDR,CORNERSTONE  PROJECTS LTD,0000213261,111.52
DEPARTMENT OF ENERGY AND CLIMATE CHANGE,THE COAL AUTHORITY,18/08/2014,CONTRACTORS AND CLAIM COSTS,SURFACE HAZARDS,CONSTRUCTION-CNSTRN SER PROVDR,CORNERSTONE  PROJECTS LTD,0000213262,103.00
DEPARTMENT OF ENERGY AND CLIMATE CHANGE,THE COAL AUTHORITY,18/08/2014,CONTRACTORS AND CLAIM COSTS,SURFACE HAZARDS,CONSTRUCTION-CNSTRN SER PROVDR,CORNERSTONE  PROJECTS LTD,0000213264,148.00
DEPARTMENT OF ENERGY AND CLIMATE CHANGE,THE COAL AUTHORITY,18/08/2014,CONTRACTORS AND CLAIM COSTS,SURFACE HAZARDS,CONSTRUCTION-CNSTRN SER PROVDR,CORNERSTONE  PROJECTS LTD,0000213265,148.00
DEPARTMENT OF ENERGY AND CLIMATE CHANGE,THE COAL AUTHORITY,18/08/2014,CONTRACTORS AND CLAIM COSTS,SURFACE HAZARDS,CONSTRUCTION-CNSTRN SER PROVDR,CORNERSTONE  PROJECTS LTD,0000213266,148.00
DEPARTMENT OF ENERGY AND CLIMATE CHANGE,THE COAL AUTHORITY,18/08/2014,CONTRACTORS AND CLAIM COSTS,SURFACE HAZARDS,CONSTRUCTION-CNSTRN SER PROVDR,CORNERSTONE  PROJECTS LTD,0000213267,103.00
DEPARTMENT OF ENERGY AND CLIMATE CHANGE,THE COAL AUTHORITY,18/08/2014,CONTRACTORS AND CLAIM COSTS,SURFACE HAZARDS,CONSTRUCTION-CNSTRN SER PROVDR,CORNERSTONE  PROJECTS LTD,0000213268,111.52
DEPARTMENT OF ENERGY AND CLIMATE CHANGE,THE COAL AUTHORITY,18/08/2014,CONTRACTORS AND CLAIM COSTS,SURFACE HAZARDS,CONSTRUCTION-CNSTRN SER PROVDR,CORNERSTONE  PROJECTS LTD,0000213269,103.00
DEPARTMENT OF ENERGY AND CLIMATE CHANGE,THE COAL AUTHORITY,15/08/2014,CONTRACTORS AND CLAIM COSTS,SURFACE HAZARDS,CONSTRUCTION-MAIN CONTRACTORS,LLETTYSHENKIN CONS CO LTD,0000213313,497.40
DEPARTMENT OF ENERGY AND CLIMATE CHANGE,THE COAL AUTHORITY,19/08/2014,CONTRACTORS AND CLAIM COSTS,SURFACE HAZARDS,CONSTRUCTION-MAIN CONTRACTORS,MANUFACTURE & SPRAY OF 2,0000213318,1500.00
DEPARTMENT OF ENERGY AND CLIMATE CHANGE,THE COAL AUTHORITY,19/08/2014,CONTRACTORS AND CLAIM COSTS,SURFACE HAZARDS,CONSTRUCTION-MAIN CONTRACTORS,REMEDIAITION WORKS TO COL,0000213319,600.00
DEPARTMENT OF ENERGY AND CLIMATE CHANGE,THE COAL AUTHORITY,18/08/2014,CONTRACTORS AND CLAIM COSTS,SURFACE HAZARDS,CONSTRUCTION-MAIN CONTRACTORS,GEOL-CONSULTANTS LTD,0000213330,-1411.00
DEPARTMENT OF ENERGY AND CLIMATE CHANGE,THE COAL AUTHORITY,15/08/2014,CONTRACTORS AND CLAIM COSTS,SURFACE HAZARDS,CONSTRUCTION-MAIN CONTRACTORS,TURNEY WYLDE CONSTRUCTION,0000213336,500.00
DEPARTMENT OF ENERGY AND CLIMATE CHANGE,THE COAL AUTHORITY,12/08/2014,CONTRACTORS AND CLAIM COSTS,SURFACE HAZARDS,CONSTRUCTION-MAIN CONTRACTORS,BALFOUR BEATTY CIVIL ENG,0000213338,4860.27
DEPARTMENT OF ENERGY AND CLIMATE CHANGE,THE COAL AUTHORITY,14/08/2014,CONTRACTORS AND CLAIM COSTS,SURFACE HAZARDS,CONSTRUCTION-CNSTRN SER PROVDR,MAUGHAN REYNOLDS PRTNR LT,0000213340,400.00
DEPARTMENT OF ENERGY AND CLIMATE CHANGE,THE COAL AUTHORITY,07/08/2014,CONTRACTORS AND CLAIM COSTS,SURFACE HAZARDS,PROF SER-OPERATIONAL SERVICES,VALUATION OFFICE AGENCY,0000213341,897.97
DEPARTMENT OF ENERGY AND CLIMATE CHANGE,THE COAL AUTHORITY,07/08/2014,CONTRACTORS AND CLAIM COSTS,SURFACE HAZARDS,PROF SER-OPERATIONAL SERVICES,VALUATION OFFICE AGENCY,0000213342,442.25
DEPARTMENT OF ENERGY AND CLIMATE CHANGE,THE COAL AUTHORITY,11/08/2014,CONTRACTORS AND CLAIM COSTS,SURFACE HAZARDS,CONSTRUCTION-MAIN CONTRACTORS,NAL PLANT LIMITED,0000213345,748.36
DEPARTMENT OF ENERGY AND CLIMATE CHANGE,THE COAL AUTHORITY,13/08/2014,CONTRACTORS AND CLAIM COSTS,SURFACE HAZARDS,CONSTRUCTION-MAIN CONTRACTORS,JIM DAVIES CIVIL ENGINEER,0000213347,56.66
DEPARTMENT OF ENERGY AND CLIMATE CHANGE,THE COAL AUTHORITY,13/08/2014,CONTRACTORS AND CLAIM COSTS,SURFACE HAZARDS,CONSTRUCTION-CNSTRN SER PROVDR,JIM DAVIES CIVIL ENGINEER,0000213348,1000.00
DEPARTMENT OF ENERGY AND CLIMATE CHANGE,THE COAL AUTHORITY,08/08/2014,CONTRACTORS AND CLAIM COSTS,SURFACE HAZARDS,PROF SER-ENVIRONMENTAL SRVICES,COMPANY BARCLAYCARD,0000213361,4.39
DEPARTMENT OF ENERGY AND CLIMATE CHANGE,THE COAL AUTHORITY,21/08/2014,CONTRACTORS AND CLAIM COSTS,SURFACE HAZARDS,CONSTRUCTION-MAIN CONTRACTORS,BALFOUR BEATTY CIVIL ENG,0000213426,147.66
DEPARTMENT OF ENERGY AND CLIMATE CHANGE,THE COAL AUTHORITY,21/08/2014,CONTRACTORS AND CLAIM COSTS,SURFACE HAZARDS,CONSTRUCTION-MAIN CONTRACTORS,BALFOUR BEATTY CIVIL ENG,0000213427,191.27
DEPARTMENT OF ENERGY AND CLIMATE CHANGE,THE COAL AUTHORITY,21/08/2014,CONTRACTORS AND CLAIM COSTS,SURFACE HAZARDS,CONSTRUCTION-MAIN CONTRACTORS,BALFOUR BEATTY CIVIL ENG,0000213428,222.84
DEPARTMENT OF ENERGY AND CLIMATE CHANGE,THE COAL AUTHORITY,21/08/2014,CONTRACTORS AND CLAIM COSTS,SURFACE HAZARDS,CONSTRUCTION-MAIN CONTRACTORS,BALFOUR BEATTY CIVIL ENG,0000213429,148.08
DEPARTMENT OF ENERGY AND CLIMATE CHANGE,THE COAL AUTHORITY,21/08/2014,CONTRACTORS AND CLAIM COSTS,SURFACE HAZARDS,CONSTRUCTION-MAIN CONTRACTORS,BALFOUR BEATTY CIVIL ENG,0000213431,192.66
DEPARTMENT OF ENERGY AND CLIMATE CHANGE,THE COAL AUTHORITY,21/08/2014,CONTRACTORS AND CLAIM COSTS,SURFACE HAZARDS,CONSTRUCTION-MAIN CONTRACTORS,BALFOUR BEATTY CIVIL ENG,0000213432,5170.70
DEPARTMENT OF ENERGY AND CLIMATE CHANGE,THE COAL AUTHORITY,21/08/2014,CONTRACTORS AND CLAIM COSTS,SURFACE HAZARDS,CONSTRUCTION-MAIN CONTRACTORS,BALFOUR BEATTY CIVIL ENG,0000213433,4614.06
DEPARTMENT OF ENERGY AND CLIMATE CHANGE,THE COAL AUTHORITY,21/08/2014,CONTRACTORS AND CLAIM COSTS,SURFACE HAZARDS,CONSTRUCTION-MAIN CONTRACTORS,BALFOUR BEATTY CIVIL ENG,0000213434,148.50
DEPARTMENT OF ENERGY AND CLIMATE CHANGE,THE COAL AUTHORITY,20/08/2014,CONTRACTORS AND CLAIM COSTS,SURFACE HAZARDS,CONSTRUCTION-MAIN CONTRACTORS,BALFOUR BEATTY CIVIL ENG,0000213465,10493.36
DEPARTMENT OF ENERGY AND CLIMATE CHANGE,THE COAL AUTHORITY,12/08/2014,CONTRACTORS AND CLAIM COSTS,SURFACE HAZARDS,CONSTRUCTION-MAIN CONTRACTORS,BALFOUR BEATTY CIVIL ENG,0000213467,6693.62
DEPARTMENT OF ENERGY AND CLIMATE CHANGE,THE COAL AUTHORITY,12/08/2014,CONTRACTORS AND CLAIM COSTS,SURFACE HAZARDS,CONSTRUCTION-MAIN CONTRACTORS,BALFOUR BEATTY CIVIL ENG,0000213468,3917.28
DEPARTMENT OF ENERGY AND CLIMATE CHANGE,THE COAL AUTHORITY,12/08/2014,CONTRACTORS AND CLAIM COSTS,SURFACE HAZARDS,CONSTRUCTION-MAIN CONTRACTORS,BALFOUR BEATTY CIVIL ENG,0000213469,1346.49
DEPARTMENT OF ENERGY AND CLIMATE CHANGE,THE COAL AUTHORITY,12/08/2014,CONTRACTORS AND CLAIM COSTS,SURFACE HAZARDS,CONSTRUCTION-MAIN CONTRACTORS,BALFOUR BEATTY CIVIL ENG,0000213470,4174.65
DEPARTMENT OF ENERGY AND CLIMATE CHANGE,THE COAL AUTHORITY,20/08/2014,CONTRACTORS AND CLAIM COSTS,SURFACE HAZARDS,CONSTRUCTION-MAIN CONTRACTORS,GEOL-CONSULTANTS LTD,0000213473,1281.00
DEPARTMENT OF ENERGY AND CLIMATE CHANGE,THE COAL AUTHORITY,27/08/2014,CONTRACTORS AND CLAIM COSTS,SURFACE HAZARDS,CONSTRUCTION-MAIN CONTRACTORS,ALLIANCE CONSTRUCTION SOL,0000213554,322.50
DEPARTMENT OF ENERGY AND CLIMATE CHANGE,THE COAL AUTHORITY,27/08/2014,CONTRACTORS AND CLAIM COSTS,SURFACE HAZARDS,CONSTRUCTION-MAIN CONTRACTORS,ALLIANCE CONSTRUCTION SOL,0000213556,220.75
DEPARTMENT OF ENERGY AND CLIMATE CHANGE,THE COAL AUTHORITY,27/08/2014,CONTRACTORS AND CLAIM COSTS,SURFACE HAZARDS,CONSTRUCTION-MAIN CONTRACTORS,ALLIANCE CONSTRUCTION SOL,0000213557,32.00
DEPARTMENT OF ENERGY AND CLIMATE CHANGE,THE COAL AUTHORITY,27/08/2014,CONTRACTORS AND CLAIM COSTS,SURFACE HAZARDS,CONSTRUCTION-MAIN CONTRACTORS,ALLIANCE CONSTRUCTION SOL,0000213558,65.70
DEPARTMENT OF ENERGY AND CLIMATE CHANGE,THE COAL AUTHORITY,27/08/2014,CONTRACTORS AND CLAIM COSTS,SURFACE HAZARDS,CONSTRUCTION-MAIN CONTRACTORS,ALLIANCE CONSTRUCTION SOL,0000213559,39.40
DEPARTMENT OF ENERGY AND CLIMATE CHANGE,THE COAL AUTHORITY,27/08/2014,CONTRACTORS AND CLAIM COSTS,SURFACE HAZARDS,CONSTRUCTION-MAIN CONTRACTORS,ALLIANCE CONSTRUCTION SOL,0000213560,324.65
DEPARTMENT OF ENERGY AND CLIMATE CHANGE,THE COAL AUTHORITY,27/08/2014,CONTRACTORS AND CLAIM COSTS,SURFACE HAZARDS,CONSTRUCTION-MAIN CONTRACTORS,ALLIANCE CONSTRUCTION SOL,0000213561,5535.47
DEPARTMENT OF ENERGY AND CLIMATE CHANGE,THE COAL AUTHORITY,27/08/2014,CONTRACTORS AND CLAIM COSTS,SURFACE HAZARDS,CONSTRUCTION-MAIN CONTRACTORS,ALLIANCE CONSTRUCTION SOL,0000213564,1535.01
DEPARTMENT OF ENERGY AND CLIMATE CHANGE,THE COAL AUTHORITY,27/08/2014,CONTRACTORS AND CLAIM COSTS,SURFACE HAZARDS,CONSTRUCTION-MAIN CONTRACTORS,ALLIANCE CONSTRUCTION SOL,0000213565,158.50
DEPARTMENT OF ENERGY AND CLIMATE CHANGE,THE COAL AUTHORITY,27/08/2014,CONTRACTORS AND CLAIM COSTS,SURFACE HAZARDS,CONSTRUCTION-MAIN CONTRACTORS,ALLIANCE CONSTRUCTION SOL,0000213566,323.75
DEPARTMENT OF ENERGY AND CLIMATE CHANGE,THE COAL AUTHORITY,27/08/2014,CONTRACTORS AND CLAIM COSTS,SURFACE HAZARDS,CONSTRUCTION-MAIN CONTRACTORS,ALLIANCE CONSTRUCTION SOL,0000213568,181.25
DEPARTMENT OF ENERGY AND CLIMATE CHANGE,THE COAL AUTHORITY,27/08/2014,CONTRACTORS AND CLAIM COSTS,SURFACE HAZARDS,CONSTRUCTION-MAIN CONTRACTORS,ALLIANCE CONSTRUCTION SOL,0000213569,157.00
DEPARTMENT OF ENERGY AND CLIMATE CHANGE,THE COAL AUTHORITY,27/08/2014,CONTRACTORS AND CLAIM COSTS,SURFACE HAZARDS,CONSTRUCTION-MAIN CONTRACTORS,ALLIANCE CONSTRUCTION SOL,0000213570,78.80
DEPARTMENT OF ENERGY AND CLIMATE CHANGE,THE COAL AUTHORITY,27/08/2014,CONTRACTORS AND CLAIM COSTS,SURFACE HAZARDS,CONSTRUCTION-MAIN CONTRACTORS,ALLIANCE CONSTRUCTION SOL,0000213571,52.50
DEPARTMENT OF ENERGY AND CLIMATE CHANGE,THE COAL AUTHORITY,27/08/2014,CONTRACTORS AND CLAIM COSTS,SURFACE HAZARDS,CONSTRUCTION-MAIN CONTRACTORS,ALLIANCE CONSTRUCTION SOL,0000213572,459.00
DEPARTMENT OF ENERGY AND CLIMATE CHANGE,THE COAL AUTHORITY,27/08/2014,CONTRACTORS AND CLAIM COSTS,SURFACE HAZARDS,CONSTRUCTION-MAIN CONTRACTORS,ALLIANCE CONSTRUCTION SOL,0000213573,65.70
DEPARTMENT OF ENERGY AND CLIMATE CHANGE,THE COAL AUTHORITY,27/08/2014,CONTRACTORS AND CLAIM COSTS,SURFACE HAZARDS,CONSTRUCTION-MAIN CONTRACTORS,ALLIANCE CONSTRUCTION SOL,0000213574,225.00
DEPARTMENT OF ENERGY AND CLIMATE CHANGE,THE COAL AUTHORITY,27/08/2014,CONTRACTORS AND CLAIM COSTS,SURFACE HAZARDS,CONSTRUCTION-MAIN CONTRACTORS,ALLIANCE CONSTRUCTION SOL,0000213576,12.50
DEPARTMENT OF ENERGY AND CLIMATE CHANGE,THE COAL AUTHORITY,27/08/2014,CONTRACTORS AND CLAIM COSTS,SURFACE HAZARDS,CONSTRUCTION-MAIN CONTRACTORS,ALLIANCE CONSTRUCTION SOL,0000213577,64.00
DEPARTMENT OF ENERGY AND CLIMATE CHANGE,THE COAL AUTHORITY,27/08/2014,CONTRACTORS AND CLAIM COSTS,SURFACE HAZARDS,CONSTRUCTION-MAIN CONTRACTORS,ALLIANCE CONSTRUCTION SOL,0000213578,302.50
DEPARTMENT OF ENERGY AND CLIMATE CHANGE,THE COAL AUTHORITY,27/08/2014,CONTRACTORS AND CLAIM COSTS,SURFACE HAZARDS,CONSTRUCTION-MAIN CONTRACTORS,ALLIANCE CONSTRUCTION SOL,0000213580,207.00
DEPARTMENT OF ENERGY AND CLIMATE CHANGE,THE COAL AUTHORITY,27/08/2014,CONTRACTORS AND CLAIM COSTS,SURFACE HAZARDS,CONSTRUCTION-MAIN CONTRACTORS,ALLIANCE CONSTRUCTION SOL,0000213581,1294.34
DEPARTMENT OF ENERGY AND CLIMATE CHANGE,THE COAL AUTHORITY,27/08/2014,CONTRACTORS AND CLAIM COSTS,SURFACE HAZARDS,CONSTRUCTION-MAIN CONTRACTORS,ALLIANCE CONSTRUCTION SOL,0000213583,3766.40
DEPARTMENT OF ENERGY AND CLIMATE CHANGE,THE COAL AUTHORITY,27/08/2014,CONTRACTORS AND CLAIM COSTS,SURFACE HAZARDS,CONSTRUCTION-MAIN CONTRACTORS,ALLIANCE CONSTRUCTION SOL,0000213585,1650.49
DEPARTMENT OF ENERGY AND CLIMATE CHANGE,THE COAL AUTHORITY,27/08/2014,CONTRACTORS AND CLAIM COSTS,SURFACE HAZARDS,CONSTRUCTION-MAIN CONTRACTORS,ALLIANCE CONSTRUCTION SOL,0000213586,194.25
DEPARTMENT OF ENERGY AND CLIMATE CHANGE,THE COAL AUTHORITY,30/07/2014,CURR YR ADD-INTNGBLE INFO TECH,SURFACE HAZARDS,ICT-SYSTEMS DELIVERY,SCISYS UK LTD,0000212907,26098.76
DEPARTMENT OF ENERGY AND CLIMATE CHANGE,THE COAL AUTHORITY,31/07/2014,FARES - RAIL,SURFACE HAZARDS,TRAVEL&EVENTS-RAIL,REDFERN TRAVEL LTD,0000213077,307.48
DEPARTMENT OF ENERGY AND CLIMATE CHANGE,THE COAL AUTHORITY,08/08/2014,FARES - RAIL,SURFACE HAZARDS,TRAVEL&EVENTS-RAIL,COMPANY BARCLAYCARD,0000213360,3.60
DEPARTMENT OF ENERGY AND CLIMATE CHANGE,THE COAL AUTHORITY,08/08/2014,FARES - RAIL,SURFACE HAZARDS,TRAVEL&EVENTS-RAIL,COMPANY BARCLAYCARD,0000213396,103.20
DEPARTMENT OF ENERGY AND CLIMATE CHANGE,THE COAL AUTHORITY,30/07/2014,FUEL (VEHICLE),SURFACE HAZARDS,FUELS/LUBRCNT/GAS-FUELS,ALLSTAR BUSINESS SOLUTION,0000212891,74.89
DEPARTMENT OF ENERGY AND CLIMATE CHANGE,THE COAL AUTHORITY,30/07/2014,FUEL (VEHICLE),SURFACE HAZARDS,FUELS/LUBRCNT/GAS-FUELS,ALLSTAR BUSINESS SOLUTION,0000212892,65.31
DEPARTMENT OF ENERGY AND CLIMATE CHANGE,THE COAL AUTHORITY,30/07/2014,FUEL (VEHICLE),SURFACE HAZARDS,FUELS/LUBRCNT/GAS-FUELS,ALLSTAR BUSINESS SOLUTION,0000212893,223.46
DEPARTMENT OF ENERGY AND CLIMATE CHANGE,THE COAL AUTHORITY,30/07/2014,FUEL (VEHICLE),SURFACE HAZARDS,FUELS/LUBRCNT/GAS-FUELS,ALLSTAR BUSINESS SOLUTION,0000212894,77.98
DEPARTMENT OF ENERGY AND CLIMATE CHANGE,THE COAL AUTHORITY,30/07/2014,FUEL (VEHICLE),SURFACE HAZARDS,FUELS/LUBRCNT/GAS-FUELS,ALLSTAR BUSINESS SOLUTION,0000212895,79.61
DEPARTMENT OF ENERGY AND CLIMATE CHANGE,THE COAL AUTHORITY,30/07/2014,FUEL (VEHICLE),SURFACE HAZARDS,FUELS/LUBRCNT/GAS-FUELS,ALLSTAR BUSINESS SOLUTION,0000212896,69.89
DEPARTMENT OF ENERGY AND CLIMATE CHANGE,THE COAL AUTHORITY,30/07/2014,FUEL (VEHICLE),SURFACE HAZARDS,FUELS/LUBRCNT/GAS-FUELS,ALLSTAR BUSINESS SOLUTION,0000212897,76.73
DEPARTMENT OF ENERGY AND CLIMATE CHANGE,THE COAL AUTHORITY,30/07/2014,FUEL (VEHICLE),SURFACE HAZARDS,FUELS/LUBRCNT/GAS-FUELS,ALLSTAR BUSINESS SOLUTION,0000212898,42.29
DEPARTMENT OF ENERGY AND CLIMATE CHANGE,THE COAL AUTHORITY,06/08/2014,FUEL (VEHICLE),SURFACE HAZARDS,FUELS/LUBRCNT/GAS-FUELS,ALLSTAR BUSINESS SOLUTION,0000212987,63.46
DEPARTMENT OF ENERGY AND CLIMATE CHANGE,THE COAL AUTHORITY,06/08/2014,FUEL (VEHICLE),SURFACE HAZARDS,FUELS/LUBRCNT/GAS-FUELS,ALLSTAR BUSINESS SOLUTION,0000212988,63.19
DEPARTMENT OF ENERGY AND CLIMATE CHANGE,THE COAL AUTHORITY,06/08/2014,FUEL (VEHICLE),SURFACE HAZARDS,FUELS/LUBRCNT/GAS-FUELS,ALLSTAR BUSINESS SOLUTION,0000212989,70.74
DEPARTMENT OF ENERGY AND CLIMATE CHANGE,THE COAL AUTHORITY,06/08/2014,FUEL (VEHICLE),SURFACE HAZARDS,FUELS/LUBRCNT/GAS-FUELS,ALLSTAR BUSINESS SOLUTION,0000212990,65.39
DEPARTMENT OF ENERGY AND CLIMATE CHANGE,THE COAL AUTHORITY,06/08/2014,FUEL (VEHICLE),SURFACE HAZARDS,FUELS/LUBRCNT/GAS-FUELS,ALLSTAR BUSINESS SOLUTION,0000212991,72.64
DEPARTMENT OF ENERGY AND CLIMATE CHANGE,THE COAL AUTHORITY,06/08/2014,FUEL (VEHICLE),SURFACE HAZARDS,FUELS/LUBRCNT/GAS-FUELS,ALLSTAR BUSINESS SOLUTION,0000212992,52.28
DEPARTMENT OF ENERGY AND CLIMATE CHANGE,THE COAL AUTHORITY,06/08/2014,FUEL (VEHICLE),SURFACE HAZARDS,FUELS/LUBRCNT/GAS-FUELS,ALLSTAR BUSINESS SOLUTION,0000212993,71.28
DEPARTMENT OF ENERGY AND CLIMATE CHANGE,THE COAL AUTHORITY,06/08/2014,FUEL (VEHICLE),SURFACE HAZARDS,FUELS/LUBRCNT/GAS-FUELS,ALLSTAR BUSINESS SOLUTION,0000212994,143.31
DEPARTMENT OF ENERGY AND CLIMATE CHANGE,THE COAL AUTHORITY,13/08/2014,FUEL (VEHICLE),SURFACE HAZARDS,FUELS/LUBRCNT/GAS-FUELS,ALLSTAR BUSINESS SOLUTION,0000213195,64.00
DEPARTMENT OF ENERGY AND CLIMATE CHANGE,THE COAL AUTHORITY,13/08/2014,FUEL (VEHICLE),SURFACE HAZARDS,FUELS/LUBRCNT/GAS-FUELS,ALLSTAR BUSINESS SOLUTION,0000213196,62.07
DEPARTMENT OF ENERGY AND CLIMATE CHANGE,THE COAL AUTHORITY,13/08/2014,FUEL (VEHICLE),SURFACE HAZARDS,FUELS/LUBRCNT/GAS-FUELS,ALLSTAR BUSINESS SOLUTION,0000213197,82.29
DEPARTMENT OF ENERGY AND CLIMATE CHANGE,THE COAL AUTHORITY,13/08/2014,FUEL (VEHICLE),SURFACE HAZARDS,FUELS/LUBRCNT/GAS-FUELS,ALLSTAR BUSINESS SOLUTION,0000213198,60.68
DEPARTMENT OF ENERGY AND CLIMATE CHANGE,THE COAL AUTHORITY,13/08/2014,FUEL (VEHICLE),SURFACE HAZARDS,FUELS/LUBRCNT/GAS-FUELS,ALLSTAR BUSINESS SOLUTION,0000213199,52.30
DEPARTMENT OF ENERGY AND CLIMATE CHANGE,THE COAL AUTHORITY,13/08/2014,FUEL (VEHICLE),SURFACE HAZARDS,FUELS/LUBRCNT/GAS-FUELS,ALLSTAR BUSINESS SOLUTION,0000213200,27.29
DEPARTMENT OF ENERGY AND CLIMATE CHANGE,THE COAL AUTHORITY,18/08/2014,FUEL (VEHICLE),SURFACE HAZARDS,FUELS/LUBRCNT/GAS-FUELS,ALLSTAR BUSINESS SOLUTION,0000213201,74.88
DEPARTMENT OF ENERGY AND CLIMATE CHANGE,THE COAL AUTHORITY,13/08/2014,FUEL (VEHICLE),SURFACE HAZARDS,FUELS/LUBRCNT/GAS-FUELS,ALLSTAR BUSINESS SOLUTION,0000213202,87.66
DEPARTMENT OF ENERGY AND CLIMATE CHANGE,THE COAL AUTHORITY,13/08/2014,FUEL (VEHICLE),SURFACE HAZARDS,FUELS/LUBRCNT/GAS-FUELS,ALLSTAR BUSINESS SOLUTION,0000213203,134.19
DEPARTMENT OF ENERGY AND CLIMATE CHANGE,THE COAL AUTHORITY,08/08/2014,FUEL (VEHICLE),SURFACE HAZARDS,FUELS/LUBRCNT/GAS-FUELS,COMPANY BARCLAYCARD,0000213369,16.67
DEPARTMENT OF ENERGY AND CLIMATE CHANGE,THE COAL AUTHORITY,20/08/2014,FUEL (VEHICLE),SURFACE HAZARDS,FUELS/LUBRCNT/GAS-FUELS,ALLSTAR BUSINESS SOLUTION,0000213406,75.54
DEPARTMENT OF ENERGY AND CLIMATE CHANGE,THE COAL AUTHORITY,20/08/2014,FUEL (VEHICLE),SURFACE HAZARDS,FUELS/LUBRCNT/GAS-FUELS,ALLSTAR BUSINESS SOLUTION,0000213407,52.28
DEPARTMENT OF ENERGY AND CLIMATE CHANGE,THE COAL AUTHORITY,20/08/2014,FUEL (VEHICLE),SURFACE HAZARDS,FUELS/LUBRCNT/GAS-FUELS,ALLSTAR BUSINESS SOLUTION,0000213408,80.17
DEPARTMENT OF ENERGY AND CLIMATE CHANGE,THE COAL AUTHORITY,20/08/2014,FUEL (VEHICLE),SURFACE HAZARDS,FUELS/LUBRCNT/GAS-FUELS,ALLSTAR BUSINESS SOLUTION,0000213409,62.30
DEPARTMENT OF ENERGY AND CLIMATE CHANGE,THE COAL AUTHORITY,20/08/2014,FUEL (VEHICLE),SURFACE HAZARDS,FUELS/LUBRCNT/GAS-FUELS,ALLSTAR BUSINESS SOLUTION,0000213410,82.78
DEPARTMENT OF ENERGY AND CLIMATE CHANGE,THE COAL AUTHORITY,20/08/2014,FUEL (VEHICLE),SURFACE HAZARDS,FUELS/LUBRCNT/GAS-FUELS,ALLSTAR BUSINESS SOLUTION,0000213411,80.50
DEPARTMENT OF ENERGY AND CLIMATE CHANGE,THE COAL AUTHORITY,20/08/2014,FUEL (VEHICLE),SURFACE HAZARDS,FUELS/LUBRCNT/GAS-FUELS,ALLSTAR BUSINESS SOLUTION,0000213412,78.30
DEPARTMENT OF ENERGY AND CLIMATE CHANGE,THE COAL AUTHORITY,20/08/2014,FUEL (VEHICLE),SURFACE HAZARDS,FUELS/LUBRCNT/GAS-FUELS,ALLSTAR BUSINESS SOLUTION,0000213413,66.42
DEPARTMENT OF ENERGY AND CLIMATE CHANGE,THE COAL AUTHORITY,20/08/2014,FUEL (VEHICLE),SURFACE HAZARDS,FUELS/LUBRCNT/GAS-FUELS,COMPANY BARCLAYCARD,0000213414,89.66
DEPARTMENT OF ENERGY AND CLIMATE CHANGE,THE COAL AUTHORITY,08/08/2014,FUEL (VEHICLE),SURFACE HAZARDS,FUELS/LUBRCNT/GAS-FUELS,COMPANY BARCLAYCARD,0000213464,331.24
DEPARTMENT OF ENERGY AND CLIMATE CHANGE,THE COAL AUTHORITY,27/08/2014,FUEL (VEHICLE),SURFACE HAZARDS,FUELS/LUBRCNT/GAS-FUELS,ALLSTAR BUSINESS SOLUTION,0000213595,73.04
DEPARTMENT OF ENERGY AND CLIMATE CHANGE,THE COAL AUTHORITY,27/08/2014,FUEL (VEHICLE),SURFACE HAZARDS,FUELS/LUBRCNT/GAS-FUELS,ALLSTAR BUSINESS SOLUTION,0000213596,52.04
DEPARTMENT OF ENERGY AND CLIMATE CHANGE,THE COAL AUTHORITY,27/08/2014,FUEL (VEHICLE),SURFACE HAZARDS,FUELS/LUBRCNT/GAS-FUELS,ALLSTAR BUSINESS SOLUTION,0000213597,70.38
DEPARTMENT OF ENERGY AND CLIMATE CHANGE,THE COAL AUTHORITY,27/08/2014,FUEL (VEHICLE),SURFACE HAZARDS,FUELS/LUBRCNT/GAS-FUELS,ALLSTAR BUSINESS SOLUTION,0000213598,52.32
DEPARTMENT OF ENERGY AND CLIMATE CHANGE,THE COAL AUTHORITY,27/08/2014,FUEL (VEHICLE),SURFACE HAZARDS,FUELS/LUBRCNT/GAS-FUELS,VAT ON REG ENG BUS MLGE,35001034,-193.20
DEPARTMENT OF ENERGY AND CLIMATE CHANGE,THE COAL AUTHORITY,31/07/2014,HOTEL ACCOMMODATION,SURFACE HAZARDS,TRAVEL&EVENTS-HOTELS,REDFERN TRAVEL LTD,0000213076,281.28
DEPARTMENT OF ENERGY AND CLIMATE CHANGE,THE COAL AUTHORITY,08/08/2014,HOTEL ACCOMMODATION,SURFACE HAZARDS,TRAVEL&EVENTS-HOTELS,COMPANY BARCLAYCARD,0000213396,119.00
DEPARTMENT OF ENERGY AND CLIMATE CHANGE,THE COAL AUTHORITY,08/08/2014,HOTEL ACCOMMODATION,SURFACE HAZARDS,TRAVEL&EVENTS-HOTELS,COMPANY BARCLAYCARD,0000213464,45.00
DEPARTMENT OF ENERGY AND CLIMATE CHANGE,THE COAL AUTHORITY,08/08/2014,INCIDENTALS,SURFACE HAZARDS,VEHICLES-FLEET MANAGEMENT,COMPANY BARCLAYCARD,0000213360,36.82
DEPARTMENT OF ENERGY AND CLIMATE CHANGE,THE COAL AUTHORITY,08/08/2014,INCIDENTALS,SURFACE HAZARDS,VEHICLES-FLEET MANAGEMENT,COMPANY BARCLAYCARD,0000213396,27.50
DEPARTMENT OF ENERGY AND CLIMATE CHANGE,THE COAL AUTHORITY,27/08/2014,INCIDENTALS,SURFACE HAZARDS,VEHICLES-FLEET MANAGEMENT,STAFF EXPENSES CONTROL,0000213485,1.00
DEPARTMENT OF ENERGY AND CLIMATE CHANGE,THE COAL AUTHORITY,27/08/2014,INCIDENTALS,SURFACE HAZARDS,VEHICLES-FLEET MANAGEMENT,STAFF EXPENSES CONTROL,0000213497,12.08
DEPARTMENT OF ENERGY AND CLIMATE CHANGE,THE COAL AUTHORITY,27/08/2014,INCIDENTALS,SURFACE HAZARDS,VEHICLES-FLEET MANAGEMENT,STAFF EXPENSES CONTROL,0000213502,3.00
DEPARTMENT OF ENERGY AND CLIMATE CHANGE,THE COAL AUTHORITY,08/08/2014,IT-APPLICATIONS MANAGEMENT,SURFACE HAZARDS,ICT-HARDWARE,COMPANY BARCLAYCARD,0000213368,187.20
DEPARTMENT OF ENERGY AND CLIMATE CHANGE,THE COAL AUTHORITY,04/08/2014,LEGAL COSTS,SURFACE HAZARDS,PROF SER-LEGAL SERVICES,DLA PIPER UK LLP,0000213006,168.00
DEPARTMENT OF ENERGY AND CLIMATE CHANGE,THE COAL AUTHORITY,07/08/2014,LEGAL COSTS,SURFACE HAZARDS,PROF SER-OPERATIONAL SERVICES,LAND REGISTRY,0000213009,12.00
DEPARTMENT OF ENERGY AND CLIMATE CHANGE,THE COAL AUTHORITY,13/08/2014,LEGAL COSTS,SURFACE HAZARDS,PROF SER-OPERATIONAL SERVICES,LAND REGISTRY,0000213090,6.00
DEPARTMENT OF ENERGY AND CLIMATE CHANGE,THE COAL AUTHORITY,08/08/2014,MEETINGS,SURFACE HAZARDS,TRAVEL&EVENTS-EVENT ORGNSTN,COMPANY BARCLAYCARD,0000213464,90.00
DEPARTMENT OF ENERGY AND CLIMATE CHANGE,THE COAL AUTHORITY,31/07/2014,MEETINGS,SURFACE HAZARDS,TRAVEL&EVENTS-EVENT ORGNSTN,RANSOMWOOD ESTATES LTD,0000213471,160.00
DEPARTMENT OF ENERGY AND CLIMATE CHANGE,THE COAL AUTHORITY,31/07/2014,MEETINGS,SURFACE HAZARDS,FACILITIES - FOOD,RANSOMWOOD ESTATES LTD,0000213471,121.00
DEPARTMENT OF ENERGY AND CLIMATE CHANGE,THE COAL AUTHORITY,27/08/2014,MEETINGS,SURFACE HAZARDS,FACILITIES - FOOD,STAFF EXPENSES CONTROL,0000213496,4.50
DEPARTMENT OF ENERGY AND CLIMATE CHANGE,THE COAL AUTHORITY,28/08/2014,MEETINGS,SURFACE HAZARDS,FACILITIES - FOOD,213471-IRRCBLE VAT RNSMWD,35001041,2.02
DEPARTMENT OF ENERGY AND CLIMATE CHANGE,THE COAL AUTHORITY,27/08/2014,MILEAGE PAYMENTS,SURFACE HAZARDS,FUELS/LUBRCNT/GAS-FUELS,STAFF EXPENSES CONTROL,0000213485,99.90
DEPARTMENT OF ENERGY AND CLIMATE CHANGE,THE COAL AUTHORITY,27/08/2014,MILEAGE PAYMENTS,SURFACE HAZARDS,FUELS/LUBRCNT/GAS-FUELS,STAFF EXPENSES CONTROL,0000213488,800.83
DEPARTMENT OF ENERGY AND CLIMATE CHANGE,THE COAL AUTHORITY,27/08/2014,MILEAGE PAYMENTS,SURFACE HAZARDS,FUELS/LUBRCNT/GAS-FUELS,STAFF EXPENSES CONTROL,0000213494,21.10
DEPARTMENT OF ENERGY AND CLIMATE CHANGE,THE COAL AUTHORITY,27/08/2014,MILEAGE PAYMENTS,SURFACE HAZARDS,FUELS/LUBRCNT/GAS-FUELS,STAFF EXPENSES CONTROL,0000213497,88.40
DEPARTMENT OF ENERGY AND CLIMATE CHANGE,THE COAL AUTHORITY,27/08/2014,MILEAGE PAYMENTS,SURFACE HAZARDS,FUELS/LUBRCNT/GAS-FUELS,STAFF EXPENSES CONTROL,0000213502,689.85
DEPARTMENT OF ENERGY AND CLIMATE CHANGE,THE COAL AUTHORITY,27/08/2014,MILEAGE PAYMENTS,SURFACE HAZARDS,FUELS/LUBRCNT/GAS-FUELS,STAFF EXPENSES CONTROL,0000213503,28.08
DEPARTMENT OF ENERGY AND CLIMATE CHANGE,THE COAL AUTHORITY,27/08/2014,MILEAGE PAYMENTS,SURFACE HAZARDS,FUELS/LUBRCNT/GAS-FUELS,VAT ON REG ENG BUS MLGE,35001034,-34.88
DEPARTMENT OF ENERGY AND CLIMATE CHANGE,THE COAL AUTHORITY,08/08/2014,OFFICE MACHINERY PURCHASED,SURFACE HAZARDS,OFFICE SOLUTIONS-POST&COURIER,COMPANY BARCLAYCARD,0000213355,64.64
DEPARTMENT OF ENERGY AND CLIMATE CHANGE,THE COAL AUTHORITY,08/08/2014,OFFICE MACHINERY PURCHASED,SURFACE HAZARDS,OFFICE SOLUTIONS-POST&COURIER,COMPANY BARCLAYCARD,0000213360,3.72
DEPARTMENT OF ENERGY AND CLIMATE CHANGE,THE COAL AUTHORITY,08/08/2014,OFFICE MACHINERY PURCHASED,SURFACE HAZARDS,ICT-HARDWARE,COMPANY BARCLAYCARD,0000213364,16.65
DEPARTMENT OF ENERGY AND CLIMATE CHANGE,THE COAL AUTHORITY,08/08/2014,OFFICE MACHINERY PURCHASED,SURFACE HAZARDS,OFFICE SOLUTIONS-OFFCE SPPLIES,COMPANY BARCLAYCARD,0000213364,5.82
DEPARTMENT OF ENERGY AND CLIMATE CHANGE,THE COAL AUTHORITY,08/08/2014,OFFICE MACHINERY PURCHASED,SURFACE HAZARDS,OFFICE SOLUTIONS-POST&COURIER,COMPANY BARCLAYCARD,0000213364,89.60
DEPARTMENT OF ENERGY AND CLIMATE CHANGE,THE COAL AUTHORITY,08/08/2014,OFFICE MACHINERY PURCHASED,SURFACE HAZARDS,OFFICE SOLUTIONS-OFFICE CNSMBL,COMPANY BARCLAYCARD,0000213369,24.99
DEPARTMENT OF ENERGY AND CLIMATE CHANGE,THE COAL AUTHORITY,08/08/2014,OFFICE MACHINERY PURCHASED,SURFACE HAZARDS,OFFICE SOLUTIONS-OFFICE MACHNE,COMPANY BARCLAYCARD,0000213369,43.24
DEPARTMENT OF ENERGY AND CLIMATE CHANGE,THE COAL AUTHORITY,08/08/2014,OFFICE MACHINERY PURCHASED,SURFACE HAZARDS,OFFICE SOLUTIONS-POST&COURIER,COMPANY BARCLAYCARD,0000213373,11.74
DEPARTMENT OF ENERGY AND CLIMATE CHANGE,THE COAL AUTHORITY,08/08/2014,OFFICE MACHINERY PURCHASED,SURFACE HAZARDS,OFFICE SOLUTIONS-OFFICE MACHNE,COMPANY BARCLAYCARD,0000213373,2.50
DEPARTMENT OF ENERGY AND CLIMATE CHANGE,THE COAL AUTHORITY,08/08/2014,OFFICE MACHINERY PURCHASED,SURFACE HAZARDS,ENGINEERING GOODS-TOOLS,COMPANY BARCLAYCARD,0000213386,30.00
DEPARTMENT OF ENERGY AND CLIMATE CHANGE,THE COAL AUTHORITY,08/08/2014,OFFICE MACHINERY PURCHASED,SURFACE HAZARDS,CONSTRUCTION-CNSTRN SUPPLIES,COMPANY BARCLAYCARD,0000213387,425.00
DEPARTMENT OF ENERGY AND CLIMATE CHANGE,THE COAL AUTHORITY,08/08/2014,OFFICE MACHINERY PURCHASED,SURFACE HAZARDS,OFFICE SOLUTIONS-OFFCE SPPLIES,COMPANY BARCLAYCARD,0000213393,7.41
DEPARTMENT OF ENERGY AND CLIMATE CHANGE,THE COAL AUTHORITY,08/08/2014,OFFICE MACHINERY PURCHASED,SURFACE HAZARDS,ENGINEERING GOODS-INDUSTRIAL,COMPANY BARCLAYCARD,0000213396,6.00
DEPARTMENT OF ENERGY AND CLIMATE CHANGE,THE COAL AUTHORITY,07/05/2014,OFFICE MACHINERY PURCHASED,SURFACE HAZARDS,ICT-SOFTWARE,IHS (GLOBAL) LIMITED,0000213463,7810.00
DEPARTMENT OF ENERGY AND CLIMATE CHANGE,THE COAL AUTHORITY,08/08/2014,OFFICE MACHINERY PURCHASED,SURFACE HAZARDS,OFFICE SOLUTIONS-OFFCE SPPLIES,COMPANY BARCLAYCARD,0000213464,22.40
DEPARTMENT OF ENERGY AND CLIMATE CHANGE,THE COAL AUTHORITY,07/08/2014,OUTSOURCED MANAGEMENT-PS&S,SURFACE HAZARDS,SOCIAL CARE-EMERGENCY SERVICES,MINES RESCUE SERVICE LIMI,0000213017,17500.00
DEPARTMENT OF ENERGY AND CLIMATE CHANGE,THE COAL AUTHORITY,27/07/2014,PAYMENTS TO AGENCIES FOR TEMPS,SURFACE HAZARDS,PROF SER TMP STFF-SPCLST CNTRT,VENTURE FINANCE PLC,0000212914,1036.49
DEPARTMENT OF ENERGY AND CLIMATE CHANGE,THE COAL AUTHORITY,27/07/2014,PAYMENTS TO AGENCIES FOR TEMPS,SURFACE HAZARDS,PROF SER TMP STFF-SPCLST CNTRT,VENTURE FINANCE PLC,0000212915,2033.02
DEPARTMENT OF ENERGY AND CLIMATE CHANGE,THE COAL AUTHORITY,03/08/2014,PAYMENTS TO AGENCIES FOR TEMPS,SURFACE HAZARDS,PROF SER TMP STFF-SPCLST CNTRT,VENTURE FINANCE PLC,0000213004,1021.02
DEPARTMENT OF ENERGY AND CLIMATE CHANGE,THE COAL AUTHORITY,10/08/2014,PAYMENTS TO AGENCIES FOR TEMPS,SURFACE HAZARDS,PROF SER TMP STFF-SPCLST CNTRT,VENTURE FINANCE PLC,0000213314,1036.49
DEPARTMENT OF ENERGY AND CLIMATE CHANGE,THE COAL AUTHORITY,08/08/2014,PUBLICATIONS,SURFACE HAZARDS,OPRTNL GOODS&SERV-DEVLPNG MTRL,COMPANY BARCLAYCARD,0000213394,122.15
DEPARTMENT OF ENERGY AND CLIMATE CHANGE,THE COAL AUTHORITY,31/07/2014,R&D-EXTERNAL COSTS,SURFACE HAZARDS,PROF SER CNSLTNCY-PROP/CNSTRCN,JMC ENGINEERING (UK) LTD,0000213043,2527.50
DEPARTMENT OF ENERGY AND CLIMATE CHANGE,THE COAL AUTHORITY,08/08/2014,SUBSISTENCE ALLOWANCES,SURFACE HAZARDS,FACILITIES - FOOD,COMPANY BARCLAYCARD,0000213355,9.25
DEPARTMENT OF ENERGY AND CLIMATE CHANGE,THE COAL AUTHORITY,08/08/2014,SUBSISTENCE ALLOWANCES,SURFACE HAZARDS,FACILITIES - FOOD,COMPANY BARCLAYCARD,0000213356,3.55
DEPARTMENT OF ENERGY AND CLIMATE CHANGE,THE COAL AUTHORITY,08/08/2014,SUBSISTENCE ALLOWANCES,SURFACE HAZARDS,FACILITIES - FOOD,COMPANY BARCLAYCARD,0000213360,15.08
DEPARTMENT OF ENERGY AND CLIMATE CHANGE,THE COAL AUTHORITY,08/08/2014,SUBSISTENCE ALLOWANCES,SURFACE HAZARDS,FACILITIES - FOOD,COMPANY BARCLAYCARD,0000213363,4.85
DEPARTMENT OF ENERGY AND CLIMATE CHANGE,THE COAL AUTHORITY,08/08/2014,SUBSISTENCE ALLOWANCES,SURFACE HAZARDS,FACILITIES - FOOD,COMPANY BARCLAYCARD,0000213365,33.79
DEPARTMENT OF ENERGY AND CLIMATE CHANGE,THE COAL AUTHORITY,08/08/2014,SUBSISTENCE ALLOWANCES,SURFACE HAZARDS,FACILITIES - FOOD,COMPANY BARCLAYCARD,0000213366,3.24
DEPARTMENT OF ENERGY AND CLIMATE CHANGE,THE COAL AUTHORITY,08/08/2014,SUBSISTENCE ALLOWANCES,SURFACE HAZARDS,FACILITIES - FOOD,COMPANY BARCLAYCARD,0000213369,9.32
DEPARTMENT OF ENERGY AND CLIMATE CHANGE,THE COAL AUTHORITY,08/08/2014,SUBSISTENCE ALLOWANCES,SURFACE HAZARDS,FACILITIES - FOOD,COMPANY BARCLAYCARD,0000213370,9.17
DEPARTMENT OF ENERGY AND CLIMATE CHANGE,THE COAL AUTHORITY,08/08/2014,SUBSISTENCE ALLOWANCES,SURFACE HAZARDS,FACILITIES - FOOD,COMPANY BARCLAYCARD,0000213371,79.78
DEPARTMENT OF ENERGY AND CLIMATE CHANGE,THE COAL AUTHORITY,08/08/2014,SUBSISTENCE ALLOWANCES,SURFACE HAZARDS,FACILITIES - FOOD,COMPANY BARCLAYCARD,0000213373,49.88
DEPARTMENT OF ENERGY AND CLIMATE CHANGE,THE COAL AUTHORITY,08/08/2014,SUBSISTENCE ALLOWANCES,SURFACE HAZARDS,FACILITIES - FOOD,COMPANY BARCLAYCARD,0000213375,51.42
DEPARTMENT OF ENERGY AND CLIMATE CHANGE,THE COAL AUTHORITY,08/08/2014,SUBSISTENCE ALLOWANCES,SURFACE HAZARDS,FACILITIES - FOOD,COMPANY BARCLAYCARD,0000213387,3.82
DEPARTMENT OF ENERGY AND CLIMATE CHANGE,THE COAL AUTHORITY,08/08/2014,SUBSISTENCE ALLOWANCES,SURFACE HAZARDS,FACILITIES - FOOD,COMPANY BARCLAYCARD,0000213388,5.25
DEPARTMENT OF ENERGY AND CLIMATE CHANGE,THE COAL AUTHORITY,08/08/2014,SUBSISTENCE ALLOWANCES,SURFACE HAZARDS,FACILITIES - FOOD,COMPANY BARCLAYCARD,0000213394,8.18
DEPARTMENT OF ENERGY AND CLIMATE CHANGE,THE COAL AUTHORITY,08/08/2014,SUBSISTENCE ALLOWANCES,SURFACE HAZARDS,FACILITIES - FOOD,COMPANY BARCLAYCARD,0000213396,132.10
DEPARTMENT OF ENERGY AND CLIMATE CHANGE,THE COAL AUTHORITY,08/08/2014,SUBSISTENCE ALLOWANCES,SURFACE HAZARDS,FACILITIES - FOOD,COMPANY BARCLAYCARD,0000213398,1.65
DEPARTMENT OF ENERGY AND CLIMATE CHANGE,THE COAL AUTHORITY,08/08/2014,SUBSISTENCE ALLOWANCES,SURFACE HAZARDS,FACILITIES - FOOD,COMPANY BARCLAYCARD,0000213464,31.95
DEPARTMENT OF ENERGY AND CLIMATE CHANGE,THE COAL AUTHORITY,27/08/2014,SUBSISTENCE ALLOWANCES,SURFACE HAZARDS,FACILITIES - FOOD,STAFF EXPENSES CONTROL,0000213497,57.68
DEPARTMENT OF ENERGY AND CLIMATE CHANGE,THE COAL AUTHORITY,27/08/2014,SUBSISTENCE ALLOWANCES,SURFACE HAZARDS,FACILITIES - FOOD,STAFF EXPENSES CONTROL,0000213500,5.50
DEPARTMENT OF ENERGY AND CLIMATE CHANGE,THE COAL AUTHORITY,27/08/2014,SUBSISTENCE ALLOWANCES,SURFACE HAZARDS,FACILITIES - FOOD,STAFF EXPENSES CONTROL,0000213502,18.52
DEPARTMENT OF ENERGY AND CLIMATE CHANGE,THE COAL AUTHORITY,28/07/2014,TRAINING AND EDUCATION,SURFACE HAZARDS,PROF SER LRNG&DEV-STAFF TRNING,AWBERY MANAGEMENT CENTRE,0000213119,1179.70
DEPARTMENT OF ENERGY AND CLIMATE CHANGE,THE COAL AUTHORITY,14/08/2014,TRAINING AND EDUCATION,SURFACE HAZARDS,PROF SER LRNG&DEV-STAFF TRNING,THOMAS TELFORD TRAINING,0000213331,-285.00
DEPARTMENT OF ENERGY AND CLIMATE CHANGE,THE COAL AUTHORITY,14/08/2014,TRAINING AND EDUCATION,SURFACE HAZARDS,PROF SER LRNG&DEV-STAFF TRNING,THOMAS TELFORD TRAINING,0000213332,285.00
DEPARTMENT OF ENERGY AND CLIMATE CHANGE,THE COAL AUTHORITY,29/07/2014,TRAINING AND EDUCATION,SURFACE HAZARDS,PROF SER LRNG&DEV-STAFF TRNING,THE INSTITUTE OF DIRECTOR,0000213374,7990.00
DEPARTMENT OF ENERGY AND CLIMATE CHANGE,THE COAL AUTHORITY,22/08/2014,TRAINING AND EDUCATION,SURFACE HAZARDS,PROF SER LRNG&DEV-STAFF TRNING,SEMINAR FEES M OHLSON M A,0000213416,225.00
DEPARTMENT OF ENERGY AND CLIMATE CHANGE,THE COAL AUTHORITY,27/08/2014,TRAINING AND EDUCATION,SURFACE HAZARDS,PROF SER LRNG&DEV-STAFF TRNING,THOMAS TELFORD TRAINING,0000213524,360.00
DEPARTMENT OF ENERGY AND CLIMATE CHANGE,THE COAL AUTHORITY,22/08/2014,TRAINING AND EDUCATION,SURFACE HAZARDS,PROF SER LRNG&DEV-STAFF TRNING,00016383 CNGE TO CREDIT,35001014,-570.00
DEPARTMENT OF ENERGY AND CLIMATE CHANGE,THE COAL AUTHORITY,29/08/2014,TRAINING AND EDUCATION,SURFACE HAZARDS,PROF SER LRNG&DEV-STAFF TRNING,RMVE DC 213374 PAID GPC,35001049,-7990.00
DEPARTMENT OF ENERGY AND CLIMATE CHANGE,THE COAL AUTHORITY,31/07/2014,MONITORING AND EQUIPMENT,TIP MAINTENANCE/IMPROVEMENTS,PROF SER-ENVIRONMENTAL SRVICES,INTEGRATED WATER SERVICES,0000212905,1303.13
DEPARTMENT OF ENERGY AND CLIMATE CHANGE,THE COAL AUTHORITY,24/07/2014,PROPERTY /TIP MAINTENANCE,TIP MAINTENANCE/IMPROVEMENTS,CONSTRUCTION-MAIN CONTRACTORS,JIM DAVIES CIVIL ENGINEER,0000212822,19896.44
DEPARTMENT OF ENERGY AND CLIMATE CHANGE,THE COAL AUTHORITY,24/07/2014,PROPERTY /TIP MAINTENANCE,TIP MAINTENANCE/IMPROVEMENTS,CONSTRUCTION-MAIN CONTRACTORS,JIM DAVIES CIVIL ENGINEER,0000212823,27483.31
DEPARTMENT OF ENERGY AND CLIMATE CHANGE,THE COAL AUTHORITY,24/07/2014,PROPERTY /TIP MAINTENANCE,TIP MAINTENANCE/IMPROVEMENTS,CONSTRUCTION-MAIN CONTRACTORS,JIM DAVIES CIVIL ENGINEER,0000212827,266.99
DEPARTMENT OF ENERGY AND CLIMATE CHANGE,THE COAL AUTHORITY,28/07/2014,PROPERTY /TIP MAINTENANCE,TIP MAINTENANCE/IMPROVEMENTS,PROF SER-ENVIRONMENTAL SRVICES,LOWTHER FORESTRY GROUP LI,0000212835,1407.00
DEPARTMENT OF ENERGY AND CLIMATE CHANGE,THE COAL AUTHORITY,31/07/2014,PROPERTY /TIP MAINTENANCE,TIP MAINTENANCE/IMPROVEMENTS,PROF SER CNSLTNCY-PPM CNSLTNCY,INTEGRATED WATER SERVICES,0000212906,1065.20
DEPARTMENT OF ENERGY AND CLIMATE CHANGE,THE COAL AUTHORITY,13/08/2014,PROPERTY /TIP MAINTENANCE,TIP MAINTENANCE/IMPROVEMENTS,CONSTRUCTION-MAIN CONTRACTORS,JIM DAVIES CIVIL ENGINEER,0000213349,220.60
DEPARTMENT OF ENERGY AND CLIMATE CHANGE,THE COAL AUTHORITY,11/08/2014,M/W POWER COSTS,WHEAL JANE,ENERGY&UTILITIES-ELECTRICITY,EDF ENERGY,0000213112,20938.30
DEPARTMENT OF ENERGY AND CLIMATE CHANGE,THE COAL AUTHORITY,31/07/2014,M/W SCOPING/FEASIBILITY/CONCEP,WHEAL JANE,CONSTRUCTION-CNSTRN SER PROVDR,MOUCHEL LTD,0000212916,1202.26
